Workbook

Sheet Ex 1 HDD
A1: Heating Degree Days | G1: Docket | I1: Dominion Energy Utah
I2: Docket No. 22-057-02
I3: DEU Variance Exhibit
A7: Month/Year | B7: Actual | C7: Normal | F7: Actual | G7: Normal
A8: 2022-06-01 | B8: 22 | C8: 37.52 | D8: =B8-C8 -> -15.52 | F8: =B8 -> 22 | G8: =C8 -> 37.52
A9: 2022-07-01 | B9: 0 | C9: 0 | D9: =B9-C9 -> 0 | F9: =B9+F8 -> 22 | G9: =G8+C9 -> 37.52
A10: 2022-08-01 | B10: 0 | C10: 1.87 | D10: -1.87 | F10: 22 | G10: =G9+C10 -> 39.39
A11: 2022-09-01 | B11: 5 | C11: 61.41 | D11: -56.41 | F11: 27 | G11: 100.8
A12: 2022-10-01 | B12: 253 | C12: 342.03 | D12: -89.03 | F12: =B12+F11 -> 280 | G12: 442.83
A13: 2022-11-01 | B13: 865 | C13: 711.58 | D13: 153.42 | F13: =B13+F12 -> 1145 | G13: 1154.41
A14: 2022-12-01 | C14: 1054.69 | D14: -1054.69 | F14: 1145 | G14: 2209.1
A15: 2023-01-01 | C15: 1083.33 | D15: -1083.33 | F15: 1145 | G15: 3292.43
A16: 2023-02-01 | C16: 819.68 | D16: -819.68 | F16: 1145 | G16: 4112.11
A17: 2023-03-01 | C17: 620.3 | D17: -620.3 | F17: 1145 | G17: 4732.41
A18: 2023-04-01 | C18: 423.69 | D18: -423.69 | F18: 1145 | G18: 5156.1
A19: 2023-05-01 | C19: 196.8 | D19: -196.8 | F19: 1145 | G19: 5352.9
B20: =SUM(B8:B19) -> 1145 | C20: =SUM(G8:G19) -> 26667.52 | D20: =SUM(D8:D19) -> -4207.9

Sheet Exhibit 1.1
O31: ='Ex 1 HDD'!I3 -> DEU Variance Exhibit | P31: ='Ex 1 HDD'!I2 -> Docket No. 22-057-02 | Q31: ='Ex 1 HDD'!I1 -> Dominion Energy Utah
O32: 1.1

Sheet Exhibit 1.2
O31: ='Ex 1 HDD'!I3 -> DEU Variance Exhibit | P31: ='Ex 1 HDD'!I2 -> Docket No. 22-057-02 | Q31: ='Ex 1 HDD'!I1 -> Dominion Energy Utah
O32: 1.2

Sheet Exhibit 1.3
O31: ='Ex 1 HDD'!I3 -> DEU Variance Exhibit | P31: ='Ex 1 HDD'!I2 -> Docket No. 22-057-02 | Q31: ='Ex 1 HDD'!I1 -> Dominion Energy Utah
O32: 1.3

Sheet Ex 2 Clay Basin
A1: Clay Basin Ending Inventory (MDths)
A7: Month/Year | B7: Actual | C7: Normal | E7: Actual | F7: Actual/1000 | H7: Actual | I7: Normal
A8: 2022-06-01 | B8: =F8 -> 1571.062 | C8: 2789.907 | D8: =B8-C8 -> -1218.845 | E8: 1571062 | F8: =E8/1000 -> 1571.062 | H8: =F8 -> 1571.062 | I8: =C8 -> 2789.907
A9: 2022-07-01 | B9: =F9 -> 3832.058 | C9: 4555.274 | D9: -723.216 | E9: 3832058 | F9: =E9/1000 -> 3832.058 | H9: =H8+F9 -> 5403.12 | I9: =C9+I8 -> 7345.181
A10: 2022-08-01 | B10: 5408.257 | C10: 6242.428 | D10: -834.171 | E10: 5408257 | F10: 5408.257 | H10: =H9+F10 -> 10811.377 | I10: 13587.609
A11: 2022-09-01 | B11: 778.039 | C11: 8168.72 | D11: -7390.681 | E11: 778039 | F11: 778.039 | H11: 11589.416 | I11: =C11+I10 -> 21756.329
A12: 2022-10-01 | B12: 10327.441 | C12: 9745.574 | D12: 581.867 | E12: 10327441 | F12: 10327.441 | H12: 21916.857 | I12: 31501.903
A13: 2022-11-01 | B13: 9565.413 | C13: 9900.144 | D13: -334.731 | E13: 9565413 | F13: 9565.413 | H13: 31482.27 | I13: 41402.047
A14: 2022-12-01 | C14: 6490.094 | D14: -6490.094 | F14: 0 | H14: 31482.27 | I14: 47892.141
A15: 2023-01-01 | C15: 3080.045 | D15: -3080.045 | F15: 0 | H15: 31482.27 | I15: 50972.186
A16: 2023-02-01 | C16: 0 | D16: 0 | F16: 0 | H16: 31482.27 | I16: 50972.186
A17: 2023-03-01 | C17: 805.14 | D17: -805.14 | F17: 0 | H17: 31482.27 | I17: 51777.326
A18: 2023-04-01 | C18: 941.617 | D18: -941.617 | F18: 0 | H18: 31482.27 | I18: 52718.943
A19: 2023-05-01 | C19: 3359.617 | D19: -3359.617 | F19: 0 | H19: 31482.27 | I19: 56078.56

Sheet Ex 2 Aquifers
A1: Total Aquifer Storage Ending Inventory (MDths)
O4: 1082 | P4: 1106
H6: 1.055 | M6: Month/Year | N6: Month | O6: Inj | P6: With | Q6: Total
A7: Month/Year | B7: Actual | C7: Normal | E7: Actual | F7: IRP | H7: MCF | I7: DTH | J7: MDTH | Q7: 775.998
A8: ='Ex 1 HDD'!$A$8 -> 2022-06-01 | B8: =J8 -> 808.934 | C8: =Q8 -> 775.998 | D8: =B8-C8 -> 32.936 | E8: =B8 -> 808.934 | F8: =C8 -> 775.998 | H8: =I8/$H$6 -> 766762.0853 | I8: 808934 | J8: =I8/1000 -> 808.934 | M8: =A8 -> 2022-06-01 | N8: =Q7 -> 775.998 | O8: 0 | P8: 0 | Q8: =N8+O8-P8 -> 775.998
A9: ='Ex 1 HDD'!$A$9 -> 2022-07-01 | B9: =J9 -> 819.64 | C9: =Q9 -> 775.998 | D9: =B9-C9 -> 43.642 | E9: =B9+E8 -> 1628.574 | F9: =C9+F8 -> 1551.996 | H9: =I9/$H$6 -> 776909.9526 | I9: 819640 | J9: =I9/1000 -> 819.64 | M9: =A9 -> 2022-07-01 | N9: =Q8 -> 775.998 | O9: 0 | P9: 0 | Q9: 775.998
A10: ='Ex 1 HDD'!$A$10 -> 2022-08-01 | B10: 836.667 | C10: 775.998 | D10: =B10-C10 -> 60.669 | E10: =B10+E9 -> 2465.241 | F10: 2327.994 | H10: 793049.2891 | I10: 836667 | J10: 836.667 | M10: 2022-08-01 | N10: =Q9 -> 775.998 | O10: 0 | P10: 0 | Q10: 775.998
A11: ='Ex 1 HDD'!$A$11 -> 2022-09-01 | B11: =J11 -> 1136.966 | C11: =Q11 -> 881.498 | D11: =B11-C11 -> 255.468 | E11: =B11+E10 -> 3602.207 | F11: 3209.492 | H11: =I11/$H$6 -> 1077692.891 | I11: 1136966 | J11: =I11/1000 -> 1136.966 | M11: 2022-09-01 | N11: 775.998 | O11: 105.5 | P11: 0 | Q11: 881.498
A12: ='Ex 1 HDD'!$A12 -> 2022-10-01 | B12: 1377.735 | C12: 1339.298 | D12: 38.437 | E12: 4979.942 | F12: 4548.79 | H12: =I12/$H$6 -> 1305909.953 | I12: 1377735 | J12: =I12/1000 -> 1377.735 | M12: 2022-10-01 | N12: 881.498 | O12: 457.8 | P12: 0 | Q12: 1339.298
A13: ='Ex 1 HDD'!$A13 -> 2022-11-01 | B13: 1735.784 | C13: 1829.202 | D13: -93.418 | E13: 6715.726 | F13: 6377.992 | H13: 1645292.891 | I13: 1735784 | J13: 1735.784 | M13: 2022-11-01 | N13: 1339.298 | O13: 489.904 | P13: 0 | Q13: 1829.202
A14: ='Ex 1 HDD'!$A14 -> 2022-12-01 | D14: 0 | E14: 6715.726 | F14: 6377.992 | H14: =I14/$H$6 -> 0 | J14: 0 | M14: 2022-12-01 | N14: 1829.202 | O14: 99.166 | P14: 0 | Q14: 1928.368
A15: ='Ex 1 HDD'!$A15 -> 2023-01-01 | D15: 0 | E15: 6715.726 | F15: 6377.992 | H15: 0 | J15: 0 | M15: 2023-01-01 | N15: 1928.368 | O15: 0 | P15: 1005.044 | Q15: =N15+O15-P15 -> 923.324
A16: ='Ex 1 HDD'!$A16 -> 2023-02-01 | D16: 0 | E16: 6715.726 | F16: 6377.992 | H16: 0 | J16: =I16/1000 -> 0 | M16: 2023-02-01 | N16: 923.324 | O16: 361.11 | P16: 686.125 | Q16: 598.309
A17: ='Ex 1 HDD'!$A17 -> 2023-03-01 | D17: 0 | E17: 6715.726 | F17: 6377.992 | H17: 0 | J17: =I17/1000 -> 0 | M17: 2023-03-01 | N17: 598.309 | O17: 317.5 | P17: 112.125 | Q17: 803.684
A18: ='Ex 1 HDD'!$A18 -> 2023-04-01 | D18: 0 | E18: 6715.726 | F18: 6377.992 | H18: 0 | J18: =I18/1000 -> 0 | M18: 2023-04-01 | N18: 803.684 | O18: 0 | P18: 0 | Q18: 803.684
A19: ='Ex 1 HDD'!$A19 -> 2023-05-01 | D19: 0 | E19: 6715.726 | F19: 6377.992 | H19: 0 | J19: =I19/1000 -> 0 | M19: 2023-05-01 | N19: 803.684 | O19: 0 | P19: 0 | Q19: 803.684
O20: =SUM(O8:O19) -> 1830.98 | P20: =SUM(P8:P19) -> 1803.294

Sheet Ex 2 Spire Storage West (hidden)
O5: 1082 | P5: 1106
H6: 1000 | N6: Month | O6: Inj | P6: With | Q6: Total
A7: ='Ex 1 HDD'!A7 -> Month/Year | B7: Actual | C7: Normal | D7: Days | E7: Daily Demand | G7: Actual Dth | H7: MDth | J7: Actual | K7: Normal | Q7: 731
A8: ='Ex 1 HDD'!A8 -> 2022-06-01 | B8: =H8 -> 799.215 | C8: =Q8 -> 1072.73 | D8: =DAY(EOMONTH(A8,0)) -> 30 | E8: =C8/D8 -> 35.75766667 | G8: 799215 | H8: =G8/$H$6 -> 799.215 | J8: 949.736 | K8: =C8 -> 1072.73 | M8: =A8 -> 2022-06-01 | N8: =Q7 -> 731 | O8: 341.73 | P8: 0 | Q8: =N8+O8-P8 -> 1072.73
A9: ='Ex 1 HDD'!A9 -> 2022-07-01 | B9: =H9 -> 1151.344 | C9: =Q9 -> 1425.85 | D9: =DAY(EOMONTH(A9,0)) -> 31 | E9: =C9/D9 -> 45.99516129 | G9: 1151344 | H9: =G9/$H$6 -> 1151.344 | J9: =B9+J8 -> 2101.08 | K9: =C9+K8 -> 2498.58 | M9: =A9 -> 2022-07-01 | N9: =Q8 -> 1072.73 | O9: 353.12 | P9: 0 | Q9: 1425.85
A10: ='Ex 1 HDD'!A10 -> 2022-08-01 | B10: =H10 -> 1503.473 | C10: 1778.97 | D10: 31 | E10: 57.38612903 | G10: 1503473 | H10: 1503.473 | J10: 3604.553 | K10: 4277.55 | M10: 2022-08-01 | N10: =Q9 -> 1425.85 | O10: 353.12 | P10: 0 | Q10: 1778.97
A11: ='Ex 1 HDD'!A11 -> 2022-09-01 | B11: =H11 -> 1844.243 | C11: 2120.7 | D11: 30 | E11: 70.69 | G11: 1844243 | H11: 1844.243 | J11: 5448.796 | K11: 6398.25 | M11: 2022-09-01 | N11: 1778.97 | O11: 341.73 | P11: 0 | Q11: 2120.7
A12: ='Ex 1 HDD'!A12 -> 2022-10-01 | B12: 2052.456 | C12: 2473.819 | D12: 31 | E12: 79.8006129 | G12: 2052456 | H12: 2052.456 | J12: 7501.252 | K12: 8872.069 | M12: 2022-10-01 | N12: 2120.7 | O12: 353.119 | P12: 0 | Q12: 2473.819
A13: ='Ex 1 HDD'!A13 -> 2022-11-01 | B13: 1782.492 | C13: 2511.007 | D13: 30 | E13: 83.70023333 | G13: 1782492 | H13: 1782.492 | J13: 9283.744 | K13: 11383.076 | M13: 2022-11-01 | N13: 2473.819 | O13: 37.188 | P13: 0 | Q13: 2511.007
A14: ='Ex 1 HDD'!A14 -> 2022-12-01 | B14: 1267.892 | C14: 2003.007 | D14: 31 | E14: 64.61312903 | G14: 1267892 | H14: 1267.892 | J14: 10551.636 | K14: 13386.083 | M14: 2022-12-01 | N14: 2511.007 | O14: 0 | P14: 508 | Q14: 2003.007
A15: ='Ex 1 HDD'!A15 -> 2023-01-01 | B15: 763.667 | C15: 1488.407 | D15: 31 | E15: 48.01312903 | G15: 763667 | H15: 763.667 | J15: 11315.303 | K15: 14874.49 | M15: 2023-01-01 | N15: 2003.007 | O15: 0 | P15: 514.6 | Q15: 1488.407
A16: ='Ex 1 HDD'!A16 -> 2023-02-01 | B16: 398.467 | C16: 1023.607 | D16: 28 | E16: 36.55739286 | G16: 398467 | H16: 398.467 | J16: 11713.77 | K16: 15898.097 | M16: 2023-02-01 | N16: 1488.407 | O16: 0 | P16: 464.8 | Q16: 1023.607
A17: ='Ex 1 HDD'!A17 -> 2023-03-01 | B17: =G17 -> 0 | C17: 509.007 | D17: 31 | E17: 16.41958065 | H17: 0 | J17: 11713.77 | K17: 16407.104 | M17: 2023-03-01 | N17: 1023.607 | O17: 0 | P17: 514.6 | Q17: 509.007
A18: ='Ex 1 HDD'!A18 -> 2023-04-01 | B18: 0 | C18: 11.007 | D18: 30 | E18: 0.3669 | H18: 0 | J18: 11713.77 | K18: 16418.111 | M18: 2023-04-01 | N18: 509.007 | O18: 0 | P18: 498 | Q18: 11.007
A19: ='Ex 1 HDD'!A19 -> 2023-05-01 | B19: 0 | C19: 11.007 | D19: 31 | E19: 0.3550645161 | H19: 0 | J19: 11713.77 | K19: 16429.118 | M19: 2023-05-01 | N19: 11.007 | O19: 0 | P19: 0 | Q19: 11.007
O21: =SUM(O8:O20) -> 1780.007 | P21: =SUM(O8:O19) -> 1780.007 | Q21: =SUM(P8:P19) -> 2500

Sheet Exhibit 2.1
O31: ='Exhibit 1.1'!O31 -> DEU Variance Exhibit | P31: ='Exhibit 1.1'!P31 -> Docket No. 22-057-02 | Q31: ='Exhibit 1.1'!Q31 -> Dominion Energy Utah
O32: 2.1

Sheet Exhibit 2.2
O31: ='Exhibit 1.1'!O31 -> DEU Variance Exhibit | P31: ='Exhibit 1.1'!P31 -> Docket No. 22-057-02 | Q31: ='Exhibit 1.1'!Q31 -> Dominion Energy Utah
O32: 2.2

Sheet Exhibit 2.3 (hidden)
O31: ='Exhibit 1.1'!O31 -> DEU Variance Exhibit | P31: ='Exhibit 1.1'!P31 -> Docket No. 22-057-02 | Q31: ='Exhibit 1.1'!Q31 -> Dominion Energy Utah
O32: 2.3

Sheet Exhibit 2.3
O31: ='Exhibit 1.1'!O31 -> DEU Variance Exhibit | P31: ='Exhibit 1.1'!P31 -> Docket No. 22-057-02 | Q31: ='Exhibit 1.1'!Q31 -> Dominion Energy Utah
O32: 2.3

Sheet Exhibit 2.4
O31: ='Exhibit 1.1'!O31 -> DEU Variance Exhibit | P31: ='Exhibit 1.1'!P31 -> Docket No. 22-057-02 | Q31: ='Exhibit 1.1'!Q31 -> Dominion Energy Utah
O32: 2.4

Sheet Exhibit 2.6 (hidden)
O31: ='Exhibit 1.1'!O31 -> DEU Variance Exhibit | P31: ='Exhibit 1.1'!P31 -> Docket No. 22-057-02 | Q31: ='Exhibit 1.1'!Q31 -> Dominion Energy Utah
O32: 2.6

Sheet Exhibit Firm Sales Volume
A1: Demand
G6: Cumulative
A7: ='Ex 1 HDD'!A7 -> Month/Year | B7: Actual | C7: IRP Normal | D7: Days | E7: Daily Demand | G7: Actual | H7: IRP Normal
A8: 2022-06-01 | B8: 2802.935037 | C8: 3129.067 | D8: =DAY(EOMONTH(A8,0)) -> 30 | E8: =C8/D8 -> 104.3022333 | G8: =B8 -> 2802.935037 | H8: =C8 -> 3129.067
A9: 2022-07-01 | B9: 2610.735299 | C9: 2605.136 | D9: =DAY(EOMONTH(A9,0)) -> 31 | E9: =C9/D9 -> 84.03664516 | G9: =B9+G8 -> 5413.670336 | H9: =C9+H8 -> 5734.203
A10: 2022-08-01 | B10: 2511.353261 | C10: 2567.176 | D10: 31 | E10: 82.81212903 | G10: =B10+G9 -> 7925.023597 | H10: =C10+H9 -> 8301.379
A11: 2022-09-01 | B11: 2720.392744 | C11: 3028.82 | D11: 30 | E11: 100.9606667 | G11: 10645.41634 | H11: 11330.199
A12: 2022-10-01 | B12: 5519.610629 | C12: 7331.214 | D12: 31 | E12: 236.4907742 | G12: 16165.02697 | H12: 18661.413
A13: 2022-11-01 | B13: 16427.41807 | C13: 12659.934 | D13: 30 | E13: 421.9978 | G13: 32592.44504 | H13: 31321.347
A14: 2022-12-01 | B14: 0 | C14: 19257.5 | D14: 31 | E14: 621.2096774 | G14: 32592.44504 | H14: 50578.847
A15: 2023-01-01 | B15: 0 | C15: 21030.834 | D15: 31 | E15: 678.414 | G15: 32592.44504 | H15: 71609.681
A16: 2023-02-01 | B16: 0 | C16: 17592.298 | D16: 28 | E16: 628.2963571 | G16: 32592.44504 | H16: 89201.979
A17: 2023-03-01 | B17: 0 | C17: 13834.956 | D17: 31 | E17: 446.2889032 | G17: 32592.44504 | H17: 103036.935
A18: 2023-04-01 | B18: 0 | C18: 9305.893 | D18: 30 | E18: 310.1964333 | G18: 32592.44504 | H18: 112342.828
A19: 2023-05-01 | B19: 0 | C19: 5581.418 | D19: 31 | E19: 180.0457419 | G19: 32592.44504 | H19: 117924.246
C20: =SUM(C8:C19) -> 117924.246

Sheet Exhibit 3.1
O31: DEU Variance Exhibit | P31: Docket No. 22-057-02 | Q31: Dominion Energy Utah
O32: 3.1

Sheet Exhibit 3.2
O31: DEU Variance Exhibit | P31: Docket No. 22-057-02 | Q31: Dominion Energy Utah
O32: 3.2

Sheet Exhibit 3.3
O31: DEU Variance Exhibit | P31: Docket No. 22-057-02 | Q31: Dominion Energy Utah
O32: 3.3

Sheet Exhibit 3.4
H1: Dominion Energy Utah
G2: Docket No. 22-057-02
H3: DEU Variance Exhibit 3.4
B6: IRP Variance
B8: Actual Results
C9: 2022-09-01 | E9: 2022-10-01 | G9: 2022-11-01
B10: SUPPLY | C10: Actual | D10: IRP | E10: Actual | F10: IRP | G10: Actual | H10: IRP
A11: 1 | B11: Cost of Service Prod (Mbtu) | C11: 4399.604 | D11: 4056.794 | E11: 4894.548 | F11: 4129.595 | G11: 4878.396 | H11: 5358.426
A12: =A11+1 -> 2 | B12: Purchases (Mbtu) | C12: 1317.673 | D12: 1212.387 | E12: 5048.693 | F12: 5386.215 | G12: 12361.26 | H12: 8236.698
A13: =A12+1 -> 3 | B13: Clay Basin With (Mbtu) | C13: 0 | D13: 0 | E13: 70.564 | F13: 0 | G13: 1637.124 | H13: 0
A14: =A13+1 -> 4 | B14: Acquifers With (Mbtu) | C14: 1.59 | D14: 0 | E14: 5.489 | F14: 0 | G14: 2.752 | H14: 0
A15: =A14+1 -> 5 | B15: LNG With (Mbtu) | C15: 0 | D15: 0 | E15: 0 | F15: 0 | G15: 0 | H15: 0
A16: =A15+1 -> 6 | B16: Off-System | C16: 39.43897 | D16: 38.396 | E16: 14.89471 | F16: 39.676 | G16: 35.80119 | H16: 38.396
A18: =A16+1 -> 7 | B18: Total Supply | C18: 5758.30597 | D18: 5307.577 | E18: 10034.18871 | F18: 9555.486 | G18: 18915.33319 | H18: 13633.52
B20: DEMAND
A21: =A18+1 -> 8 | B21: Firm Sales (Mbtu) | C21: 2720.392744 | D21: 2862.046 | E21: 5519.610629 | F21: 6972.264 | G21: 16427.41807 | H21: 12349.133
A22: =A21+1 -> 9 | B22: Interruptible Sales (Mbtu) | C22: 14.795463 | D22: 14.693 | E22: 22.331415 | F22: 28.889 | G22: 45.50246 | H22: 39.433
A23: =A22+1 -> 10 | B23: Clay Basin Inj (Mbtu) | C23: 2369.786 | D23: 1883.516 | E23: 1689.98 | F23: 1576.854 | G23: 625.133 | H23: 154.423
A24: =A23+1 -> 11 | B24: Acquifers Inj (Mbtu) | C24: 359.869 | D24: 105.5 | E24: 253.951 | F24: 459.8 | G24: 369.96 | H24: 487.904
A25: =A24+1 -> 12 | B25: LNG Inj (Mbtu) | C25: 0 | D25: 270 | E25: 0 | F25: 279 | G25: 0 | H25: 270
A26: 13 | B26: Off-System | C26: 39.43897 | D26: 35.682 | E26: 14.89471 | F26: 36.88 | G26: 35.80119 | H26: 35.713
A27: 14 | B27: Fuel | C27: 90.267 | D27: 120.058 | E27: 74 | F27: 162.662 | G27: 90.497 | H27: 227.663
A28: =A27+1 -> 15 | B28: Company Use / L&U | C28: 163.756793 | D28: 16.082 | E28: 2459.420956 | F28: 39.137 | G28: 1321.021471 | H28: 69.251
A30: =A28+1 -> 16 | B30: Total Demand | C30: 5758.30597 | D30: 5307.577 | E30: 10034.18871 | F30: 9555.486 | G30: 18915.33319 | H30: 13633.52
C31: 0 | D31: 0 | E31: 0 | F31: 0 | G31: 0 | H31: 0
A33: =A30+1 -> 17 | B33: Clay Basin Fuel Usage Adjustment | C33: -0.004 | D33: 0 | E33: -0.014 | F33: 0 | G33: -0.037 | H33: 0
A34: =A33+1 -> 18 | B34: Clay Basin Transfers | C34: 0 | D34: 0 | E34: 930 | F34: 0 | G34: 250 | H34: 0
A35: 19 | B35: Acquifers Fuel Usage Adjustment | C35: -57.98 | D35: 0 | E35: -7.693 | F35: 0 | G35: -9.159 | H35: 0
A36: 20 | B36: Acquifers Transfers | C36: 0 | D36: 0 | E36: 0 | F36: 0 | G36: 0 | H36: 0
A37: 21 | B37: Clay Basin Current Bal | C37: 7778.039 | D37: 11423.148 | E37: 10327.441 | F37: 13000.002 | G37: 9565.413 | H37: 12157.641
A38: 22 | B38: Acquifers Current Bal | C38: 1136.966 | D38: 836.7939939 | E38: 1377.735 | F38: 1307.993994 | G38: 1735.784 | H38: 1788.179994
A39: 23 | B39: LNG Current Bal | C39: 0 | E39: 0 | G39: 0
A41: =+A39+1 -> 24 | B41: Purchases($/Dth) | C41: 6.481656758 | D41: 6.883992389 | E41: 5.120375052 | F41: 5.502895952 | G41: 7.719488657 | H41: 9.927230408
A42: =A41+1 -> 25 | B42: Purchases $ (000) | C42: 8540.704105 | D42: 8346.06288 | E42: 25851.20168 | F42: 29639.78072 | G42: 95422.60636 | H42: 81767.59885
B45: Variances
A46: =A42+1 -> 26 | B46: Cost of service volumes | C46: 342.81 | D46: 0 | E46: 764.953 | F46: 0 | G46: 0 | H46: 0
A47: =A46+1 -> 27 | B47: Purchase volumes | C47: 105.286 | D47: 0 | E47: 0 | F47: 0 | G47: 4124.562 | H47: 0
A48: 28 | B48: Purchase $ Act over (under) IRP | C48: 194.6412247 | D48: 0 | E48: 0 | F48: -3788.579041 | G48: 13655.00751 | H48: 0
A49: 29 | B49: Purchase Variance | C49: 724.7880227 | D49: 0 | E49: 0 | F49: -1857.348448 | G49: 40945.47731 | H49: 0
A50: 30 | B50: $ Variance | C50: -530.146798 | D50: 0 | E50: 0 | F50: -1931.230594 | G50: -27290.4698 | H50: 0
A51: 31 | B51: Check | C51: 0 | D51: 0 | E51: 0 | F51: 0 | G51: 0 | H51: 0
A52: 32 | B52: Quarter Variance | G52: 10061.06969
A53: 33 | B53: Purchase Variance | G53: 39812.91688
A54: 34 | B54: $ Variance | G54: -29751.84719
A55: 35 | B55: Check | G55: 0

Sheet Ex 4 Purchase Gas
A1: Purchase Gas Variance (Brady Included) MDths
G6: Cumulative
A7: Month/Year | B7: Actual | C7: IRP Normal | E7: Month/Year | F7: Actual | G7: IRP Normal | I7: Month/Year | J7: DTHS | K7: MDTHS | L7: $'S | M7: $1,000'S
A8: ='Ex 1 HDD'!A8 -> 2022-06-01 | B8: =K8 -> 483.77 | C8: 619.593 | E8: =A8 -> 2022-06-01 | F8: =K8 -> 483.77 | G8: =C8 -> 619.593 | I8: =A8 -> 2022-06-01 | J8: 483770 | K8: =J8/1000 -> 483.77 | L8: 3039770.37 | M8: =L8/1000 -> 3039.77037
A9: ='Ex 1 HDD'!A9 -> 2022-07-01 | B9: =K9 -> 252.061 | C9: 0 | E9: 2022-07-01 | F9: =F8+K9 -> 735.831 | G9: =G8+C9 -> 619.593 | I9: 2022-07-01 | J9: 252061 | K9: =J9/1000 -> 252.061 | L9: 1510942.29 | M9: 1510.94229
A10: ='Ex 1 HDD'!A10 -> 2022-08-01 | B10: 276.967 | C10: 0 | E10: 2022-08-01 | F10: 1012.798 | G10: 619.593 | I10: 2022-08-01 | J10: 276967 | K10: =J10/1000 -> 276.967 | L10: 2379539.87 | M10: 2379.53987
A11: ='Ex 1 HDD'!A11 -> 2022-09-01 | B11: 1317.673 | C11: 1212.387 | E11: 2022-09-01 | F11: 2330.471 | G11: 1831.98 | I11: 2022-09-01 | J11: 1317673 | K11: 1317.673 | L11: 8540704.105 | M11: 8540.704105
A12: ='Ex 1 HDD'!A12 -> 2022-10-01 | B12: 5048.693 | C12: 5386.215 | E12: 2022-10-01 | F12: 7379.164 | G12: 7218.195 | I12: 2022-10-01 | J12: 5048693 | K12: 5048.693 | L12: 25851201.68 | M12: 25851.20168
A13: ='Ex 1 HDD'!A13 -> 2022-11-01 | B13: 12361.26 | C13: 8236.698 | E13: 2022-11-01 | F13: 19740.424 | G13: 15454.893 | I13: 2022-11-01 | J13: 12361260 | K13: 12361.26 | L13: 95422606.36 | M13: 95422.60636
A14: ='Ex 1 HDD'!A14 -> 2022-12-01 | C14: 11121.36 | E14: 2022-12-01 | F14: 19740.424 | G14: 26576.253 | I14: 2022-12-01 | K14: 0 | M14: 0
A15: ='Ex 1 HDD'!A15 -> 2023-01-01 | C15: 11959.41 | E15: 2023-01-01 | F15: 19740.424 | G15: 38535.663 | I15: 2023-01-01 | K15: 0 | M15: 0
A16: ='Ex 1 HDD'!A16 -> 2023-02-01 | C16: 9791.591 | E16: 2023-02-01 | F16: 19740.424 | G16: 48327.254 | I16: 2023-02-01 | K16: 0 | M16: 0
A17: ='Ex 1 HDD'!A17 -> 2023-03-01 | C17: 8732.722 | E17: 2023-03-01 | F17: 19740.424 | G17: 57059.976 | I17: 2023-03-01 | K17: 0 | M17: 0
A18: ='Ex 1 HDD'!A18 -> 2023-04-01 | C18: 4825.148 | E18: 2023-04-01 | F18: 19740.424 | G18: =G17+C18 -> 61885.124 | I18: 2023-04-01 | K18: 0 | M18: 0
A19: ='Ex 1 HDD'!A19 -> 2023-05-01 | C19: 3597.914 | E19: 2023-05-01 | F19: 19740.424 | G19: 65483.038 | I19: 2023-05-01 | K19: 0 | M19: 0
B21: =SUM(B8:B19) -> 19740.424 | C21: =SUM(C8:C20) -> 65483.038

Sheet Exhibit 4.1
O31: ='Exhibit 1.1'!O31 -> DEU Variance Exhibit | P31: Docket No. 22-057-02 | Q31: ='Exhibit 1.1'!Q31 -> Dominion Energy Utah
O32: 4.1

Sheet Exhibit 4.2
O30: ='Exhibit 1.1'!O31 -> DEU Variance Exhibit | P30: Docket No. 22-057-02 | Q30: ='Exhibit 1.1'!Q31 -> Dominion Energy Utah
O31: 4.2

Sheet Exhibit 4.3
N31: ='Exhibit 1.1'!O31 -> DEU Variance Exhibit | O31: Docket No. 22-057-02 | P31: ='Exhibit 1.1'!Q31 -> Dominion Energy Utah
O32: 4.3

Sheet Ex 5 Purchase Gas Cost
A1: Purchase Gas Cost Variance ($1,000's)
E6: Cumulative
A7: Month/Year | B7: Actual | C7: Normal | E7: Actual | F7: Normal
A8: ='Ex 1 HDD'!A8 -> 2022-06-01 | B8: ='Ex 4 Purchase Gas'!M8 -> 3039.77037 | C8: 3457.505 | E8: =B8 -> 3039.77037 | F8: =C8 -> 3457.505
A9: ='Ex 1 HDD'!A9 -> 2022-07-01 | B9: ='Ex 4 Purchase Gas'!M9 -> 1510.94229 | C9: 0 | E9: =E8+B9 -> 4550.71266 | F9: =C9+F8 -> 3457.505
A10: ='Ex 1 HDD'!A10 -> 2022-08-01 | B10: ='Ex 4 Purchase Gas'!M10 -> 2379.53987 | C10: 0 | E10: 6930.25253 | F10: =C10+F9 -> 3457.505
A11: ='Ex 1 HDD'!A11 -> 2022-09-01 | B11: ='Ex 4 Purchase Gas'!M11 -> 8540.704105 | C11: 6266.099 | E11: 15470.95663 | F11: 9723.604
A12: ='Ex 1 HDD'!A12 -> 2022-10-01 | B12: ='Ex 4 Purchase Gas'!M12 -> 25851.20168 | C12: 27103.54 | E12: 41322.15831 | F12: 36827.144
A13: ='Ex 1 HDD'!A13 -> 2022-11-01 | B13: ='Ex 4 Purchase Gas'!M13 -> 95422.60636 | C13: 46541.06 | E13: 136744.7647 | F13: 83368.204
A14: ='Ex 1 HDD'!A14 -> 2022-12-01 | C14: 59564.76 | E14: 136744.7647 | F14: 142932.964
A15: ='Ex 1 HDD'!A15 -> 2023-01-01 | C15: 72886.91 | E15: 136744.7647 | F15: 215819.874
A16: ='Ex 1 HDD'!A16 -> 2023-02-01 | C16: 52464.89 | E16: 136744.7647 | F16: 268284.764
A17: ='Ex 1 HDD'!A17 -> 2023-03-01 | C17: 41274.95 | E17: 136744.7647 | F17: 309559.714
A18: ='Ex 1 HDD'!A18 -> 2023-04-01 | C18: 17458.99 | E18: 136744.7647 | F18: 327018.704
A19: ='Ex 1 HDD'!A19 -> 2023-05-01 | C19: 12111 | E19: 136744.7647 | F19: 339129.704
C21: =SUM(C8:C19) -> 339129.704

Sheet Exhibit 5.1
N31: ='Exhibit 1.1'!O31 -> DEU Variance Exhibit | O31: Docket No. 22-057-02 | P31: ='Exhibit 1.1'!Q31 -> Dominion Energy Utah
N32: 5.1

Sheet Exhibit 5.2
O31: ='Exhibit 1.1'!O31 -> DEU Variance Exhibit | P31: Docket No. 22-057-02 | Q31: ='Exhibit 1.1'!Q31 -> Dominion Energy Utah
O32: 5.2

Sheet Exhibit 5.3
O31: ='Exhibit 1.1'!O31 -> DEU Variance Exhibit | P31: Docket No. 22-057-02 | Q31: ='Exhibit 1.1'!Q31 -> Dominion Energy Utah
O32: 5.3

Sheet Ex 6 Purch Gas Unit Cost
A1: Purchase Gas Unit Cost Variance ($1,000's)
E6: Actual | F6: Actual | G6: Actual | I6: Normal | J6: Normal | K6: Normal
A7: Month/Year | B7: Actual $/Dth | C7: Normal $/Dth | E7: Dth | F7: Cost | G7: $/Dth | I7: Dth | J7: Cost | K7: $/Dth | M7: May Forward Strip
A8: ='Ex 1 HDD'!A8 -> 2022-06-01 | B8: =G8 -> 6.283503256 | C8: =K8 -> 5.580284154 | E8: ='Ex 4 Purchase Gas'!B8 -> 483.77 | F8: ='Ex 4 Purchase Gas'!M8 -> 3039.77037 | G8: =IFERROR(F8/E8,0) -> 6.283503256 | I8: ='Ex 4 Purchase Gas'!C8 -> 619.593 | J8: ='Ex 5 Purchase Gas Cost'!C8 -> 3457.505 | K8: =IFERROR(J8/I8,0) -> 5.580284154 | M8: 5.7
A9: ='Ex 1 HDD'!A9 -> 2022-07-01 | B9: 5.994351724 | C9: =K9 -> 6.05 | E9: ='Ex 4 Purchase Gas'!B9 -> 252.061 | F9: ='Ex 4 Purchase Gas'!M9 -> 1510.94229 | G9: =IFERROR(F9/E9,0) -> 5.994351724 | I9: ='Ex 4 Purchase Gas'!C9 -> 0 | J9: ='Ex 5 Purchase Gas Cost'!C9 -> 0 | K9: 6.05 | M9: 6.05
A10: ='Ex 1 HDD'!A10 -> 2022-08-01 | B10: 8.591420169 | C10: 6.18 | E10: ='Ex 4 Purchase Gas'!B10 -> 276.967 | F10: ='Ex 4 Purchase Gas'!M10 -> 2379.53987 | G10: 8.591420169 | I10: ='Ex 4 Purchase Gas'!C10 -> 0 | J10: ='Ex 5 Purchase Gas Cost'!C10 -> 0 | K10: 6.18 | M10: 6.18
A11: ='Ex 1 HDD'!A11 -> 2022-09-01 | B11: 6.481656758 | C11: =K11 -> 5.168398374 | E11: ='Ex 4 Purchase Gas'!B11 -> 1317.673 | F11: ='Ex 4 Purchase Gas'!M11 -> 8540.704105 | G11: 6.481656758 | I11: ='Ex 4 Purchase Gas'!C11 -> 1212.387 | J11: ='Ex 5 Purchase Gas Cost'!C11 -> 6266.099 | K11: =IFERROR(J11/I11,0) -> 5.168398374 | M11: 6.02
A12: ='Ex 1 HDD'!A12 -> 2022-10-01 | B12: 5.120375052 | C12: =K12 -> 5.032019702 | E12: ='Ex 4 Purchase Gas'!B12 -> 5048.693 | F12: ='Ex 4 Purchase Gas'!M12 -> 25851.20168 | G12: 5.120375052 | I12: ='Ex 4 Purchase Gas'!C12 -> 5386.215 | J12: ='Ex 5 Purchase Gas Cost'!C12 -> 27103.54 | K12: 5.032019702 | M12: 5.27
A13: ='Ex 1 HDD'!A13 -> 2022-11-01 | B13: 7.719488657 | C13: =K13 -> 5.650451188 | E13: ='Ex 4 Purchase Gas'!B13 -> 12361.26 | F13: ='Ex 4 Purchase Gas'!M13 -> 95422.60636 | G13: 7.719488657 | I13: ='Ex 4 Purchase Gas'!C13 -> 8236.698 | J13: ='Ex 5 Purchase Gas Cost'!C13 -> 46541.06 | K13: =IFERROR(J13/I13,0) -> 5.650451188 | M13: 5.89
A14: ='Ex 1 HDD'!A14 -> 2022-12-01 | B14: 0 | C14: 5.355888129 | E14: ='Ex 4 Purchase Gas'!B14 -> 0 | F14: ='Ex 4 Purchase Gas'!M14 -> 0 | G14: 0 | I14: ='Ex 4 Purchase Gas'!C14 -> 11121.36 | J14: ='Ex 5 Purchase Gas Cost'!C14 -> 59564.76 | K14: 5.355888129 | M14: 6.63
A15: ='Ex 1 HDD'!A15 -> 2023-01-01 | B15: 0 | C15: 6.094523894 | E15: ='Ex 4 Purchase Gas'!B15 -> 0 | F15: ='Ex 4 Purchase Gas'!M15 -> 0 | G15: 0 | I15: ='Ex 4 Purchase Gas'!C15 -> 11959.41 | J15: ='Ex 5 Purchase Gas Cost'!C15 -> 72886.91 | K15: 6.094523894 | M15: 7.15
A16: ='Ex 1 HDD'!A16 -> 2023-02-01 | B16: 0 | C16: 5.358157832 | E16: ='Ex 4 Purchase Gas'!B16 -> 0 | F16: ='Ex 4 Purchase Gas'!M16 -> 0 | G16: 0 | I16: ='Ex 4 Purchase Gas'!C16 -> 9791.591 | J16: ='Ex 5 Purchase Gas Cost'!C16 -> 52464.89 | K16: 5.358157832 | M16: 6.42
A17: ='Ex 1 HDD'!A17 -> 2023-03-01 | B17: 0 | C17: 4.726470166 | E17: ='Ex 4 Purchase Gas'!B17 -> 0 | F17: ='Ex 4 Purchase Gas'!M17 -> 0 | G17: 0 | I17: ='Ex 4 Purchase Gas'!C17 -> 8732.722 | J17: ='Ex 5 Purchase Gas Cost'!C17 -> 41274.95 | K17: 4.726470166 | M17: 4.91
A18: ='Ex 1 HDD'!A18 -> 2023-04-01 | B18: 0 | C18: 3.618332536 | E18: ='Ex 4 Purchase Gas'!B18 -> 0 | F18: ='Ex 4 Purchase Gas'!M18 -> 0 | G18: 0 | I18: ='Ex 4 Purchase Gas'!C18 -> 4825.148 | J18: ='Ex 5 Purchase Gas Cost'!C18 -> 17458.99 | K18: 3.618332536 | M18: 3.79
A19: ='Ex 1 HDD'!A19 -> 2023-05-01 | B19: 0 | C19: 3.366117145 | E19: ='Ex 4 Purchase Gas'!B19 -> 0 | F19: ='Ex 4 Purchase Gas'!M19 -> 0 | G19: 0 | I19: ='Ex 4 Purchase Gas'!C19 -> 3597.914 | J19: ='Ex 5 Purchase Gas Cost'!C19 -> 12111 | K19: 3.366117145 | M19: 3.49
A47: 2017-10-26 | B47: Unit Cost per Decatherm | C47: The Purchase Gas Unit Cost is usually a calculated value. That value is derived from purchase dollars divided by purchase decatherms. Columns I - K show those decatherms, costs and calculated Unit costs. In the unusual case of summer 2017 the model used no spot gas during the summer and so incurred zero purchased volumes and zero associated costs making the Unit cost also zero. If purchase volumes had been incurred then the question arrises as to what value should be used as the "model" unit cost value. - Zero could have been reasonably used because the model had no volumes or costs, even though the actual usage may have had volumes. (In this case it did not.) - The May forward strip could have been used because that was the best guess for monthly prices at the time the model was created - Some actual value from each month could have also been used as a filler.

Sheet Exhibit 6.1
O31: ='Exhibit 1.1'!O31 -> DEU Variance Exhibit | P31: Docket No. 22-057-02 | Q31: ='Exhibit 1.1'!Q31 -> Dominion Energy Utah
O32: 6.1

Sheet Exhibit 6.2
O31: ='Exhibit 1.1'!O31 -> DEU Variance Exhibit | P31: Docket No. 22-057-02 | Q31: ='Exhibit 1.1'!Q31 -> Dominion Energy Utah
O32: 6.2

Sheet Ex 7 Co. Owned Gas
A1: Cost-of-Service Gas Variance (MDths)
H6: Cumulative
A7: Month/Year | B7: Actual | C7: Normal | D7: Full Production | E7: Shut-in Est. Month | F7: Shut-in Daily | H7: Actual | I7: Normal | K7: Days in Mo. | L7: Dthms | M7: Dthms/Day
A8: ='Ex 1 HDD'!A8 -> 2022-06-01 | B8: ='Company Nom Groups'!S120 -> 4510.212 | C8: ='Company Nom Groups'!B129 -> 4454.94 | D8: ='Company Nom Groups'!B135 -> 4459.698914 | E8: =D8-C8 -> 4.758914466 | F8: =(E8/30)*1000 -> 158.6304822 | H8: =B8 -> 4510.212 | I8: =C8 -> 4454.94 | K8: =DAY(EOMONTH(A8,0)) -> 30 | L8: =C8 -> 4454.94 | M8: =L8/K8 -> 148.498 | Q8: 5754.478384
A9: ='Ex 1 HDD'!A9 -> 2022-07-01 | B9: ='Company Nom Groups'!W120 -> 4737.195 | C9: ='Company Nom Groups'!C129 -> 4482.04 | D9: ='Company Nom Groups'!C135 -> 4486.926486 | E9: 4.88648589 | F9: =(E9/30)*1000 -> 162.882863 | H9: =H8+B9 -> 9247.407 | I9: =I8+C9 -> 8936.98 | K9: =DAY(EOMONTH(A9,0)) -> 31 | L9: =C9 -> 4482.04 | M9: =L9/K9 -> 144.5819355 | Q9: 5867.413019
A10: ='Ex 1 HDD'!A10 -> 2022-08-01 | B10: ='Company Nom Groups'!AA120 -> 4406.231 | C10: ='Company Nom Groups'!D129 -> 4411.195 | D10: ='Company Nom Groups'!D135 -> 4416.054833 | E10: 4.85983283 | F10: 161.9944277 | H10: 13653.638 | I10: 13348.175 | K10: 31 | L10: 4411.195 | M10: 142.2966129 | Q10: 5986.085205
A11: ='Ex 1 HDD'!A11 -> 2022-09-01 | B11: ='Company Nom Groups'!AK120 -> 4399.604 | C11: ='Company Nom Groups'!E129 -> 4056.795 | D11: ='Company Nom Groups'!E135 -> 4061.46664 | E11: 4.671640195 | F11: 155.7213398 | H11: 18053.242 | I11: 17404.97 | K11: 30 | L11: 4056.795 | M11: 135.2265 | Q11: 5618.719149
A12: ='Ex 1 HDD'!A12 -> 2022-10-01 | B12: ='Company Nom Groups'!AO120 -> 4894.548 | C12: ='Company Nom Groups'!F129 -> 4129.596 | D12: ='Company Nom Groups'!F135 -> 4134.398681 | E12: 4.80268149 | F12: 160.089383 | H12: 22947.79 | I12: 21534.566 | K12: 31 | L12: 4129.596 | M12: 133.2127742 | Q12: 5665.433802
A13: ='Ex 1 HDD'!A13 -> 2022-11-01 | B13: ='Company Nom Groups'!AS120 -> 4878.396 | C13: ='Company Nom Groups'!G129 -> 5358.427 | D13: ='Company Nom Groups'!G135 -> 5363.046602 | E13: 4.619601688 | F13: 153.9867229 | H13: 27826.186 | I13: 26892.993 | K13: 30 | L13: 5358.427 | M13: 178.6142333 | Q13: 5366.261282
A14: ='Ex 1 HDD'!A14 -> 2022-12-01 | C14: ='Company Nom Groups'!H129 -> 5247.635 | D14: ='Company Nom Groups'!H135 -> 5252.377748 | E14: 4.742747685 | F14: 158.0915895 | H14: 27826.186 | I14: 32140.628 | K14: 31 | L14: 5247.635 | M14: 169.2785484 | Q14: 5567.876643
A15: ='Ex 1 HDD'!A15 -> 2023-01-01 | C15: ='Company Nom Groups'!I129 -> 5052.228 | D15: ='Company Nom Groups'!I135 -> 5056.944163 | E15: 4.716163382 | F15: 157.2054461 | H15: 27826.186 | I15: 37192.856 | K15: 31 | L15: 5052.228 | M15: 162.9750968 | Q15: 5438.795676
A16: ='Ex 1 HDD'!A16 -> 2023-02-01 | C16: ='Company Nom Groups'!J129 -> 4426.493 | D16: ='Company Nom Groups'!J135 -> 4430.727103 | E16: 4.23410253 | F16: 141.136751 | H16: 27826.186 | I16: 41619.349 | K16: 28 | L16: 4426.493 | M16: 158.0890357 | Q16: 5101.590072
A17: ='Ex 1 HDD'!A17 -> 2023-03-01 | C17: ='Company Nom Groups'!K129 -> 4780.264 | D17: ='Company Nom Groups'!K135 -> 4784.927759 | E17: 4.663759092 | F17: 155.4586364 | H17: 27826.186 | I17: 46399.613 | K17: 31 | L17: 4780.264 | M17: 154.2020645 | Q17: 5326.091886
A18: ='Ex 1 HDD'!A18 -> 2023-04-01 | C18: ='Company Nom Groups'!L129 -> 4524.564 | D18: ='Company Nom Groups'!L135 -> 4529.049318 | E18: 4.485318389 | F18: 149.510613 | H18: 27826.186 | I18: 50924.177 | K18: 30 | L18: 4524.564 | M18: 150.8188 | Q18: 5051.585887
A19: ='Ex 1 HDD'!A19 -> 2023-05-01 | C19: ='Company Nom Groups'!M129 -> 4577.208 | D19: ='Company Nom Groups'!M135 -> 4581.815263 | E19: 4.607263447 | F19: =(E19/30)*1000 -> 153.5754482 | H19: 27826.186 | I19: 55501.385 | K19: 31 | L19: 4577.208 | M19: 147.651871 | Q19: 5126.305828
B21: =SUM(B8:B19) -> 27826.186 | C21: =SUM(C8:C19) -> 55501.385 | D21: =SUM(D8:D19) -> 55557.43351

Sheet Exhibit 7.1
O32: ='Exhibit 1.1'!O31 -> DEU Variance Exhibit | P32: Docket No. 22-057-02 | Q32: ='Exhibit 1.1'!Q31 -> Dominion Energy Utah
O33: 7.1

Sheet Exhibit 7.2
O31: ='Exhibit 1.1'!O31 -> DEU Variance Exhibit | P31: Docket No. 22-057-02 | Q31: ='Exhibit 1.1'!Q31 -> Dominion Energy Utah
O32: 7.2

Sheet Exhibit 7.3
O31: ='Exhibit 1.1'!O31 -> DEU Variance Exhibit | P31: Docket No. 22-057-02 | Q31: ='Exhibit 1.1'!Q31 -> Dominion Energy Utah
O32: 7.3

Sheet Ex 8 New Drill
A1: Isolated New Drill Component (MDths)
J6: Cumulative | L6: Cumulative
A7: Month/Year | B7: ND Actual | C7: ND Normal | D7: Legacy Actual | E7: Legacy Normal | H7: Prod Actual | I7: Prod Normal | J7: ND Actual | K7: ND Normal | L7: =D7 -> Legacy Actual | M7: =E7 -> Legacy Normal
A8: ='Ex 1 HDD'!A8 -> 2022-06-01 | B8: =SUM('Company Nom Groups'!S91:S93,'Company Nom Groups'!S106:S108) -> 0 | C8: ='Company Nom Groups'!B140 -> 0 | D8: =H8-B8 -> 4510.212 | E8: =I8-C8 -> 4454.94 | H8: ='Ex 7 Co. Owned Gas'!B8 -> 4510.212 | I8: ='Ex 7 Co. Owned Gas'!C8 -> 4454.94 | J8: =B8 -> 0 | K8: =C8 -> 0 | L8: =D8 -> 4510.212 | M8: =E8 -> 4454.94
A9: ='Ex 1 HDD'!A9 -> 2022-07-01 | B9: =SUM('Company Nom Groups'!W91:W93,'Company Nom Groups'!W106:W108) -> 0 | C9: ='Company Nom Groups'!C140 -> 64.549 | D9: 4737.195 | E9: 4417.491 | H9: ='Ex 7 Co. Owned Gas'!B9 -> 4737.195 | I9: ='Ex 7 Co. Owned Gas'!C9 -> 4482.04 | J9: =B8+B9 -> 0 | K9: =K8+C9 -> 64.549 | L9: 9247.407 | M9: 8872.431
A10: ='Ex 1 HDD'!A10 -> 2022-08-01 | B10: =SUM('Company Nom Groups'!AA91:AA93,'Company Nom Groups'!AA106:AA108) -> 0 | C10: ='Company Nom Groups'!D140 -> 54.17 | D10: 4406.231 | E10: 4357.025 | H10: ='Ex 7 Co. Owned Gas'!B10 -> 4406.231 | I10: ='Ex 7 Co. Owned Gas'!C10 -> 4411.195 | J10: =J9+B10 -> 0 | K10: 118.719 | L10: 13653.638 | M10: 13229.456
A11: ='Ex 1 HDD'!A11 -> 2022-09-01 | B11: =SUM('Company Nom Groups'!AK91:AK93,'Company Nom Groups'!AK106:AK108) -> 106.243 | C11: ='Company Nom Groups'!E140 -> 45.822 | D11: 4293.361 | E11: 4010.973 | H11: ='Ex 7 Co. Owned Gas'!B11 -> 4399.604 | I11: ='Ex 7 Co. Owned Gas'!C11 -> 4056.795 | J11: 106.243 | K11: =K10+C11 -> 164.541 | L11: =L10+D11 -> 17946.999 | M11: =M10+E11 -> 17240.429
A12: ='Ex 1 HDD'!A12 -> 2022-10-01 | B12: =SUM('Company Nom Groups'!AO91:AO93,'Company Nom Groups'!AO106:AO108) -> 273.183 | C12: ='Company Nom Groups'!F140 -> 42.446 | D12: 4621.365 | E12: 4087.15 | H12: ='Ex 7 Co. Owned Gas'!B12 -> 4894.548 | I12: ='Ex 7 Co. Owned Gas'!C12 -> 4129.596 | J12: 379.426 | K12: 206.987 | L12: =L11+D12 -> 22568.364 | M12: 21327.579
A13: ='Ex 1 HDD'!A13 -> 2022-11-01 | B13: =SUM('Company Nom Groups'!AS91:AS93,'Company Nom Groups'!AS106:AS108) -> 319.548 | C13: ='Company Nom Groups'!G140 -> 1105.924 | D13: 4558.848 | E13: 4252.503 | H13: ='Ex 7 Co. Owned Gas'!B13 -> 4878.396 | I13: ='Ex 7 Co. Owned Gas'!C13 -> 5358.427 | J13: 698.974 | K13: 1312.911 | L13: 27127.212 | M13: 25580.082
A14: ='Ex 1 HDD'!A14 -> 2022-12-01 | C14: ='Company Nom Groups'!H140 -> 912.183 | D14: 0 | E14: 4335.452 | H14: ='Ex 7 Co. Owned Gas'!B14 -> 0 | I14: ='Ex 7 Co. Owned Gas'!C14 -> 5247.635 | J14: 698.974 | K14: 2225.094 | L14: 27127.212 | M14: 29915.534
A15: ='Ex 1 HDD'!A15 -> 2023-01-01 | C15: ='Company Nom Groups'!I140 -> 772.122 | D15: 0 | E15: 4280.106 | H15: ='Ex 7 Co. Owned Gas'!B15 -> 0 | I15: ='Ex 7 Co. Owned Gas'!C15 -> 5052.228 | J15: 698.974 | K15: 2997.216 | L15: 27127.212 | M15: 34195.64
A16: ='Ex 1 HDD'!A16 -> 2023-02-01 | C16: ='Company Nom Groups'!J140 -> 610.828 | D16: 0 | E16: 3815.665 | H16: ='Ex 7 Co. Owned Gas'!B16 -> 0 | I16: ='Ex 7 Co. Owned Gas'!C16 -> 4426.493 | J16: 698.974 | K16: 3608.044 | L16: 27127.212 | M16: 38011.305
A17: ='Ex 1 HDD'!A17 -> 2023-03-01 | C17: ='Company Nom Groups'!K140 -> 605.748 | D17: 0 | E17: 4174.516 | H17: ='Ex 7 Co. Owned Gas'!B17 -> 0 | I17: ='Ex 7 Co. Owned Gas'!C17 -> 4780.264 | J17: 698.974 | K17: 4213.792 | L17: 27127.212 | M17: 42185.821
A18: ='Ex 1 HDD'!A18 -> 2023-04-01 | C18: ='Company Nom Groups'!L140 -> 533.482 | D18: 0 | E18: 3991.082 | H18: ='Ex 7 Co. Owned Gas'!B18 -> 0 | I18: ='Ex 7 Co. Owned Gas'!C18 -> 4524.564 | J18: 698.974 | K18: 4747.274 | L18: 27127.212 | M18: 46176.903
A19: ='Ex 1 HDD'!A19 -> 2023-05-01 | C19: ='Company Nom Groups'!M140 -> 507.662 | D19: 0 | E19: 4069.546 | H19: ='Ex 7 Co. Owned Gas'!B19 -> 0 | I19: ='Ex 7 Co. Owned Gas'!C19 -> 4577.208 | J19: 698.974 | K19: 5254.936 | L19: 27127.212 | M19: 50246.449

Sheet Exhibit 8.1
O31: ='Exhibit 1.1'!O31 -> DEU Variance Exhibit | P31: Docket No. 22-057-02 | Q31: ='Exhibit 1.1'!Q31 -> Dominion Energy Utah
O32: 8.1

Sheet Exhibit 8.2
O31: ='Exhibit 1.1'!O31 -> DEU Variance Exhibit | P31: Docket No. 22-057-02 | Q31: ='Exhibit 1.1'!Q31 -> Dominion Energy Utah
O32: 8.2

Sheet Exhibit 8.3
O31: ='Exhibit 1.1'!O31 -> DEU Variance Exhibit | P31: Docket No. 22-057-02 | Q31: ='Exhibit 1.1'!Q31 -> Dominion Energy Utah
O32: 8.3

Sheet Company Nom Groups (hidden)
A1: Company Nom Groups
A2: Withdrawn Gross Volume (MDths) | R2: June 2022 Cost-of-Service | V2: July 2022 Cost-of-Service | Z2: August 2022 Cost-of-Service | AD2: First Quarter Cost-of-Service | AJ2: September 2022 Cost-of-Service | AN2: October 2022 Cost-of-Service | AR2: November 2022 Cost-of-Service | AV2: Second Quarter Cost-of-Service
A3: Source: IRP Base Case, Monthly Custom Report Writer | R3: Variance Mdth | V3: Variance Mdth | Z3: Variance Mdth | AD3: Variance Mdth | AJ3: Variance Mdth | AN3: Variance Mdth | AR3: Variance Mdth | AV3: Variance Mdth
A5: Nom Group | B5: 2022-06-01 | C5: 2022-07-01 | D5: 2022-08-01 | E5: 2022-09-01 | F5: 2022-10-01 | G5: 2022-11-01 | H5: 2022-12-01 | I5: 2023-01-01 | J5: 2023-02-01 | K5: 2023-03-01 | L5: 2023-04-01 | M5: 2023-05-01 | N5: Total | R5: Nom Group | S5: Actual | T5: Normal | V5: Nom Group | W5: Actual | X5: Normal | Z5: Nom Group | AA5: Actual | AB5: Normal | AD5: Nom Group | AE5: Actual | AF5: Normal | AJ5: Nom Group | AK5: Actual | AL5: Normal | AN5: Nom Group | AO5: Actual | AP5: Normal | AR5: Nom Group | AS5: Actual | AT5: Normal | AV5: Nom Group | AW5: Actual | AX5: Normal
A6: BIRCH CREEK | B6: 116.296 | C6: 119.407 | D6: 118.65 | E6: 114.098 | F6: 117.162 | G6: 112.676 | H6: 115.709 | I6: 114.994 | J6: 103.226 | K6: 113.586 | L6: 109.251 | M6: 112.207 | N6: 1367.262 | R6: BIRCH CREEK | S6: =VLOOKUP(R6,R$130:S$234,2,FALSE)/1000 -> 113.765 | T6: =B6 -> 116.296 | V6: BIRCH CREEK | W6: =VLOOKUP(V6,V$130:W$234,2,FALSE)/1000 -> 107.093 | X6: =C6 -> 119.407 | Z6: BIRCH CREEK | AA6: =VLOOKUP(Z6,Z$130:AA$234,2,FALSE)/1000 -> 125.041 | AB6: =D6 -> 118.65 | AD6: BIRCH CREEK | AE6: =VLOOKUP(AD6,AD$130:AE$234,2,FALSE)/1000 -> 345.899 | AF6: =T6+X6+AB6 -> 354.353 | AJ6: BIRCH CREEK | AK6: =VLOOKUP(AJ6,AJ$130:AK$237,2,FALSE)/1000 -> 119.926 | AL6: =E6 -> 114.098 | AN6: BIRCH CREEK | AO6: =VLOOKUP(AN6,AN$130:AO$237,2,FALSE)/1000 -> 123.46 | AP6: =F6 -> 117.162 | AR6: BIRCH CREEK | AS6: =VLOOKUP(AR6,AR$130:AS$237,2,FALSE)/1000 -> 116.156 | AT6: =G6 -> 112.676 | AV6: BIRCH CREEK | AW6: =VLOOKUP(AV6,AV$130:AW$237,2,FALSE)/1000 -> 359.542 | AX6: =AL6+AP6+AT6 -> 343.936
A7: ACEJDMT D24 | B7: 7.412 | C7: 7.596 | D7: 7.534 | E7: 7.231 | F7: 7.411 | G7: 7.113 | H7: 7.29 | I7: 7.231 | J7: 6.478 | K7: 7.113 | L7: 6.827 | M7: 6.997 | N7: 86.234 | R7: ACEJDMT D24 | S7: 8.157 | T7: =B7 -> 7.412 | V7: ACEJDMT D24 | W7: 8.535 | X7: =C7 -> 7.596 | Z7: ACEJDMT D24 | AA7: 7.776 | AB7: =D7 -> 7.534 | AD7: ACEJDMT D24 | AE7: 24.468 | AF7: =T7+X7+AB7 -> 22.542 | AJ7: ACEJDMT D24 | AK7: 5.586 | AL7: =E7 -> 7.231 | AN7: ACEJDMT D24 | AO7: 4.92 | AP7: =F7 -> 7.411 | AR7: ACEJDMT D24 | AS7: 7.795 | AT7: =G7 -> 7.113 | AV7: ACEJDMT D24 | AW7: 18.301 | AX7: =AL7+AP7+AT7 -> 21.755
A8: BRFM D24 | B8: 1.904 | C8: 1.956 | D8: 1.944 | E8: 1.87 | F8: 1.92 | G8: 1.847 | H8: 1.897 | I8: 1.886 | J8: 1.693 | K8: 1.863 | L8: 1.792 | M8: 1.841 | N8: 22.413 | R8: BRFM D24 | S8: 2.037 | T8: 1.904 | V8: BRFM D24 | W8: 2.008 | X8: 1.956 | Z8: BRFM D24 | AA8: 2.079 | AB8: 1.944 | AD8: BRFM D24 | AE8: 6.124 | AF8: 5.804 | AJ8: BRFM D24 | AK8: 1.884 | AL8: 1.87 | AN8: BRFM D24 | AO8: 2.076 | AP8: 1.92 | AR8: BRFM D24 | AS8: 1.991 | AT8: 1.847 | AV8: BRFM D24 | AW8: 5.951 | AX8: 5.637
A9: BRFQ D24 | B9: 128.83 | C9: 132.198 | D9: 131.284 | E9: 126.176 | F9: 128.756 | G9: 123.754 | H9: 127.011 | I9: 126.152 | J9: 113.176 | K9: 124.46 | L9: 119.638 | M9: 122.8 | N9: 1504.235 | R9: BRFQ D24 | S9: 147.361 | T9: 128.83 | V9: BRFQ D24 | W9: 155.766 | X9: 132.198 | Z9: BRFQ D24 | AA9: 149.48 | AB9: 131.284 | AD9: BRFQ D24 | AE9: 452.607 | AF9: 392.312 | AJ9: BRFQ D24 | AK9: 148.148 | AL9: 126.176 | AN9: BRFQ D24 | AO9: 142.86 | AP9: 128.756 | AR9: BRFQ D24 | AS9: 129.976 | AT9: 123.754 | AV9: BRFQ D24 | AW9: 420.984 | AX9: 378.686
A10: BRFQMT D24 | B10: 2.666 | C10: 2.741 | D10: 2.727 | E10: 2.626 | F10: 2.699 | G10: 2.599 | H10: 2.672 | I10: 2.658 | J10: 2.389 | K10: 2.631 | L10: 2.533 | M10: 2.604 | N10: 31.547 | R10: BRFQMT D24 | S10: 6.696 | T10: 2.666 | V10: BRFQMT D24 | W10: 0 | X10: 2.741 | Z10: BRFQMT D24 | AA10: 5.9 | AB10: 2.727 | AD10: BRFQMT D24 | AE10: 12.596 | AF10: 8.134 | AJ10: BRFQMT D24 | AK10: 0.001 | AL10: 2.626 | AN10: BRFQMT D24 | AO10: 8.339 | AP10: 2.699 | AR10: BRFQMT D24 | AS10: 0 | AT10: 2.599 | AV10: BRFQMT D24 | AW10: 8.34 | AX10: 7.924
A11: BRFW D24 | B11: 50.59 | C11: 51.92 | D11: 51.567 | E11: 49.565 | F11: 50.871 | G11: 48.899 | H11: 50.189 | I11: 49.853 | J11: 44.728 | K11: 49.19 | L11: 47.287 | M11: 48.539 | N11: 593.198 | R11: BRFW D24 | S11: 65.216 | T11: 50.59 | V11: BRFW D24 | W11: 66.642 | X11: 51.92 | Z11: BRFW D24 | AA11: 64.083 | AB11: 51.567 | AD11: BRFW D24 | AE11: 195.941 | AF11: 154.077 | AJ11: BRFW D24 | AK11: 61.59 | AL11: 49.565 | AN11: BRFW D24 | AO11: 62.499 | AP11: 50.871 | AR11: BRFW D24 | AS11: 55.357 | AT11: 48.899 | AV11: BRFW D24 | AW11: 179.446 | AX11: 149.335
A12: CBFR D24 | B12: 13.497 | C12: 13.834 | D12: 13.722 | E12: 13.171 | F12: 13.5 | G12: 12.959 | H12: 13.282 | I12: 13.174 | J12: 11.803 | K12: 12.961 | L12: 12.441 | M12: 12.752 | N12: 157.097 | R12: CBFR D24 | S12: 15.477 | T12: 13.497 | V12: CBFR D24 | W12: 16.763 | X12: 13.834 | Z12: CBFR D24 | AA12: 15.843 | AB12: 13.722 | AD12: CBFR D24 | AE12: 48.083 | AF12: 41.053 | AJ12: CBFR D24 | AK12: 6.463 | AL12: 13.171 | AN12: CBFR D24 | AO12: 3.299 | AP12: 13.5 | AR12: CBFR D24 | AS12: 21.622 | AT12: 12.959 | AV12: CBFR D24 | AW12: 31.384 | AX12: 39.63
A13: CCRUNIT D24 | B13: 397.25 | C13: 356.527 | D13: 353.174 | E13: 386.98 | F13: 396.129 | G13: 379.794 | H13: 388.851 | I13: 385.317 | J13: 344.896 | K13: 378.445 | L13: 363.001 | M13: 371.815 | N13: 4502.18 | R13: CCRUNIT D24 | S13: 342.555 | T13: 397.25 | V13: CCRUNIT D24 | W13: 348.62 | X13: 356.527 | Z13: CCRUNIT D24 | AA13: 349.597 | AB13: 353.174 | AD13: CCRUNIT D24 | AE13: 1040.772 | AF13: 1106.951 | AJ13: CCRUNIT D24 | AK13: 360.788 | AL13: 386.98 | AN13: CCRUNIT D24 | AO13: 379.519 | AP13: 396.129 | AR13: CCRUNIT D24 | AS13: 348.462 | AT13: 379.794 | AV13: CCRUNIT D24 | AW13: 1088.769 | AX13: 1162.903
A14: CCRUNITMTD24 | B14: 37.913 | C14: 38.703 | D14: 38.245 | E14: 36.583 | F14: 37.373 | G14: 35.765 | H14: 36.554 | I14: 36.162 | J14: 32.318 | K14: 35.41 | L14: 33.918 | M14: 34.696 | N14: 433.64 | R14: CCRUNITMTD24 | S14: 35.616 | T14: 37.913 | V14: CCRUNITMTD24 | W14: 28.058 | X14: 38.703 | Z14: CCRUNITMTD24 | AA14: 24.394 | AB14: 38.245 | AD14: CCRUNITMTD24 | AE14: 88.068 | AF14: 114.861 | AJ14: CCRUNITMTD24 | AK14: 21.784 | AL14: 36.583 | AN14: CCRUNITMTD24 | AO14: 36.513 | AP14: 37.373 | AR14: CCRUNITMTD24 | AS14: 35.518 | AT14: 35.765 | AV14: CCRUNITMTD24 | AW14: 93.815 | AX14: 109.721
A15: CHBT MT | B15: 21.991 | C15: 22.595 | D15: 22.466 | E15: 21.618 | F15: 22.212 | G15: 21.373 | H15: 21.96 | I15: 21.836 | J15: 19.611 | K15: 21.589 | L15: 20.774 | M15: 21.344 | N15: 259.368 | R15: CHBT MT | S15: 30.711 | T15: 21.991 | V15: CHBT MT | W15: 28.83 | X15: 22.595 | Z15: CHBT MT | AA15: 21.93 | AB15: 22.466 | AD15: CHBT MT | AE15: 81.471 | AF15: 67.052 | AJ15: CHBT MT | AK15: 20.585 | AL15: 21.618 | AN15: CHBT MT | AO15: 19.288 | AP15: 22.212 | AR15: CHBT MT | AS15: 18.549 | AT15: 21.373 | AV15: CHBT MT | AW15: 58.422 | AX15: 65.203
A16: CHBTBUFF D24 | B16: 0 | C16: 0 | D16: 0 | E16: 0 | F16: 0 | G16: 0 | H16: 0 | I16: 0 | J16: 0 | K16: 0 | L16: 0 | M16: 0 | N16: 0 | R16: CHBTBUFF D24 | S16: 0.792 | T16: 0 | V16: CHBTBUFF D24 | W16: 0.831 | X16: 0 | Z16: CHBTBUFF D24 | AA16: 0.806 | AB16: 0 | AD16: CHBTBUFF D24 | AE16: 2.429 | AF16: 0 | AJ16: CHBTBUFF D24 | AK16: 0.814 | AL16: 0 | AN16: CHBTBUFF D24 | AO16: 0.792 | AP16: 0 | AR16: CHBTBUFF D24 | AS16: 0.662 | AT16: 0 | AV16: CHBTBUFF D24 | AW16: 2.268 | AX16: 0
A17: CHBTCAT2 D24 | B17: 81.01 | C17: 83.101 | D17: 82.498 | E17: 79.258 | F17: 81.309 | G17: 78.119 | H17: 80.143 | I17: 79.569 | J17: 71.354 | K17: 78.436 | L17: 75.365 | M17: 77.322 | N17: 947.484 | R17: CHBTCAT2 D24 | S17: 113.102 | T17: 81.01 | V17: CHBTCAT2 D24 | W17: 114.474 | X17: 83.101 | Z17: CHBTCAT2 D24 | AA17: 85.302 | AB17: 82.498 | AD17: CHBTCAT2 D24 | AE17: 312.878 | AF17: 246.609 | AJ17: CHBTCAT2 D24 | AK17: 85.61 | AL17: 79.258 | AN17: CHBTCAT2 D24 | AO17: 84.488 | AP17: 81.309 | AR17: CHBTCAT2 D24 | AS17: 80.661 | AT17: 78.119 | AV17: CHBTCAT2 D24 | AW17: 250.759 | AX17: 238.686
A18: CHBTCAT3 D24 | B18: 136.097 | C18: 139.637 | D18: 138.659 | E18: 133.256 | F18: 136.753 | G18: 131.441 | H18: 134.905 | I18: 134 | J18: 117.372 | K18: 129.083 | L18: 124.091 | M18: 127.382 | N18: 1582.676 | R18: CHBTCAT3 D24 | S18: 195.051 | T18: 136.097 | V18: CHBTCAT3 D24 | W18: 193.348 | X18: 139.637 | Z18: CHBTCAT3 D24 | AA18: 154.176 | AB18: 138.659 | AD18: CHBTCAT3 D24 | AE18: 542.575 | AF18: 414.393 | AJ18: CHBTCAT3 D24 | AK18: 141.964 | AL18: 133.256 | AN18: CHBTCAT3 D24 | AO18: 142.62 | AP18: 136.753 | AR18: CHBTCAT3 D24 | AS18: 138.213 | AT18: 131.441 | AV18: CHBTCAT3 D24 | AW18: 422.797 | AX18: 401.45
A19: DRY PINY MT | B19: 4.984 | C19: 5.113 | D19: 5.076 | E19: 4.877 | F19: 5.004 | G19: 4.808 | H19: 4.933 | I19: 4.898 | J19: 4.393 | K19: 4.829 | L19: 4.641 | M19: 4.762 | N19: 58.315 | R19: DRY PINY MT | S19: 3.723 | T19: 4.984 | V19: DRY PINY MT | W19: 3.701 | X19: 5.113 | Z19: DRY PINY MT | AA19: 3.416 | AB19: 5.076 | AD19: DRY PINY MT | AE19: 10.84 | AF19: 15.173 | AJ19: DRY PINY MT | AK19: 3.395 | AL19: 4.877 | AN19: DRY PINY MT | AO19: 3.706 | AP19: 5.004 | AR19: DRY PINY MT | AS19: 3.696 | AT19: 4.808 | AV19: DRY PINY MT | AW19: 10.797 | AX19: 14.689
A20: DRYPINY6 D24 | B20: 1.176 | C20: 1.208 | D20: 1.2 | E20: 1.154 | F20: 1.185 | G20: 1.14 | H20: 1.17 | I20: 1.163 | J20: 1.044 | K20: 1.148 | L20: 1.104 | M20: 1.134 | N20: 13.827 | R20: DRYPINY6 D24 | S20: 1.247 | T20: 1.176 | V20: DRYPINY6 D24 | W20: 1.885 | X20: 1.208 | Z20: DRYPINY6 D24 | AA20: 1.311 | AB20: 1.2 | AD20: DRYPINY6 D24 | AE20: 4.443 | AF20: 3.584 | AJ20: DRYPINY6 D24 | AK20: 1.227 | AL20: 1.154 | AN20: DRYPINY6 D24 | AO20: 1.174 | AP20: 1.185 | AR20: DRYPINY6 D24 | AS20: 0.537 | AT20: 1.14 | AV20: DRYPINY6 D24 | AW20: 2.938 | AX20: 3.479
A21: DRYPINYU D24 | B21: 1.655 | C21: 1.7 | D21: 1.69 | E21: 1.626 | F21: 1.671 | G21: 1.607 | H21: 1.651 | I21: 1.642 | J21: 1.474 | K21: 1.623 | L21: 1.561 | M21: 1.604 | N21: 19.504 | R21: DRYPINYU D24 | S21: 3.277 | T21: 1.655 | V21: DRYPINYU D24 | W21: 2.876 | X21: 1.7 | Z21: DRYPINYU D24 | AA21: 2.512 | AB21: 1.69 | AD21: DRYPINYU D24 | AE21: 8.665 | AF21: 5.045 | AJ21: DRYPINYU D24 | AK21: 2.381 | AL21: 1.626 | AN21: DRYPINYU D24 | AO21: 2.418 | AP21: 1.671 | AR21: DRYPINYU D24 | AS21: 2.228 | AT21: 1.607 | AV21: DRYPINYU D24 | AW21: 7.027 | AX21: 4.904
A22: HWA DEEP D24 | B22: 0.133 | C22: 0.137 | D22: 0.136 | E22: 0.13 | F22: 0.134 | G22: 0.128 | H22: 0.132 | I22: 0.131 | J22: 0.117 | K22: 0.129 | L22: 0.124 | M22: 0.127 | N22: 1.557 | R22: HWA DEEP D24 | S22: 0.25 | T22: 0.133 | V22: HWA DEEP D24 | W22: 0.14 | X22: 0.137 | Z22: HWA DEEP D24 | AA22: 0.39 | AB22: 0.136 | AD22: HWA DEEP D24 | AE22: 0.78 | AF22: 0.406 | AJ22: HWA DEEP D24 | AK22: 0.248 | AL22: 0.13 | AN22: HWA DEEP D24 | AO22: 0.114 | AP22: 0.134 | AR22: HWA DEEP D24 | AS22: 0 | AT22: 0.128 | AV22: HWA DEEP D24 | AW22: 0.362 | AX22: 0.392
A23: HWA MT | B23: 1.481 | C23: 1.519 | D23: 1.507 | E23: 1.448 | F23: 1.485 | G23: 1.426 | H23: 1.463 | I23: 1.452 | J23: 1.302 | K23: 1.43 | L23: 1.374 | M23: 1.409 | N23: 17.296 | R23: HWA MT | S23: 2.04 | T23: 1.481 | V23: HWA MT | W23: 1.63 | X23: 1.519 | Z23: HWA MT | AA23: 3.173 | AB23: 1.507 | AD23: HWA MT | AE23: 6.843 | AF23: 4.507 | AJ23: HWA MT | AK23: 4.311 | AL23: 1.448 | AN23: HWA MT | AO23: 4.274 | AP23: 1.485 | AR23: HWA MT | AS23: 2.05 | AT23: 1.426 | AV23: HWA MT | AW23: 10.635 | AX23: 4.359
A24: HWADEEPMTD24 | B24: 14.128 | C24: 14.537 | D24: 14.475 | E24: 13.948 | F24: 14.352 | G24: 13.83 | H24: 14.23 | I24: 14.169 | J24: 12.743 | K24: 14.048 | L24: 13.537 | M24: 13.929 | N24: 167.928 | R24: HWADEEPMTD24 | S24: 15.051 | T24: 14.128 | V24: HWADEEPMTD24 | W24: 13.921 | X24: 14.537 | Z24: HWADEEPMTD24 | AA24: 12.731 | AB24: 14.475 | AD24: HWADEEPMTD24 | AE24: 41.703 | AF24: 43.14 | AJ24: HWADEEPMTD24 | AK24: 16 | AL24: 13.948 | AN24: HWADEEPMTD24 | AO24: 16.342 | AP24: 14.352 | AR24: HWADEEPMTD24 | AS24: 11.539 | AT24: 13.83 | AV24: HWADEEPMTD24 | AW24: 43.881 | AX24: 42.13
A25: HWPL1&3MTD24 | B25: 6.479 | C25: 6.658 | D25: 6.621 | E25: 6.371 | F25: 6.547 | G25: 6.3 | H25: 6.474 | I25: 6.438 | J25: 5.782 | K25: 6.366 | L25: 6.126 | M25: 6.295 | N25: 76.457 | R25: HWPL1&3MTD24 | S25: 7.603 | T25: 6.479 | V25: HWPL1&3MTD24 | W25: 6.45 | X25: 6.658 | Z25: HWPL1&3MTD24 | AA25: 8.051 | AB25: 6.621 | AD25: HWPL1&3MTD24 | AE25: 22.104 | AF25: 19.758 | AJ25: HWPL1&3MTD24 | AK25: 6.396 | AL25: 6.371 | AN25: HWPL1&3MTD24 | AO25: 8.224 | AP25: 6.547 | AR25: HWPL1&3MTD24 | AS25: 6.583 | AT25: 6.3 | AV25: HWPL1&3MTD24 | AW25: 21.203 | AX25: 19.218
A26: HWPLT1&3 D24 | B26: 63.035 | C26: 64.521 | D26: 63.914 | E26: 61.27 | F26: 62.716 | G26: 60.123 | H26: 61.543 | I26: 60.966 | J26: 54.55 | K26: 59.829 | L26: 57.357 | M26: 58.715 | N26: 728.538 | R26: HWPLT1&3 D24 | S26: 73.779 | T26: 63.035 | V26: HWPLT1&3 D24 | W26: 61.558 | X26: 64.521 | Z26: HWPLT1&3 D24 | AA26: 68.938 | AB26: 63.914 | AD26: HWPLT1&3 D24 | AE26: 204.275 | AF26: 191.47 | AJ26: HWPLT1&3 D24 | AK26: 68.884 | AL26: 61.27 | AN26: HWPLT1&3 D24 | AO26: 72.417 | AP26: 62.716 | AR26: HWPLT1&3 D24 | AS26: 66.659 | AT26: 60.123 | AV26: HWPLT1&3 D24 | AW26: 207.96 | AX26: 184.109
A27: HWPLT2 D24 | B27: 4.915 | C27: 5.026 | D27: 4.974 | E27: 4.765 | F27: 4.875 | G27: 4.671 | H27: 4.781 | I27: 4.736 | J27: 4.238 | K27: 4.649 | L27: 4.458 | M27: 4.566 | N27: 56.652 | R27: HWPLT2 D24 | S27: 1.781 | T27: 4.915 | V27: HWPLT2 D24 | W27: 0.55 | X27: 5.026 | Z27: HWPLT2 D24 | AA27: 2.028 | AB27: 4.974 | AD27: HWPLT2 D24 | AE27: 4.359 | AF27: 14.915 | AJ27: HWPLT2 D24 | AK27: 5.507 | AL27: 4.765 | AN27: HWPLT2 D24 | AO27: 5.672 | AP27: 4.875 | AR27: HWPLT2 D24 | AS27: 5.022 | AT27: 4.671 | AV27: HWPLT2 D24 | AW27: 16.201 | AX27: 14.311
A28: HWPLT2MT D24 | B28: 1.27 | C28: 1.301 | D28: 1.29 | E28: 1.237 | F28: 1.268 | G28: 1.216 | H28: 1.245 | I28: 1.235 | J28: 1.105 | K28: 1.213 | L28: 1.164 | M28: 1.192 | N28: 14.737 | R28: HWPLT2MT D24 | S28: 1.209 | T28: 1.27 | V28: HWPLT2MT D24 | W28: 1.102 | X28: 1.301 | Z28: HWPLT2MT D24 | AA28: 1.002 | AB28: 1.29 | AD28: HWPLT2MT D24 | AE28: 3.313 | AF28: 3.861 | AJ28: HWPLT2MT D24 | AK28: 1.173 | AL28: 1.237 | AN28: HWPLT2MT D24 | AO28: 1.24 | AP28: 1.268 | AR28: HWPLT2MT D24 | AS28: 0.549 | AT28: 1.216 | AV28: HWPLT2MT D24 | AW28: 2.962 | AX28: 3.721
A29: ISLAND D24 | B29: 45.861 | C29: 47.026 | D29: 46.668 | E29: 44.821 | F29: 45.968 | G29: 44.154 | H29: 45.287 | I29: 44.954 | J29: 40.305 | K29: 44.298 | L29: 42.558 | M29: 43.658 | N29: 535.559 | R29: ISLAND D24 | S29: 60.101 | T29: 45.861 | V29: ISLAND D24 | W29: 58.104 | X29: 47.026 | Z29: ISLAND D24 | AA29: 61.221 | AB29: 46.668 | AD29: ISLAND D24 | AE29: 179.426 | AF29: 139.555 | AJ29: ISLAND D24 | AK29: 55.676 | AL29: 44.821 | AN29: ISLAND D24 | AO29: 55.822 | AP29: 45.968 | AR29: ISLAND D24 | AS29: 55.256 | AT29: 44.154 | AV29: ISLAND D24 | AW29: 166.754 | AX29: 134.943
A30: JNSNRDG D24 | B30: 1.757 | C30: 1.808 | D30: 1.8 | E30: 1.734 | F30: 1.784 | G30: 1.719 | H30: 1.769 | I30: 1.761 | J30: 1.584 | K30: 1.746 | L30: 1.682 | M30: 1.73 | N30: 20.874 | R30: JNSNRDG D24 | S30: 5.058 | T30: 1.757 | V30: JNSNRDG D24 | W30: 3.341 | X30: 1.808 | Z30: JNSNRDG D24 | AA30: 2.64 | AB30: 1.8 | AD30: JNSNRDG D24 | AE30: 11.039 | AF30: 5.365 | AJ30: JNSNRDG D24 | AK30: 2.236 | AL30: 1.734 | AN30: JNSNRDG D24 | AO30: 2.155 | AP30: 1.784 | AR30: JNSNRDG D24 | AS30: 0 | AT30: 1.719 | AV30: JNSNRDG D24 | AW30: 4.391 | AX30: 5.237
A31: JRDG WFS D24 | B31: 2.237 | C31: 2.298 | D31: 2.284 | E31: 2.197 | F31: 2.256 | G31: 2.17 | H31: 2.229 | I31: 2.215 | J31: 1.989 | K31: 2.188 | L31: 2.105 | M31: 2.162 | N31: 26.328 | R31: JRDG WFS D24 | S31: 6.797 | T31: 2.237 | V31: JRDG WFS D24 | W31: 4.268 | X31: 2.298 | Z31: JRDG WFS D24 | AA31: 4.046 | AB31: 2.284 | AD31: JRDG WFS D24 | AE31: 15.111 | AF31: 6.819 | AJ31: JRDG WFS D24 | AK31: 3.795 | AL31: 2.197 | AN31: JRDG WFS D24 | AO31: 3.311 | AP31: 2.256 | AR31: JRDG WFS D24 | AS31: 0.907 | AT31: 2.17 | AV31: JRDG WFS D24 | AW31: 8.013 | AX31: 6.623
A32: KNY FLD D24 | B32: 9.497 | C32: 9.744 | D32: 9.675 | E32: 9.298 | F32: 9.541 | G32: 9.169 | H32: 9.409 | I32: 9.344 | J32: 8.381 | K32: 9.215 | L32: 8.856 | M32: 9.088 | N32: 111.216 | R32: KNY FLD D24 | S32: 9.714 | T32: 9.497 | V32: KNY FLD D24 | W32: 15.176 | X32: 9.744 | Z32: KNY FLD D24 | AA32: 9.968 | AB32: 9.675 | AD32: KNY FLD D24 | AE32: 34.858 | AF32: 28.916 | AJ32: KNY FLD D24 | AK32: 11.337 | AL32: 9.298 | AN32: KNY FLD D24 | AO32: 15.549 | AP32: 9.541 | AR32: KNY FLD D24 | AS32: 16.801 | AT32: 9.169 | AV32: KNY FLD D24 | AW32: 43.687 | AX32: 28.008
A33: MESA D24 | B33: 499.093 | C33: 510.455 | D33: 505.247 | E33: 483.972 | F33: 495.025 | G33: 474.202 | H33: 485.052 | I33: 480.155 | J33: 429.317 | K33: 470.532 | L33: 450.778 | M33: 460.201 | N33: 5744.029 | R33: MESA D24 | S33: 482.399 | T33: 499.093 | V33: MESA D24 | W33: 493.225 | X33: 510.455 | Z33: MESA D24 | AA33: 481.157 | AB33: 505.247 | AD33: MESA D24 | AE33: 1456.781 | AF33: 1514.795 | AJ33: MESA D24 | AK33: 456.619 | AL33: 483.972 | AN33: MESA D24 | AO33: 474.452 | AP33: 495.025 | AR33: MESA D24 | AS33: 443.667 | AT33: 474.202 | AV33: MESA D24 | AW33: 1374.738 | AX33: 1453.199
A34: MOSUMT D24 | B34: 1.243 | C34: 1.276 | D34: 1.267 | E34: 1.218 | F34: 1.25 | G34: 1.201 | H34: 1.233 | I34: 1.224 | J34: 1.098 | K34: 1.207 | L34: 1.16 | M34: 1.191 | N34: 14.567 | R34: MOSUMT D24 | S34: 0.954 | T34: 1.243 | V34: MOSUMT D24 | W34: 0.895 | X34: 1.276 | Z34: MOSUMT D24 | AA34: 0.958 | AB34: 1.267 | AD34: MOSUMT D24 | AE34: 2.807 | AF34: 3.786 | AJ34: MOSUMT D24 | AK34: 0.867 | AL34: 1.218 | AN34: MOSUMT D24 | AO34: 0.981 | AP34: 1.25 | AR34: MOSUMT D24 | AS34: 0.982 | AT34: 1.201 | AV34: MOSUMT D24 | AW34: 2.83 | AX34: 3.669
A35: PDW MT | B35: 156.938 | C35: 161.037 | D35: 159.913 | E35: 153.675 | F35: 157.689 | G35: 151.538 | H35: 155.498 | I35: 154.414 | J35: 138.498 | K35: 152.269 | L35: 146.33 | M35: 150.155 | N35: 1837.953 | R35: PDW MT | S35: 147.082 | T35: 156.938 | V35: PDW MT | W35: 158.743 | X35: 161.037 | Z35: PDW MT | AA35: 153.383 | AB35: 159.913 | AD35: PDW MT | AE35: 459.208 | AF35: 477.888 | AJ35: PDW MT | AK35: 149.339 | AL35: 153.675 | AN35: PDW MT | AO35: 140.15 | AP35: 157.689 | AR35: PDW MT | AS35: 124.592 | AT35: 151.538 | AV35: PDW MT | AW35: 414.081 | AX35: 462.902
A36: PDW1A1B D24 | B36: 0.382 | C36: 0.392 | D36: 0.39 | E36: 0.375 | F36: 0.384 | G36: 0.369 | H36: 0.379 | I36: 0.376 | J36: 0.338 | K36: 0.371 | L36: 0.357 | M36: 0.366 | N36: 4.48 | R36: PDW1A1B D24 | S36: 0.519 | T36: 0.382 | V36: PDW1A1B D24 | W36: 0.465 | X36: 0.392 | Z36: PDW1A1B D24 | AA36: 0.43 | AB36: 0.39 | AD36: PDW1A1B D24 | AE36: 1.414 | AF36: 1.164 | AJ36: PDW1A1B D24 | AK36: 0.363 | AL36: 0.375 | AN36: PDW1A1B D24 | AO36: 0.385 | AP36: 0.384 | AR36: PDW1A1B D24 | AS36: 0.296 | AT36: 0.369 | AV36: PDW1A1B D24 | AW36: 1.044 | AX36: 1.128
A37: PDWCUT D24 | B37: 1.017 | C37: 1.046 | D37: 1.041 | E37: 1.003 | F37: 1.032 | G37: 0.994 | H37: 1.022 | I37: 1.017 | J37: 0.915 | K37: 1.008 | L37: 0.971 | M37: 0.999 | N37: 12.066 | R37: PDWCUT D24 | S37: 1.87 | T37: 1.017 | V37: PDWCUT D24 | W37: 1.072 | X37: 1.046 | Z37: PDWCUT D24 | AA37: 1.042 | AB37: 1.041 | AD37: PDWCUT D24 | AE37: 3.984 | AF37: 3.104 | AJ37: PDWCUT D24 | AK37: 0.815 | AL37: 1.003 | AN37: PDWCUT D24 | AO37: 1.047 | AP37: 1.032 | AR37: PDWCUT D24 | AS37: 1.137 | AT37: 0.994 | AV37: PDWCUT D24 | AW37: 2.999 | AX37: 3.029
A38: PDWMT D24 | B38: 16.027 | C38: 16.445 | D38: 16.329 | E38: 15.692 | F38: 16.101 | G38: 15.472 | H38: 15.875 | I38: 15.764 | J38: 14.138 | K38: 15.543 | L38: 14.936 | M38: 15.326 | N38: 187.648 | R38: PDWMT D24 | S38: =VLOOKUP(R38,R$130:S$234,2,FALSE)/1000 -> 23.898 | T38: 16.027 | V38: PDWMT D24 | W38: =VLOOKUP(V38,V$130:W$234,2,FALSE)/1000 -> 25.136 | X38: 16.445 | Z38: PDWMT D24 | AA38: =VLOOKUP(Z38,Z$130:AA$234,2,FALSE)/1000 -> 21.159 | AB38: 16.329 | AD38: PDWMT D24 | AE38: =VLOOKUP(AD38,AD$130:AE$234,2,FALSE)/1000 -> 70.193 | AF38: 48.801 | AJ38: PDWMT D24 | AK38: =VLOOKUP(AJ38,AJ$130:AK$237,2,FALSE)/1000 -> 20.706 | AL38: 15.692 | AN38: PDWMT D24 | AO38: =VLOOKUP(AN38,AN$130:AO$237,2,FALSE)/1000 -> 21.677 | AP38: 16.101 | AR38: PDWMT D24 | AS38: =VLOOKUP(AR38,AR$130:AS$237,2,FALSE)/1000 -> 17.922 | AT38: 15.472 | AV38: PDWMT D24 | AW38: =VLOOKUP(AV38,AV$130:AW$237,2,FALSE)/1000 -> 60.305 | AX38: 47.265
A39: PDWPLT2 D24 | B39: 0 | C39: 0 | D39: 0 | E39: 0 | F39: 0 | G39: 0 | H39: 0 | I39: 0 | J39: 0 | K39: 0 | L39: 0 | M39: 0 | N39: 0 | R39: PDWPLT2 D24 | S39: 4.019 | T39: 0 | V39: PDWPLT2 D24 | W39: 4.144 | X39: 0 | Z39: PDWPLT2 D24 | AA39: 4.06 | AB39: 0 | AD39: PDWPLT2 D24 | AE39: 12.223 | AF39: 0 | AJ39: PDWPLT2 D24 | AK39: 3.884 | AL39: 0 | AN39: PDWPLT2 D24 | AO39: 4.23 | AP39: 0 | AR39: PDWPLT2 D24 | AS39: 3.897 | AT39: 0 | AV39: PDWPLT2 D24 | AW39: 12.011 | AX39: 0
A40: SGRLF D24 | B40: 1.313 | C40: 1.348 | D40: 1.338 | E40: 1.286 | F40: 1.32 | G40: 1.268 | H40: 1.302 | I40: 1.293 | J40: 1.159 | K40: 1.275 | L40: 1.225 | M40: 1.257 | N40: 15.385 | R40: SGRLF D24 | S40: 1.836 | T40: 1.313 | V40: SGRLF D24 | W40: 1.921 | X40: 1.348 | Z40: SGRLF D24 | AA40: 1.548 | AB40: 1.338 | AD40: SGRLF D24 | AE40: 5.305 | AF40: 3.999 | AJ40: SGRLF D24 | AK40: 0.92 | AL40: 1.286 | AN40: SGRLF D24 | AO40: 1.657 | AP40: 1.32 | AR40: SGRLF D24 | AS40: 1.432 | AT40: 1.268 | AV40: SGRLF D24 | AW40: 4.009 | AX40: 3.874
A41: SGRLFMT D24 | B41: 11.804 | C41: 12.113 | D41: 12.029 | E41: 11.561 | F41: 11.863 | G41: 11.401 | H41: 11.699 | I41: 11.618 | J41: 10.421 | K41: 11.458 | L41: 11.012 | M41: 11.3 | N41: 138.28 | R41: SGRLFMT D24 | S41: 11.165 | T41: 11.804 | V41: SGRLFMT D24 | W41: 14.549 | X41: 12.113 | Z41: SGRLFMT D24 | AA41: 11.822 | AB41: 12.029 | AD41: SGRLFMT D24 | AE41: 37.536 | AF41: 35.946 | AJ41: SGRLFMT D24 | AK41: 4.44 | AL41: 11.561 | AN41: SGRLFMT D24 | AO41: 6.771 | AP41: 11.863 | AR41: SGRLFMT D24 | AS41: 12.636 | AT41: 11.401 | AV41: SGRLFMT D24 | AW41: 23.847 | AX41: 34.825
A42: TRAIL D24 | B42: 247.933 | C42: 252.605 | D42: 249.158 | E42: 193.934 | F42: 197.736 | G42: 232.859 | H42: 237.626 | I42: 234.734 | J42: 209.493 | K42: 229.235 | L42: 219.307 | M42: 224.08 | N42: 2728.7 | R42: TRAIL D24 | S42: 273.238 | T42: 247.933 | V42: TRAIL D24 | W42: 269.515 | X42: 252.605 | Z42: TRAIL D24 | AA42: 239.868 | AB42: 249.158 | AD42: TRAIL D24 | AE42: 782.621 | AF42: 749.696 | AJ42: TRAIL D24 | AK42: 224.232 | AL42: 193.934 | AN42: TRAIL D24 | AO42: 249.833 | AP42: 197.736 | AR42: TRAIL D24 | AS42: 256.929 | AT42: 232.859 | AV42: TRAIL D24 | AW42: 730.994 | AX42: 624.529
A43: TRAILMT D24 | B43: 38.942 | C43: 39.806 | D43: 39.384 | E43: 26.574 | F43: 27.166 | G43: 37.156 | H43: 38.013 | I43: 37.64 | J43: 33.669 | K43: 36.92 | L43: 35.393 | M43: 36.232 | N43: 426.894 | R43: TRAILMT D24 | S43: 40.039 | T43: 38.942 | V43: TRAILMT D24 | W43: 41.966 | X43: 39.806 | Z43: TRAILMT D24 | AA43: 34.839 | AB43: 39.384 | AD43: TRAILMT D24 | AE43: 116.844 | AF43: 118.132 | AJ43: TRAILMT D24 | AK43: 33.979 | AL43: 26.574 | AN43: TRAILMT D24 | AO43: 38.077 | AP43: 27.166 | AR43: TRAILMT D24 | AS43: 37.917 | AT43: 37.156 | AV43: TRAILMT D24 | AW43: 109.973 | AX43: 90.896
A44: WHLA D24 | B44: 27.533 | C44: 28.24 | D44: 28.031 | E44: 26.926 | F44: 27.618 | G44: 26.53 | H44: 27.212 | I44: 27.011 | J44: 24.216 | K44: 26.613 | L44: 25.564 | M44: 26.221 | N44: 321.716 | R44: WHLA D24 | S44: 29.568 | T44: 27.533 | V44: WHLA D24 | W44: 27.807 | X44: 28.24 | Z44: WHLA D24 | AA44: 28.564 | AB44: 28.031 | AD44: WHLA D24 | AE44: 85.939 | AF44: 83.804 | AJ44: WHLA D24 | AK44: 28.112 | AL44: 26.926 | AN44: WHLA D24 | AO44: 28.832 | AP44: 27.618 | AR44: WHLA D24 | AS44: 32.877 | AT44: 26.53 | AV44: WHLA D24 | AW44: 89.821 | AX44: 81.074
A45: WWILSON D24 | B45: 2.706 | C45: 2.783 | D45: 2.771 | E45: 2.669 | F45: 2.746 | G45: 2.645 | H45: 2.721 | I45: 2.709 | J45: 2.435 | K45: 2.684 | L45: 2.586 | M45: 2.66 | N45: 32.114 | R45: WWILSON D24 | S45: 0.915 | T45: 2.706 | V45: WWILSON D24 | W45: 0.74 | X45: 2.783 | Z45: WWILSON D24 | AA45: 0.926 | AB45: 2.771 | AD45: WWILSON D24 | AE45: 2.581 | AF45: 8.26 | AJ45: WWILSON D24 | AK45: 0.78 | AL45: 2.669 | AN45: WWILSON D24 | AO45: 0.919 | AP45: 2.746 | AR45: WWILSON D24 | AS45: 0.85 | AT45: 2.645 | AV45: WWILSON D24 | AW45: 2.549 | AX45: 8.06
A46: PDW1A1B D21 | B46: 0.484 | C46: 0.497 | D46: 0.493 | E46: 0.474 | F46: 0.486 | G46: 0.467 | H46: 0.48 | I46: 0.476 | J46: 0.427 | K46: 0.47 | L46: 0.451 | M46: 0.463 | N46: 5.668 | R46: PDW1A1B D21 | S46: 0.153 | T46: 0.484 | V46: PDW1A1B D21 | W46: 0.033 | X46: 0.497 | Z46: PDW1A1B D21 | AA46: 0.011 | AB46: 0.493 | AD46: PDW1A1B D21 | AE46: 0.197 | AF46: 1.474 | AJ46: PDW1A1B D21 | AK46: 0.076 | AL46: 0.474 | AN46: PDW1A1B D21 | AO46: 0.03 | AP46: 0.486 | AR46: PDW1A1B D21 | AS46: 0.039 | AT46: 0.467 | AV46: PDW1A1B D21 | AW46: 0.145 | AX46: 1.427
A47: MOSU MT | B47: 0.651 | C47: 0.669 | D47: 0.665 | E47: 0.641 | F47: 0.659 | G47: 0.634 | H47: 0.652 | I47: 0.648 | J47: 0.583 | K47: 0.642 | L47: 0.618 | M47: 0.635 | N47: 7.695 | R47: MOSU MT | S47: 0.172 | T47: 0.651 | V47: MOSU MT | W47: 0.033 | X47: 0.669 | Z47: MOSU MT | AA47: 0.193 | AB47: 0.665 | AD47: MOSU MT | AE47: 0.398 | AF47: 1.985 | AJ47: MOSU MT | AK47: 0.159 | AL47: 0.641 | AN47: MOSU MT | AO47: 0.083 | AP47: 0.659 | AR47: MOSU MT | AS47: 0 | AT47: 0.634 | AV47: MOSU MT | AW47: 0.242 | AX47: 1.934
A48: ACEJDMT PC | B48: 3.28 | C48: 3.373 | D48: 3.357 | E48: 3.234 | F48: 3.326 | G48: 3.204 | H48: 3.295 | I48: 3.28 | J48: 2.948 | K48: 3.249 | L48: 3.13 | M48: 3.219 | N48: 38.895 | R48: ACEJDMT PC | S48: 0 | T48: 3.28 | V48: ACEJDMT PC | W48: 0 | X48: 3.373 | Z48: ACEJDMT PC | AA48: 0 | AB48: 3.357 | AD48: ACEJDMT PC | AE48: 0 | AF48: 10.01 | AJ48: ACEJDMT PC | AK48: 1.13 | AL48: 3.234 | AN48: ACEJDMT PC | AO48: 3.443 | AP48: 3.326 | AR48: ACEJDMT PC | AS48: 3.334 | AT48: 3.204 | AV48: ACEJDMT PC | AW48: 7.907 | AX48: 9.764
A49: BRFM PC | B49: 0.143 | C49: 0.146 | D49: 0.146 | E49: 0.14 | F49: 0.144 | G49: 0.139 | H49: 0.142 | I49: 0.142 | J49: 0.127 | K49: 0.14 | L49: 0.135 | M49: 0.138 | N49: 1.682 | R49: BRFM PC | S49: 0.138 | T49: 0.143 | V49: BRFM PC | W49: 0.143 | X49: 0.146 | Z49: BRFM PC | AA49: 0.14 | AB49: 0.146 | AD49: BRFM PC | AE49: 0.421 | AF49: 0.435 | AJ49: BRFM PC | AK49: 0.13 | AL49: 0.14 | AN49: BRFM PC | AO49: 0.13 | AP49: 0.144 | AR49: BRFM PC | AS49: 0.147 | AT49: 0.139 | AV49: BRFM PC | AW49: 0.407 | AX49: 0.423
A50: BRFQ PC | B50: 9.729 | C50: 10.004 | D50: 9.955 | E50: 9.586 | F50: 9.857 | G50: 9.491 | H50: 9.759 | I50: 9.711 | J50: 8.728 | K50: 9.615 | L50: 9.259 | M50: 9.521 | N50: 115.216 | R50: BRFQ PC | S50: 12.089 | T50: 9.729 | V50: BRFQ PC | W50: 11.412 | X50: 10.004 | Z50: BRFQ PC | AA50: 10.91 | AB50: 9.955 | AD50: BRFQ PC | AE50: 34.411 | AF50: 29.688 | AJ50: BRFQ PC | AK50: 10.325 | AL50: 9.586 | AN50: BRFQ PC | AO50: 10.485 | AP50: 9.857 | AR50: BRFQ PC | AS50: 10.485 | AT50: 9.491 | AV50: BRFQ PC | AW50: 31.295 | AX50: 28.934
A51: BRFQMT PC | B51: 2.834 | C51: 2.908 | D51: 2.888 | E51: 2.776 | F51: 2.848 | G51: 2.737 | H51: 2.809 | I51: 2.789 | J51: 2.502 | K51: 2.751 | L51: 2.644 | M51: 2.713 | N51: 33.199 | R51: BRFQMT PC | S51: 3.58 | T51: 2.834 | V51: BRFQMT PC | W51: 3.586 | X51: 2.908 | Z51: BRFQMT PC | AA51: 3.561 | AB51: 2.888 | AD51: BRFQMT PC | AE51: 10.727 | AF51: 8.63 | AJ51: BRFQMT PC | AK51: 3.454 | AL51: 2.776 | AN51: BRFQMT PC | AO51: 3.532 | AP51: 2.848 | AR51: BRFQMT PC | AS51: 3.466 | AT51: 2.737 | AV51: BRFQMT PC | AW51: 10.452 | AX51: 8.361
A52: BRFW PC | B52: 8.65 | C52: 8.892 | D52: 8.846 | E52: 8.517 | F52: 8.755 | G52: 8.429 | H52: 8.665 | I52: 8.62 | J52: 7.745 | K52: 8.531 | L52: 8.213 | M52: 8.443 | N52: 102.306 | R52: BRFW PC | S52: 12.093 | T52: 8.65 | V52: BRFW PC | W52: 11.432 | X52: 8.892 | Z52: BRFW PC | AA52: 10.936 | AB52: 8.846 | AD52: BRFW PC | AE52: 34.461 | AF52: 26.388 | AJ52: BRFW PC | AK52: 13.229 | AL52: 8.517 | AN52: BRFW PC | AO52: 11.53 | AP52: 8.755 | AR52: BRFW PC | AS52: 10.542 | AT52: 8.429 | AV52: BRFW PC | AW52: 35.301 | AX52: 25.701
A53: BRUFF MT | B53: 5.045 | C53: 5.186 | D53: 5.158 | E53: 4.965 | F53: 5.103 | G53: 4.912 | H53: 5.049 | I53: 5.022 | J53: 4.512 | K53: 4.968 | L53: 4.783 | M53: 4.916 | N53: 59.617 | R53: BRUFF MT | S53: 5.948 | T53: 5.045 | V53: BRUFF MT | W53: 6.797 | X53: 5.186 | Z53: BRUFF MT | AA53: 6.67 | AB53: 5.158 | AD53: BRUFF MT | AE53: 19.415 | AF53: 15.389 | AJ53: BRUFF MT | AK53: 6.256 | AL53: 4.965 | AN53: BRUFF MT | AO53: 5.253 | AP53: 5.103 | AR53: BRUFF MT | AS53: 3.348 | AT53: 4.912 | AV53: BRUFF MT | AW53: 14.857 | AX53: 14.98
A54: CBFR PC | B54: 54.299 | C54: 55.729 | D54: 55.351 | E54: 53.202 | F54: 54.603 | G54: 52.484 | H54: 53.866 | I54: 53.501 | J54: 47.996 | K54: 52.778 | L54: 50.73 | M54: 52.066 | N54: 636.604 | R54: CBFR PC | S54: 60.146 | T54: 54.299 | V54: CBFR PC | W54: 61.857 | X54: 55.729 | Z54: CBFR PC | AA54: 58.448 | AB54: 55.351 | AD54: CBFR PC | AE54: 180.451 | AF54: 165.379 | AJ54: CBFR PC | AK54: 22.455 | AL54: 53.202 | AN54: CBFR PC | AO54: 10.645 | AP54: 54.603 | AR54: CBFR PC | AS54: 82.336 | AT54: 52.484 | AV54: CBFR PC | AW54: 115.436 | AX54: 160.289
A55: CCRUNIT MT | B55: 51.381 | C55: 52.446 | D55: 51.817 | E55: 49.554 | F55: 50.611 | G55: 48.418 | H55: 49.469 | I55: 48.92 | J55: 43.703 | K55: 47.864 | L55: 45.828 | M55: 46.86 | N55: 586.869 | R55: CCRUNIT MT | S55: 49.182 | T55: 51.381 | V55: CCRUNIT MT | W55: 62.546 | X55: 52.446 | Z55: CCRUNIT MT | AA55: 56.244 | AB55: 51.817 | AD55: CCRUNIT MT | AE55: 167.972 | AF55: 155.644 | AJ55: CCRUNIT MT | AK55: 58.139 | AL55: 49.554 | AN55: CCRUNIT MT | AO55: 58.809 | AP55: 50.611 | AR55: CCRUNIT MT | AS55: 50.71 | AT55: 48.418 | AV55: CCRUNIT MT | AW55: 167.658 | AX55: 148.583
A56: CCRUNIT PC | B56: 51.759 | C56: 49.112 | D56: 48.467 | E56: 49.856 | F56: 50.919 | G56: 48.724 | H56: 49.802 | I56: 49.277 | J56: 44.051 | K56: 48.282 | L56: 46.266 | M56: 47.35 | N56: 583.863 | R56: CCRUNIT PC | S56: 25.652 | T56: 51.759 | V56: CCRUNIT PC | W56: 31.105 | X56: 49.112 | Z56: CCRUNIT PC | AA56: 35.435 | AB56: 48.467 | AD56: CCRUNIT PC | AE56: 92.192 | AF56: 149.338 | AJ56: CCRUNIT PC | AK56: 29.711 | AL56: 49.856 | AN56: CCRUNIT PC | AO56: 41.902 | AP56: 50.919 | AR56: CCRUNIT PC | AS56: 31.018 | AT56: 48.724 | AV56: CCRUNIT PC | AW56: 102.631 | AX56: 149.499
A57: CCRUNITMT PC | B57: 15.108 | C57: 15.51 | D57: 15.409 | E57: 14.815 | F57: 15.21 | G57: 14.624 | H57: 15.013 | I57: 14.916 | J57: 13.385 | K57: 14.723 | L57: 14.155 | M57: 14.532 | N57: 177.4 | R57: CCRUNITMT PC | S57: 12.324 | T57: 15.108 | V57: CCRUNITMT PC | W57: 16.01 | X57: 15.51 | Z57: CCRUNITMT PC | AA57: 12.682 | AB57: 15.409 | AD57: CCRUNITMT PC | AE57: 41.016 | AF57: 46.027 | AJ57: CCRUNITMT PC | AK57: 12.417 | AL57: 14.815 | AN57: CCRUNITMT PC | AO57: 12.711 | AP57: 15.21 | AR57: CCRUNITMT PC | AS57: 10.432 | AT57: 14.624 | AV57: CCRUNITMT PC | AW57: 35.56 | AX57: 44.649
A58: CHBTC1 MT PC | B58: 20.551 | C58: 21.078 | D58: 20.921 | E58: 20.096 | F58: 20.611 | G58: 19.798 | H58: 20.306 | I58: 20.155 | J58: 18.07 | K58: 19.857 | L58: 19.074 | M58: 19.563 | N58: 240.081 | R58: CHBTC1 MT PC | S58: 25.401 | T58: 20.551 | V58: CHBTC1 MT PC | W58: 18.149 | X58: 21.078 | Z58: CHBTC1 MT PC | AA58: 18.471 | AB58: 20.921 | AD58: CHBTC1 MT PC | AE58: 62.021 | AF58: 62.55 | AJ58: CHBTC1 MT PC | AK58: 18.204 | AL58: 20.096 | AN58: CHBTC1 MT PC | AO58: 19.184 | AP58: 20.611 | AR58: CHBTC1 MT PC | AS58: 18.325 | AT58: 19.798 | AV58: CHBTC1 MT PC | AW58: 55.713 | AX58: 60.505
A59: CHBTCAT1 PC | B59: 27.307 | C59: 28.066 | D59: 27.916 | E59: 26.871 | F59: 27.618 | G59: 26.584 | H59: 27.323 | I59: 27.177 | J59: 24.416 | K59: 26.888 | L59: 25.882 | M59: 26.602 | N59: 322.651 | R59: CHBTCAT1 PC | S59: 43.635 | T59: 27.307 | V59: CHBTCAT1 PC | W59: 36.756 | X59: 28.066 | Z59: CHBTCAT1 PC | AA59: 32.285 | AB59: 27.916 | AD59: CHBTCAT1 PC | AE59: 112.676 | AF59: 83.289 | AJ59: CHBTCAT1 PC | AK59: 31.516 | AL59: 26.871 | AN59: CHBTCAT1 PC | AO59: 31.297 | AP59: 27.618 | AR59: CHBTCAT1 PC | AS59: 28.02 | AT59: 26.584 | AV59: CHBTCAT1 PC | AW59: 90.833 | AX59: 81.073
A60: CHBTCAT2 PC | B60: 1.855 | C60: 1.9 | D60: 1.883 | E60: 1.807 | F60: 1.851 | G60: 1.776 | H60: 1.819 | I60: 1.803 | J60: 1.615 | K60: 1.772 | L60: 1.7 | M60: 1.742 | N60: 21.523 | R60: CHBTCAT2 PC | S60: 2.548 | T60: 1.855 | V60: CHBTCAT2 PC | W60: 2.68 | X60: 1.9 | Z60: CHBTCAT2 PC | AA60: 1.878 | AB60: 1.883 | AD60: CHBTCAT2 PC | AE60: 7.106 | AF60: 5.638 | AJ60: CHBTCAT2 PC | AK60: 1.77 | AL60: 1.807 | AN60: CHBTCAT2 PC | AO60: 1.843 | AP60: 1.851 | AR60: CHBTCAT2 PC | AS60: 1.646 | AT60: 1.776 | AV60: CHBTCAT2 PC | AW60: 5.259 | AX60: 5.434
A61: DRYPINY6 PC | B61: 0.996 | C61: 1.025 | D61: 1.021 | E61: 0.984 | F61: 1.012 | G61: 0.975 | H61: 1.003 | I61: 0.999 | J61: 0.899 | K61: 0.991 | L61: 0.955 | M61: 0.982 | N61: 11.841 | R61: DRYPINY6 PC | S61: 0.095 | T61: 0.996 | V61: DRYPINY6 PC | W61: 0.1 | X61: 1.025 | Z61: DRYPINY6 PC | AA61: 0.098 | AB61: 1.021 | AD61: DRYPINY6 PC | AE61: 0.293 | AF61: 3.042 | AJ61: DRYPINY6 PC | AK61: 0.089 | AL61: 0.984 | AN61: DRYPINY6 PC | AO61: 0.093 | AP61: 1.012 | AR61: DRYPINY6 PC | AS61: 0.091 | AT61: 0.975 | AV61: DRYPINY6 PC | AW61: 0.273 | AX61: 2.971
A62: DRYPINYU PC | B62: 9.668 | C62: 9.928 | D62: 9.865 | E62: 9.487 | F62: 9.742 | G62: 9.369 | H62: 9.621 | I62: 9.56 | J62: 8.581 | K62: 9.441 | L62: 9.08 | M62: 9.324 | N62: 113.667 | R62: DRYPINYU PC | S62: 9.024 | T62: 9.668 | V62: DRYPINYU PC | W62: 10.296 | X62: 9.928 | Z62: DRYPINYU PC | AA62: 10.094 | AB62: 9.865 | AD62: DRYPINYU PC | AE62: 29.414 | AF62: 29.461 | AJ62: DRYPINYU PC | AK62: 9.903 | AL62: 9.487 | AN62: DRYPINYU PC | AO62: 10.343 | AP62: 9.742 | AR62: DRYPINYU PC | AS62: 9.758 | AT62: 9.369 | AV62: DRYPINYU PC | AW62: 30.004 | AX62: 28.598
A63: FOGARTY PC | B63: 0.764 | C63: 0.785 | D63: 0.78 | E63: 0.75 | F63: 0.77 | G63: 0.74 | H63: 0.76 | I63: 0.755 | J63: 0.678 | K63: 0.745 | L63: 0.717 | M63: 0.736 | N63: 8.978 | R63: FOGARTY PC | S63: 0 | T63: 0.764 | V63: FOGARTY PC | W63: 0 | X63: 0.785 | Z63: FOGARTY PC | AA63: 0 | AB63: 0.78 | AD63: FOGARTY PC | AE63: 0 | AF63: 2.329 | AJ63: FOGARTY PC | AK63: 1.1 | AL63: 0.75 | AN63: FOGARTY PC | AO63: 0.647 | AP63: 0.77 | AR63: FOGARTY PC | AS63: 0.074 | AT63: 0.74 | AV63: FOGARTY PC | AW63: 1.821 | AX63: 2.26
A64: HWA DEEP PC | B64: 0.242 | C64: 0.248 | D64: 0.246 | E64: 0.237 | F64: 0.243 | G64: 0.234 | H64: 0.24 | I64: 0.238 | J64: 0.214 | K64: 0.235 | L64: 0.226 | M64: 0.232 | N64: 2.836 | R64: HWA DEEP PC | S64: 0.227 | T64: 0.242 | V64: HWA DEEP PC | W64: 0.092 | X64: 0.248 | Z64: HWA DEEP PC | AA64: 0.139 | AB64: 0.246 | AD64: HWA DEEP PC | AE64: 0.458 | AF64: 0.736 | AJ64: HWA DEEP PC | AK64: 0.012 | AL64: 0.237 | AN64: HWA DEEP PC | AO64: 0.122 | AP64: 0.243 | AR64: HWA DEEP PC | AS64: 0.1 | AT64: 0.234 | AV64: HWA DEEP PC | AW64: 0.234 | AX64: 0.714
A65: HWPL1&3MTPC | B65: 5.93 | C65: 6.085 | D65: 6.044 | E65: 5.809 | F65: 5.961 | G65: 5.729 | H65: 5.88 | I65: 5.839 | J65: 5.238 | K65: 5.759 | L65: 5.535 | M65: 5.681 | N65: 69.49 | R65: HWPL1&3MTPC | S65: 7.733 | T65: 5.93 | V65: HWPL1&3MTPC | W65: 5.718 | X65: 6.085 | Z65: HWPL1&3MTPC | AA65: 7.144 | AB65: 6.044 | AD65: HWPL1&3MTPC | AE65: 20.595 | AF65: 18.059 | AJ65: HWPL1&3MTPC | AK65: 7.565 | AL65: 5.809 | AN65: HWPL1&3MTPC | AO65: 7.966 | AP65: 5.961 | AR65: HWPL1&3MTPC | AS65: 7.07 | AT65: 5.729 | AV65: HWPL1&3MTPC | AW65: 22.601 | AX65: 17.499
A66: HWPLT1&3 PC | B66: 47.163 | C66: 48.434 | D66: 48.135 | E66: 46.295 | F66: 47.543 | G66: 45.726 | H66: 46.959 | I66: 46.67 | J66: 41.893 | K66: 46.096 | L66: 44.335 | M66: 45.531 | N66: 554.78 | R66: HWPLT1&3 PC | S66: 55.237 | T66: 47.163 | V66: HWPLT1&3 PC | W66: 49.12 | X66: 48.434 | Z66: HWPLT1&3 PC | AA66: 50.661 | AB66: 48.135 | AD66: HWPLT1&3 PC | AE66: 155.018 | AF66: 143.732 | AJ66: HWPLT1&3 PC | AK66: 52.382 | AL66: 46.295 | AN66: HWPLT1&3 PC | AO66: 53.406 | AP66: 47.543 | AR66: HWPLT1&3 PC | AS66: 52.757 | AT66: 45.726 | AV66: HWPLT1&3 PC | AW66: 158.545 | AX66: 139.564
A67: HWPLT2 PC | B67: 0.826 | C67: 0.849 | D67: 0.844 | E67: 0.813 | F67: 0.836 | G67: 0.804 | H67: 0.827 | I67: 0.822 | J67: 0.739 | K67: 0.814 | L67: 0.783 | M67: 0.805 | N67: 9.761 | R67: HWPLT2 PC | S67: 0.732 | T67: 0.826 | V67: HWPLT2 PC | W67: 0.632 | X67: 0.849 | Z67: HWPLT2 PC | AA67: 0.733 | AB67: 0.844 | AD67: HWPLT2 PC | AE67: 2.097 | AF67: 2.519 | AJ67: HWPLT2 PC | AK67: 0.644 | AL67: 0.813 | AN67: HWPLT2 PC | AO67: 0.682 | AP67: 0.836 | AR67: HWPLT2 PC | AS67: 0.636 | AT67: 0.804 | AV67: HWPLT2 PC | AW67: 1.962 | AX67: 2.453
A68: ISLAND PC | B68: 0.526 | C68: 0.54 | D68: 0.537 | E68: 0.517 | F68: 0.53 | G68: 0.51 | H68: 0.524 | I68: 0.521 | J68: 0.467 | K68: 0.514 | L68: 0.494 | M68: 0.508 | N68: 6.189 | R68: ISLAND PC | S68: 0.608 | T68: 0.526 | V68: ISLAND PC | W68: 0.626 | X68: 0.54 | Z68: ISLAND PC | AA68: 0.431 | AB68: 0.537 | AD68: ISLAND PC | AE68: 1.665 | AF68: 1.603 | AJ68: ISLAND PC | AK68: 0.011 | AL68: 0.517 | AN68: ISLAND PC | AO68: 0 | AP68: 0.53 | AR68: ISLAND PC | AS68: 0.001 | AT68: 0.51 | AV68: ISLAND PC | AW68: 0.012 | AX68: 1.557
A69: JNSNRDG PC | B69: 1.847 | C69: 1.901 | D69: 1.893 | E69: 1.825 | F69: 1.878 | G69: 1.81 | H69: 1.862 | I69: 1.855 | J69: 1.668 | K69: 1.84 | L69: 1.773 | M69: 1.825 | N69: 21.976 | R69: JNSNRDG PC | S69: 3.453 | T69: 1.847 | V69: JNSNRDG PC | W69: 2.885 | X69: 1.901 | Z69: JNSNRDG PC | AA69: 2.577 | AB69: 1.893 | AD69: JNSNRDG PC | AE69: 8.915 | AF69: 5.641 | AJ69: JNSNRDG PC | AK69: 2.317 | AL69: 1.825 | AN69: JNSNRDG PC | AO69: 2.335 | AP69: 1.878 | AR69: JNSNRDG PC | AS69: 0 | AT69: 1.81 | AV69: JNSNRDG PC | AW69: 4.652 | AX69: 5.513
A70: KNY FLD PC | B70: 2.873 | C70: 2.957 | D70: 2.946 | E70: 2.839 | F70: 2.922 | G70: 2.817 | H70: 2.9 | I70: 2.888 | J70: 2.598 | K70: 2.865 | L70: 2.762 | M70: 2.843 | N70: 34.211 | R70: KNY FLD PC | S70: =VLOOKUP(R70,R$130:S$234,2,FALSE)/1000 -> 3.938 | T70: 2.873 | V70: KNY FLD PC | W70: =VLOOKUP(V70,V$130:W$234,2,FALSE)/1000 -> 3.852 | X70: 2.957 | Z70: KNY FLD PC | AA70: =VLOOKUP(Z70,Z$130:AA$234,2,FALSE)/1000 -> 5.195 | AB70: 2.946 | AD70: KNY FLD PC | AE70: =VLOOKUP(AD70,AD$130:AE$234,2,FALSE)/1000 -> 12.985 | AF70: 8.776 | AJ70: KNY FLD PC | AK70: =VLOOKUP(AJ70,AJ$130:AK$237,2,FALSE)/1000 -> 1.398 | AL70: 2.839 | AN70: KNY FLD PC | AO70: =VLOOKUP(AN70,AN$130:AO$237,2,FALSE)/1000 -> 0 | AP70: 2.922 | AR70: KNY FLD PC | AS70: =VLOOKUP(AR70,AR$130:AS$237,2,FALSE)/1000 -> 0.636 | AT70: 2.817 | AV70: KNY FLD PC | AW70: =VLOOKUP(AV70,AV$130:AW$237,2,FALSE)/1000 -> 2.034 | AX70: 8.578
A71: MOSUMT PC | B71: 7.177 | C71: 7.367 | D71: 7.318 | E71: 7.034 | F71: 7.22 | G71: 6.941 | H71: 7.124 | I71: 7.077 | J71: 6.349 | K71: 6.983 | L71: 6.712 | M71: 6.89 | N71: 84.192 | R71: MOSUMT PC | S71: 7.282 | T71: =B71 -> 7.177 | V71: MOSUMT PC | W71: 6.436 | X71: =C71 -> 7.367 | Z71: MOSUMT PC | AA71: 7.385 | AB71: =D71 -> 7.318 | AD71: MOSUMT PC | AE71: 21.103 | AF71: =T71+X71+AB71 -> 21.862 | AJ71: MOSUMT PC | AK71: 7.529 | AL71: =E71 -> 7.034 | AN71: MOSUMT PC | AO71: 7.171 | AP71: =F71 -> 7.22 | AR71: MOSUMT PC | AS71: 7.034 | AT71: =G71 -> 6.941 | AV71: MOSUMT PC | AW71: 21.734 | AX71: =AL71+AP71+AT71 -> 21.195
A72: NBXCAMP PC | B72: 2.673 | C72: 2.678 | D72: 2.602 | E72: 2.449 | F72: 2.466 | G72: 2.328 | H72: 2.35 | I72: 2.297 | J72: 2.031 | K72: 2.202 | L72: 2.09 | M72: 2.118 | N72: 28.285 | R72: NBXCAMP PC | S72: 3.803 | T72: 2.673 | V72: NBXCAMP PC | W72: 3.306 | X72: 2.678 | Z72: NBXCAMP PC | AA72: 3.584 | AB72: 2.602 | AD72: NBXCAMP PC | AE72: 10.693 | AF72: 7.953 | AJ72: NBXCAMP PC | AK72: 5.027 | AL72: 2.449 | AN72: NBXCAMP PC | AO72: 3.482 | AP72: 2.466 | AR72: NBXCAMP PC | AS72: 4.968 | AT72: 2.328 | AV72: NBXCAMP PC | AW72: 13.477 | AX72: 7.243
A73: NOBXFLD PC | B73: 3.419 | C73: 3.515 | D73: 3.497 | E73: 3.367 | F73: 3.461 | G73: 3.332 | H73: 3.425 | I73: 3.408 | J73: 3.062 | K73: 3.373 | L73: 3.247 | M73: 3.338 | N73: 40.444 | R73: NOBXFLD PC | S73: 1.98 | T73: 3.419 | V73: NOBXFLD PC | W73: 0 | X73: 3.515 | Z73: NOBXFLD PC | AA73: 0.399 | AB73: 3.497 | AD73: NOBXFLD PC | AE73: 2.379 | AF73: 10.431 | AJ73: NOBXFLD PC | AK73: 4.939 | AL73: 3.367 | AN73: NOBXFLD PC | AO73: 0.718 | AP73: 3.461 | AR73: NOBXFLD PC | AS73: 5.224 | AT73: 3.332 | AV73: NOBXFLD PC | AW73: 10.881 | AX73: 10.16
A74: PDW1A1B PC | B74: 0.738 | C74: 0.757 | D74: 0.752 | E74: 0.723 | F74: 0.742 | G74: 0.713 | H74: 0.732 | I74: 0.726 | J74: 0.652 | K74: 0.716 | L74: 0.689 | M74: 0.707 | N74: 8.646 | R74: PDW1A1B PC | S74: 0.894 | T74: 0.738 | V74: PDW1A1B PC | W74: 0.915 | X74: 0.757 | Z74: PDW1A1B PC | AA74: 0.919 | AB74: 0.752 | AD74: PDW1A1B PC | AE74: 2.728 | AF74: 2.247 | AJ74: PDW1A1B PC | AK74: 0.546 | AL74: 0.723 | AN74: PDW1A1B PC | AO74: 0 | AP74: 0.742 | AR74: PDW1A1B PC | AS74: 0.309 | AT74: 0.713 | AV74: PDW1A1B PC | AW74: 0.855 | AX74: 2.178
A75: PDW1A1B MT PC | B75: 3.999 | C75: 4.112 | D75: 4.092 | E75: 3.941 | F75: 4.053 | G75: 3.903 | H75: 4.014 | I75: 3.995 | J75: 3.591 | K75: 3.956 | L75: 3.81 | M75: 3.918 | N75: 47.385 | R75: PDW1A1B MT PC | S75: 2.303 | T75: 3.999 | V75: PDW1A1B MT PC | W75: 3.259 | X75: 4.112 | Z75: PDW1A1B MT PC | AA75: 1.102 | AB75: 4.092 | AD75: PDW1A1B MT PC | AE75: 6.664 | AF75: 12.203 | AJ75: PDW1A1B MT PC | AK75: 4.307 | AL75: 3.941 | AN75: PDW1A1B MT PC | AO75: 5.087 | AP75: 4.053 | AR75: PDW1A1B MT PC | AS75: 2.83 | AT75: 3.903 | AV75: PDW1A1B MT PC | AW75: 12.224 | AX75: 11.897
A76: PDWCUT PC | B76: 0.655 | C76: 0.674 | D76: 0.672 | E76: 0.648 | F76: 0.667 | G76: 0.643 | H76: 0.662 | I76: 0.66 | J76: 0.594 | K76: 0.655 | L76: 0.631 | M76: 0.65 | N76: 7.811 | R76: PDWCUT PC | S76: 0 | T76: 0.655 | V76: PDWCUT PC | W76: 0 | X76: 0.674 | Z76: PDWCUT PC | AA76: 0 | AB76: 0.672 | AD76: PDWCUT PC | AE76: 0 | AF76: 2.001 | AJ76: PDWCUT PC | AK76: 0 | AL76: 0.648 | AN76: PDWCUT PC | AO76: 0.003 | AP76: 0.667 | AR76: PDWCUT PC | AS76: 0 | AT76: 0.643 | AV76: PDWCUT PC | AW76: 0.003 | AX76: 1.958
A77: PDWPLT2 PC | B77: 4.842 | C77: 4.98 | D77: 4.957 | E77: 4.774 | F77: 4.91 | G77: 4.73 | H77: 4.864 | I77: 4.841 | J77: 4.352 | K77: 4.796 | L77: 4.62 | M77: 4.751 | N77: 57.418 | R77: PDWPLT2 PC | S77: 5.74 | T77: 4.842 | V77: PDWPLT2 PC | W77: 5.804 | X77: 4.98 | Z77: PDWPLT2 PC | AA77: 5.659 | AB77: 4.957 | AD77: PDWPLT2 PC | AE77: 17.203 | AF77: 14.779 | AJ77: PDWPLT2 PC | AK77: 5.826 | AL77: 4.774 | AN77: PDWPLT2 PC | AO77: 5.716 | AP77: 4.91 | AR77: PDWPLT2 PC | AS77: 4.012 | AT77: 4.73 | AV77: PDWPLT2 PC | AW77: 15.554 | AX77: 14.414
A78: PDWPLT3 PC | B78: 5.401 | C78: 5.549 | D78: 5.517 | E78: 5.308 | F78: 5.453 | G78: 5.247 | H78: 5.391 | I78: 5.36 | J78: 4.813 | K78: 5.298 | L78: 5.098 | M78: 5.237 | N78: 63.671 | R78: PDWPLT3 PC | S78: 5.501 | T78: 5.401 | V78: PDWPLT3 PC | W78: 4.996 | X78: 5.549 | Z78: PDWPLT3 PC | AA78: 3.49 | AB78: 5.517 | AD78: PDWPLT3 PC | AE78: 13.987 | AF78: 16.467 | AJ78: PDWPLT3 PC | AK78: 4.825 | AL78: 5.308 | AN78: PDWPLT3 PC | AO78: 4.53 | AP78: 5.453 | AR78: PDWPLT3 PC | AS78: 4.438 | AT78: 5.247 | AV78: PDWPLT3 PC | AW78: 13.793 | AX78: 16.008
A79: SBXSWEET PC | B79: 0.127 | C79: 0.131 | D79: 0.13 | E79: 0.125 | F79: 0.129 | G79: 0.124 | H79: 0.128 | I79: 0.127 | J79: 0.114 | K79: 0.125 | L79: 0.121 | M79: 0.124 | N79: 1.506 | R79: SBXSWEET PC | S79: 0 | T79: 0.127 | V79: SBXSWEET PC | W79: 0 | X79: 0.131 | Z79: SBXSWEET PC | AA79: 0 | AB79: 0.13 | AD79: SBXSWEET PC | AE79: 0 | AF79: 0.388 | AJ79: SBXSWEET PC | AK79: 0 | AL79: 0.125 | AN79: SBXSWEET PC | AO79: 0 | AP79: 0.129 | AR79: SBXSWEET PC | AS79: 0 | AT79: 0.124 | AV79: SBXSWEET PC | AW79: 0 | AX79: 0.378
A80: SGRLF PC | B80: 31.82 | C80: 32.675 | D80: 32.47 | E80: 31.226 | F80: 32.065 | G80: 30.836 | H80: 31.665 | I80: 31.467 | J80: 28.244 | K80: 31.075 | L80: 29.885 | M80: 30.688 | N80: 374.116 | R80: SGRLF PC | S80: 27.186 | T80: 31.82 | V80: SGRLF PC | W80: 32.168 | X80: 32.675 | Z80: SGRLF PC | AA80: 31.499 | AB80: 32.47 | AD80: SGRLF PC | AE80: 90.853 | AF80: 96.965 | AJ80: SGRLF PC | AK80: =VLOOKUP(AJ80,AJ$130:AK$237,2,FALSE)/1000 -> 15.14 | AL80: 31.226 | AN80: SGRLF PC | AO80: =VLOOKUP(AN80,AN$130:AO$237,2,FALSE)/1000 -> 25.627 | AP80: 32.065 | AR80: SGRLF PC | AS80: =VLOOKUP(AR80,AR$130:AS$237,2,FALSE)/1000 -> 35.61 | AT80: 30.836 | AV80: SGRLF PC | AW80: =VLOOKUP(AV80,AV$130:AW$237,2,FALSE)/1000 -> 76.377 | AX80: 94.127
A81: TRAIL PC | B81: 1.032 | C81: 1.059 | D81: 1.051 | E81: 0 | F81: 0 | G81: 1.011 | H81: 1.037 | I81: 1.03 | J81: 0.924 | K81: 1.016 | L81: 0.976 | M81: 1.002 | N81: 12.205 | R81: TRAIL PC | S81: 0.939 | T81: 1.032 | V81: TRAIL PC | W81: 0.904 | X81: 1.059 | Z81: TRAIL PC | AA81: 0.441 | AB81: 1.051 | AD81: TRAIL PC | AE81: 2.284 | AF81: 3.142 | AJ81: TRAIL PC | AK81: =VLOOKUP(AJ81,AJ$130:AK$237,2,FALSE)/1000 -> 0 | AL81: 0 | AN81: TRAIL PC | AO81: =VLOOKUP(AN81,AN$130:AO$237,2,FALSE)/1000 -> 0 | AP81: 0 | AR81: TRAIL PC | AS81: =VLOOKUP(AR81,AR$130:AS$237,2,FALSE)/1000 -> 1.981 | AT81: 1.011 | AV81: TRAIL PC | AW81: =VLOOKUP(AV81,AV$130:AW$237,2,FALSE)/1000 -> 1.981 | AX81: 1.011
A82: WHLA PC | B82: 7.306 | C82: 7.472 | D82: 7.397 | E82: 7.088 | F82: 7.252 | G82: 6.951 | H82: 7.114 | I82: 7.048 | J82: 6.307 | K82: 6.919 | L82: 6.635 | M82: 6.795 | N82: 84.283 | R82: WHLA PC | S82: 2.626 | T82: 7.306 | V82: WHLA PC | W82: 1.128 | X82: 7.472 | Z82: WHLA PC | AA82: 0.473 | AB82: 7.397 | AD82: WHLA PC | AE82: 4.227 | AF82: 22.175 | AJ82: WHLA PC | AK82: =VLOOKUP(AJ82,AJ$130:AK$237,2,FALSE)/1000 -> 4.717 | AL82: 7.088 | AN82: WHLA PC | AO82: =VLOOKUP(AN82,AN$130:AO$237,2,FALSE)/1000 -> 4.159 | AP82: 7.252 | AR82: WHLA PC | AS82: =VLOOKUP(AR82,AR$130:AS$237,2,FALSE)/1000 -> 4.73 | AT82: 6.951 | AV82: WHLA PC | AW82: =VLOOKUP(AV82,AV$130:AW$237,2,FALSE)/1000 -> 13.606 | AX82: 21.291
A83: WWILSON PC | B83: 7.155 | C83: 7.349 | D83: 7.305 | E83: 7.027 | F83: 7.217 | G83: 6.943 | H83: 7.131 | I83: 7.088 | J83: 6.364 | K83: 7.004 | L83: 6.737 | M83: 6.92 | N83: 84.24 | R83: WWILSON PC | S83: 8.9 | T83: 7.155 | V83: WWILSON PC | W83: 6.774 | X83: 7.349 | Z83: WWILSON PC | AA83: 11.045 | AB83: 7.305 | AD83: WWILSON PC | AE83: 26.719 | AF83: 21.809 | AJ83: WWILSON PC | AK83: =VLOOKUP(AJ83,AJ$130:AK$237,2,FALSE)/1000 -> 8.618 | AL83: 7.027 | AN83: WWILSON PC | AO83: =VLOOKUP(AN83,AN$130:AO$237,2,FALSE)/1000 -> 7.468 | AP83: 7.217 | AR83: WWILSON PC | AS83: =VLOOKUP(AR83,AR$130:AS$237,2,FALSE)/1000 -> 4.832 | AT83: 6.943 | AV83: WWILSON PC | AW83: =VLOOKUP(AV83,AV$130:AW$237,2,FALSE)/1000 -> 20.918 | AX83: 21.187
A84: Legacy Total | B84: =SUM(B6:B83) -> 2559.25 | C84: 2566.943 | D84: 2544.021 | E84: 2435.993 | F84: 2494.484 | G84: 2449.272 | H84: 2509.073 | I84: 2487.599 | J84: 2224.928 | K84: 2442.541 | L84: 2343.963 | M84: 2401.026 | N84: 29461.154 | R84: Legacy Total | S84: =SUM(S6:S83) -> 2686.93 | T84: =SUM(T6:T83) -> 2559.25 | V84: Legacy Total | W84: =SUM(W6:W83) -> 2687.398 | X84: 2566.943 | Z84: Legacy Total | AA84: =SUM(AA6:AA83) -> 2558.522 | AB84: 2544.021 | AD84: Legacy Total | AE84: =SUM(AE6:AE83) -> 7932.85 | AF84: 7670.214 | AJ84: Legacy Total | AK84: =SUM(AK6:AK83) -> 2428.631 | AL84: =SUM(AL6:AL83) -> 2435.993 | AN84: Legacy Total | AO84: =SUM(AO6:AO83) -> 2522.534 | AP84: =C84 -> 2566.943 | AR84: Legacy Total | AS84: =SUM(AS6:AS83) -> 2462.862 | AT84: =D84 -> 2544.021 | AV84: Legacy Total | AW84: =SUM(AW6:AW83) -> 7414.027 | AX84: 7546.957
A86: Wexpro I | R86: Wexpro I | V86: Wexpro I | Z86: Wexpro I | AD86: Wexpro I | AJ86: Wexpro I | AN86: Wexpro I | AR86: Wexpro I | AV86: Wexpro I
A87: CCRUNIT D8 | B87: 180.775 | C87: 182.518 | D87: 178.633 | E87: 169.424 | F87: 171.777 | G87: 180.404 | H87: 182.827 | I87: 179.473 | J87: 159.262 | K87: 173.362 | L87: 165.057 | M87: 167.902 | N87: 2091.414 | R87: CCRUNIT D8 | S87: =VLOOKUP(R87,R$130:S$234,2,FALSE)/1000 -> 186.083 | T87: 180.775 | V87: CCRUNIT D8 | W87: =VLOOKUP(V87,V$130:W$234,2,FALSE)/1000 -> 197.626 | X87: 182.518 | Z87: CCRUNIT D8 | AA87: =VLOOKUP(Z87,Z$130:AA$234,2,FALSE)/1000 -> 189.324 | AB87: 178.633 | AD87: CCRUNIT D8 | AE87: =VLOOKUP(AD87,AD$130:AE$234,2,FALSE)/1000 -> 573.033 | AF87: 541.926 | AJ87: CCRUNIT D8 | AK87: =VLOOKUP(AJ87,AJ$130:AK$237,2,FALSE)/1000 -> 183.156 | AL87: =E87 -> 169.424 | AN87: CCRUNIT D8 | AO87: =VLOOKUP(AN87,AN$130:AO$237,2,FALSE)/1000 -> 206.641 | AP87: =F87 -> 171.777 | AR87: CCRUNIT D8 | AS87: =VLOOKUP(AR87,AR$130:AS$237,2,FALSE)/1000 -> 196.267 | AT87: =G87 -> 180.404 | AV87: CCRUNIT D8 | AW87: =VLOOKUP(AV87,AV$130:AW$237,2,FALSE)/1000 -> 586.064 | AX87: 521.605
A88: KNY FLD D8 | B88: 16.361 | C88: 16.379 | D88: 15.894 | E88: 14.948 | F88: 15.03 | G88: 14.171 | H88: 14.283 | I88: 13.945 | J88: 12.309 | K88: 13.329 | L88: 12.627 | M88: 12.782 | N88: 172.057 | R88: KNY FLD D8 | S88: 0 | T88: 16.361 | V88: KNY FLD D8 | W88: 14.539 | X88: 16.379 | Z88: KNY FLD D8 | AA88: 6.771 | AB88: 15.894 | AD88: KNY FLD D8 | AE88: 21.31 | AF88: 48.634 | AJ88: KNY FLD D8 | AK88: =VLOOKUP(AJ88,AJ$130:AK$237,2,FALSE)/1000 -> 8.942 | AL88: =E88 -> 14.948 | AN88: KNY FLD D8 | AO88: =VLOOKUP(AN88,AN$130:AO$237,2,FALSE)/1000 -> 25.686 | AP88: =F88 -> 15.03 | AR88: KNY FLD D8 | AS88: =VLOOKUP(AR88,AR$130:AS$237,2,FALSE)/1000 -> 21.705 | AT88: =G88 -> 14.171 | AV88: KNY FLD D8 | AW88: =VLOOKUP(AV88,AV$130:AW$237,2,FALSE)/1000 -> 56.333 | AX88: 44.149
A89: MESA D8 | B89: 356.579 | C89: 362.281 | D89: 356.346 | E89: 339.331 | F89: 345.156 | G89: 328.911 | H89: 334.785 | I89: 329.876 | J89: 293.673 | K89: 320.561 | L89: 305.939 | M89: 311.857 | N89: 3985.293 | R89: MESA D8 | S89: 269.956 | T89: 356.579 | V89: MESA D8 | W89: 268.367 | X89: 362.281 | Z89: MESA D8 | AA89: 263.77 | AB89: 356.346 | AD89: MESA D8 | AE89: 802.093 | AF89: 1075.206 | AJ89: MESA D8 | AK89: =VLOOKUP(AJ89,AJ$130:AK$237,2,FALSE)/1000 -> 246.371 | AL89: 339.331 | AN89: MESA D8 | AO89: =VLOOKUP(AN89,AN$130:AO$237,2,FALSE)/1000 -> 254.913 | AP89: 345.156 | AR89: MESA D8 | AS89: =VLOOKUP(AR89,AR$130:AS$237,2,FALSE)/1000 -> 234.879 | AT89: 328.911 | AV89: MESA D8 | AW89: =VLOOKUP(AV89,AV$130:AW$237,2,FALSE)/1000 -> 736.163 | AX89: 1013.398
A90: TRAIL D8 | B90: 258.901 | C90: 261.756 | D90: 255.319 | E90: 162.046 | F90: 160.83 | G90: 245.101 | H90: 246.22 | I90: 239.997 | J90: 211.746 | K90: 229.407 | L90: 216.319 | M90: 215.446 | N90: 2703.087 | R90: TRAIL D8 | S90: 274.61 | T90: 258.901 | V90: TRAIL D8 | W90: 260.435 | X90: 261.756 | Z90: TRAIL D8 | AA90: 214.735 | AB90: 255.319 | AD90: TRAIL D8 | AE90: 749.78 | AF90: 775.976 | AJ90: TRAIL D8 | AK90: =VLOOKUP(AJ90,AJ$130:AK$237,2,FALSE)/1000 -> 251.006 | AL90: 162.046 | AN90: TRAIL D8 | AO90: =VLOOKUP(AN90,AN$130:AO$237,2,FALSE)/1000 -> 285.248 | AP90: 160.83 | AR90: TRAIL D8 | AS90: =VLOOKUP(AR90,AR$130:AS$237,2,FALSE)/1000 -> 264.008 | AT90: 245.101 | AV90: TRAIL D8 | AW90: =VLOOKUP(AV90,AV$130:AW$237,2,FALSE)/1000 -> 800.262 | AX90: 567.977
A91: z22 CCRK D8 | B91: 0 | C91: 0 | D91: 0 | E91: 0 | F91: 0 | G91: 140 | H91: 113.677 | I91: 95.204 | J91: 74.718 | K91: 73.631 | L91: 64.511 | M91: 61.12 | N91: 622.859 | R91: z22 CCRK D8 | S91: 0 | T91: 0 | V91: z22 CCRK D8 | W91: 0 | X91: 0 | Z91: z22 CCRK D8 | AA91: 0 | AB91: 0 | AD91: z22 CCRK D8 | AE91: 0 | AF91: 0 | AJ91: z22 CCRK D8 | AK91: =VLOOKUP(AJ91,AJ$130:AK$237,2,FALSE)/1000 -> 16.132 | AL91: 0 | AN91: z22 CCRK D8 | AO91: =VLOOKUP(AN91,AN$130:AO$237,2,FALSE)/1000 -> 31.136 | AP91: 0 | AR91: z22 CCRK D8 | AS91: =VLOOKUP(AR91,AR$130:AS$237,2,FALSE)/1000 -> 57.44 | AT91: 140 | AV91: z22 CCRK D8 | AW91: =VLOOKUP(AV91,AV$130:AW$237,2,FALSE)/1000 -> 104.708 | AX91: 140
A92: Z22 ISLAND D8 | B92: 0 | C92: 64.549 | D92: 54.17 | E92: 45.822 | F92: 42.446 | G92: 37.462 | H92: 35.749 | I92: 33.33 | J92: 28.278 | K92: 29.586 | L92: 27.192 | M92: 26.797 | N92: 425.382 | R92: Z22 ISLAND D8 | S92: 0 | T92: 0 | V92: Z22 ISLAND D8 | W92: 0 | X92: 64.549 | Z92: Z22 ISLAND D8 | AA92: 0 | AB92: 54.17 | AD92: Z22 ISLAND D8 | AE92: 0 | AF92: 118.719 | AJ92: Z22 ISLAND D8 | AK92: 0 | AL92: 45.822 | AN92: Z22 ISLAND D8 | AO92: 0 | AP92: 42.446 | AR92: Z22 ISLAND D8 | AS92: 0 | AT92: 37.462 | AV92: Z22 ISLAND D8 | AW92: 0 | AX92: 125.73
A93: z22 TRAIL D8 | B93: 0 | C93: 0 | D93: 0 | E93: 0 | F93: 0 | G93: 374.616 | H93: 307.139 | I93: 258.825 | J93: 204.042 | K93: 201.77 | L93: 177.276 | M93: 168.355 | N93: 1692.022 | R93: z22 TRAIL D8 | S93: 0 | T93: 0 | V93: z22 TRAIL D8 | W93: 0 | X93: 0 | Z93: z22 TRAIL D8 | AA93: 0 | AB93: 0 | AD93: z22 TRAIL D8 | AE93: 0 | AF93: 0 | AJ93: z22 TRAIL D8 | AK93: =VLOOKUP(AJ93,AJ$130:AK$237,2,FALSE)/1000 -> 41.244 | AL93: 0 | AN93: z22 TRAIL D8 | AO93: =VLOOKUP(AN93,AN$130:AO$237,2,FALSE)/1000 -> 111.31 | AP93: 0 | AR93: z22 TRAIL D8 | AS93: =VLOOKUP(AR93,AR$130:AS$237,2,FALSE)/1000 -> 107.663 | AT93: 374.616 | AV93: z22 TRAIL D8 | AW93: =VLOOKUP(AV93,AV$130:AW$237,2,FALSE)/1000 -> 260.217 | AX93: 374.616
A94: Wexpro I Total | B94: =SUM(B87:B93) -> 812.616 | C94: =SUM(C87:C93) -> 887.483 | D94: 860.362 | E94: 731.571 | F94: 735.239 | G94: 1320.665 | H94: 1234.68 | I94: 1150.65 | J94: 984.028 | K94: 1041.646 | L94: 968.921 | M94: 964.259 | N94: 11692.114 | R94: Wexpro I Total | S94: =SUM(S87:S93) -> 730.649 | T94: =SUM(T87:T93) -> 812.616 | V94: Wexpro I Total | W94: =SUM(W87:W93) -> 740.967 | X94: 887.483 | Z94: Wexpro I Total | AA94: =SUM(AA87:AA93) -> 674.6 | AB94: 860.362 | AD94: Wexpro I Total | AE94: =SUM(AE87:AE93) -> 2146.216 | AF94: 2560.461 | AJ94: Wexpro I Total | AK94: =SUM(AK87:AK93) -> 746.851 | AL94: =SUM(AL87:AL93) -> 731.571 | AN94: Wexpro I Total | AO94: =SUM(AO87:AO93) -> 914.934 | AP94: =C94 -> 887.483 | AR94: Wexpro I Total | AS94: =SUM(AS87:AS93) -> 881.962 | AT94: =D94 -> 860.362 | AV94: Wexpro I Total | AW94: =SUM(AW87:AW93) -> 2543.747 | AX94: 2479.416
A96: Wexpro II | R96: Wexpro II | V96: Wexpro II | Z96: Wexpro II | AD96: Wexpro II | AJ96: Wexpro II | AN96: Wexpro II | AR96: Wexpro II | AV96: Wexpro II
A97: CCOPA 2E | B97: 3.641 | C97: 3.739 | D97: 3.716 | E97: 3.574 | F97: 3.67 | G97: 3.53 | H97: 3.625 | I97: 3.602 | J97: 3.234 | K97: 3.558 | L97: 3.422 | M97: 3.514 | N97: 42.824 | R97: CCOPA 2E | S97: =VLOOKUP(R97,R$130:S$234,2,FALSE)/1000 -> 3.107 | T97: 3.641 | V97: CCOPA 2E | W97: =VLOOKUP(V97,V$130:W$234,2,FALSE)/1000 -> 3.915 | X97: 3.739 | Z97: CCOPA 2E | AA97: =VLOOKUP(Z97,Z$130:AA$234,2,FALSE)/1000 -> 4.845 | AB97: 3.716 | AD97: CCOPA 2E | AE97: =VLOOKUP(AD97,AD$130:AE$234,2,FALSE)/1000 -> 11.867 | AF97: 11.096 | AJ97: CCOPA 2E | AK97: =VLOOKUP(AJ97,AJ$130:AK$237,2,FALSE)/1000 -> 3.992 | AL97: =E97 -> 3.574 | AN97: CCOPA 2E | AO97: =VLOOKUP(AN97,AN$130:AO$237,2,FALSE)/1000 -> 3.532 | AP97: =F97 -> 3.67 | AR97: CCOPA 2E | AS97: =VLOOKUP(AR97,AR$130:AS$237,2,FALSE)/1000 -> 2.764 | AT97: =G97 -> 3.53 | AV97: CCOPA 2E | AW97: =VLOOKUP(AV97,AV$130:AW$237,2,FALSE)/1000 -> 10.288 | AX97: 10.774
A98: CCRUNIT 2D8 | B98: 60.223 | C98: 61.352 | D98: 60.506 | E98: 57.766 | F98: 58.905 | G98: 64.516 | H98: 65.587 | I98: 64.565 | J98: 57.44 | K98: 62.668 | L98: 59.791 | M98: 60.938 | N98: 734.259 | R98: CCRUNIT 2D8 | S98: 64.904 | T98: 60.223 | V98: CCRUNIT 2D8 | W98: 69.823 | X98: 61.352 | Z98: CCRUNIT 2D8 | AA98: 68.057 | AB98: 60.506 | AD98: CCRUNIT 2D8 | AE98: 202.784 | AF98: 182.081 | AJ98: CCRUNIT 2D8 | AK98: 69.931 | AL98: =E98 -> 57.766 | AN98: CCRUNIT 2D8 | AO98: 81.733 | AP98: =F98 -> 58.905 | AR98: CCRUNIT 2D8 | AS98: 77.224 | AT98: =G98 -> 64.516 | AV98: CCRUNIT 2D8 | AW98: 228.888 | AX98: 181.187
A99: CCRUNIT 2E | B99: 297.981 | C99: 277.191 | D99: 270.092 | E99: 276.892 | F99: 280.258 | G99: 266.049 | H99: 270.008 | I99: 265.459 | J99: 235.937 | K99: 257.234 | L99: 245.304 | M99: 249.927 | N99: 3192.335 | R99: CCRUNIT 2E | S99: 268.733 | T99: =B99 -> 297.981 | V99: CCRUNIT 2E | W99: 274.803 | X99: 277.191 | Z99: CCRUNIT 2E | AA99: 269.951 | AB99: 270.092 | AD99: CCRUNIT 2E | AE99: 813.487 | AF99: 845.264 | AJ99: CCRUNIT 2E | AK99: 237.395 | AL99: 276.892 | AN99: CCRUNIT 2E | AO99: 252.945 | AP99: 280.258 | AR99: CCRUNIT 2E | AS99: 229.301 | AT99: 266.049 | AV99: CCRUNIT 2E | AW99: 719.641 | AX99: 823.199
A100: CCRUNIT 2E MT | B100: 22.048 | C100: 22.544 | D100: 22.311 | E100: 21.373 | F100: 21.866 | G100: 20.954 | H100: 21.443 | I100: 21.24 | J100: 19.005 | K100: 20.847 | L100: 19.991 | M100: 20.471 | N100: 254.092 | R100: CCRUNIT 2E MT | S100: 23.064 | T100: 22.048 | V100: CCRUNIT 2E MT | W100: 21.202 | X100: 22.544 | Z100: CCRUNIT 2E MT | AA100: 17.837 | AB100: 22.311 | AD100: CCRUNIT 2E MT | AE100: 62.103 | AF100: 66.903 | AJ100: CCRUNIT 2E MT | AK100: 17.155 | AL100: 21.373 | AN100: CCRUNIT 2E MT | AO100: 24.687 | AP100: 21.866 | AR100: CCRUNIT 2E MT | AS100: 23.043 | AT100: 20.954 | AV100: CCRUNIT 2E MT | AW100: 64.885 | AX100: 64.193
A101: TRAIL 2D8 | B101: 296.404 | C101: 298.835 | D101: 290.871 | E101: 205.387 | F101: 204.232 | G101: 275.372 | H101: 276.401 | I101: 269.148 | J101: 237.203 | K101: 256.683 | L101: 241.903 | M101: 241.121 | N101: 3093.56 | R101: TRAIL 2D8 | S101: 315.279 | T101: 296.404 | V101: TRAIL 2D8 | W101: 295.745 | X101: 298.835 | Z101: TRAIL 2D8 | AA101: 253.335 | AB101: 290.871 | AD101: TRAIL 2D8 | AE101: 864.359 | AF101: 886.11 | AJ101: TRAIL 2D8 | AK101: 271.268 | AL101: 205.387 | AN101: TRAIL 2D8 | AO101: 315.126 | AP101: 204.232 | AR101: TRAIL 2D8 | AS101: 300.318 | AT101: 275.372 | AV101: TRAIL 2D8 | AW101: 886.712 | AX101: 684.991
A102: TRAIL 2E | B102: 271.199 | C102: 276.41 | D102: 272.731 | E102: 206.632 | F102: 210.728 | G102: 255.206 | H102: 260.503 | I102: 257.402 | J102: 229.782 | K102: 251.498 | L102: 240.662 | M102: 245.955 | N102: 2978.708 | R102: TRAIL 2E | S102: 296.088 | T102: 271.199 | V102: TRAIL 2E | W102: 290.108 | X102: 276.41 | Z102: TRAIL 2E | AA102: 254.68 | AB102: 272.731 | AD102: TRAIL 2E | AE102: 840.876 | AF102: 820.34 | AJ102: TRAIL 2E | AK102: 254.991 | AL102: 206.632 | AN102: TRAIL 2E | AO102: 275.526 | AP102: 210.728 | AR102: TRAIL 2E | AS102: 278.708 | AT102: 255.206 | AV102: TRAIL 2E | AW102: 809.225 | AX102: 672.566
A103: TRAIL 2E MT | B103: 37.295 | C103: 38.12 | D103: 37.713 | E103: 25.431 | F103: 25.996 | G103: 35.575 | H103: 36.394 | I103: 36.035 | J103: 32.231 | K103: 35.343 | L103: 33.879 | M103: 34.681 | N103: 408.693 | R103: TRAIL 2E MT | S103: 35.744 | T103: 37.295 | V103: TRAIL 2E MT | W103: 37.531 | X103: 38.12 | Z103: TRAIL 2E MT | AA103: 30.526 | AB103: 37.713 | AD103: TRAIL 2E MT | AE103: 103.801 | AF103: 113.128 | AJ103: TRAIL 2E MT | AK103: 30.134 | AL103: 25.431 | AN103: TRAIL 2E MT | AO103: 34.025 | AP103: 25.996 | AR103: TRAIL 2E MT | AS103: 34.392 | AT103: 35.575 | AV103: TRAIL 2E MT | AW103: 98.551 | AX103: 87.002
A104: WHISKEY MT | B104: 21.336 | C104: 21.768 | D104: 21.497 | E104: 20.549 | F104: 20.979 | G104: 20.062 | H104: 20.49 | I104: 20.256 | J104: 18.09 | K104: 19.807 | L104: 18.959 | M104: 19.381 | N104: 243.173 | R104: WHISKEY MT | S104: 18.282 | T104: 21.336 | V104: WHISKEY MT | W104: 24.341 | X104: 21.768 | Z104: WHISKEY MT | AA104: 22.216 | AB104: 21.497 | AD104: WHISKEY MT | AE104: 64.839 | AF104: 64.601 | AJ104: WHISKEY MT | AK104: 26.133 | AL104: 20.549 | AN104: WHISKEY MT | AO104: 27.719 | AP104: 20.979 | AR104: WHISKEY MT | AS104: 26.358 | AT104: 20.062 | AV104: WHISKEY MT | AW104: 80.21 | AX104: 61.59
A105: WHISKEYC 2E | B105: 70.381 | C105: 25.038 | D105: 24.791 | E105: 69.157 | F105: 70.718 | G105: 90.969 | H105: 91.35 | I105: 89.075 | J105: 78.651 | K105: 85.298 | L105: 80.988 | M105: 82.216 | N105: 858.633 | R105: WHISKEYC 2E | S105: 60.761 | T105: 70.381 | V105: WHISKEYC 2E | W105: 77.133 | X105: 25.038 | Z105: WHISKEYC 2E | AA105: 46.576 | AB105: 24.791 | AD105: WHISKEYC 2E | AE105: 184.47 | AF105: 120.21 | AJ105: WHISKEYC 2E | AK105: 20.417 | AL105: 69.157 | AN105: WHISKEYC 2E | AO105: 53.117 | AP105: 70.718 | AR105: WHISKEYC 2E | AS105: 181.977 | AT105: 90.969 | AV105: WHISKEYC 2E | AW105: 255.511 | AX105: 230.844
A106: z22 CCRK 2D8 | B106: 0 | C106: 0 | D106: 0 | E106: 0 | F106: 0 | G106: 58.216 | H106: 47.27 | I106: 39.588 | J106: 31.07 | K106: 30.618 | L106: 26.825 | M106: 25.415 | N106: 259.003 | R106: z22 CCRK 2D8 | S106: 0 | T106: 0 | V106: z22 CCRK 2D8 | W106: 0 | X106: 0 | Z106: z22 CCRK 2D8 | AA106: 0 | AB106: 0 | AD106: z22 CCRK 2D8 | AE106: 0 | AF106: 0 | AJ106: z22 CCRK 2D8 | AK106: 8.091 | AL106: 0 | AN106: z22 CCRK 2D8 | AO106: 15.616 | AP106: 0 | AR106: z22 CCRK 2D8 | AS106: 28.808 | AT106: 58.216 | AV106: z22 CCRK 2D8 | AW106: 52.515 | AX106: 58.216
A107: z22 TRAIL2D8 | B107: 0 | C107: 0 | D107: 0 | E107: 0 | F107: 0 | G107: 366.57 | H107: 300.573 | I107: 253.307 | J107: 199.702 | K107: 197.485 | L107: 173.517 | M107: 164.787 | N107: 1655.941 | R107: z22 TRAIL2D8 | S107: 0 | T107: 0 | V107: z22 TRAIL2D8 | W107: 0 | X107: 0 | Z107: z22 TRAIL2D8 | AA107: 0 | AB107: 0 | AD107: z22 TRAIL2D8 | AE107: 0 | AF107: 0 | AJ107: z22 TRAIL2D8 | AK107: 40.776 | AL107: 0 | AN107: z22 TRAIL2D8 | AO107: 110.042 | AP107: 0 | AR107: z22 TRAIL2D8 | AS107: 106.439 | AT107: 366.57 | AV107: z22 TRAIL2D8 | AW107: 257.257 | AX107: 366.57
A108: z22 WSKY 2D8 | B108: 0 | C108: 0 | D108: 0 | E108: 0 | F108: 0 | G108: 129.06 | H108: 107.775 | I108: 91.868 | J108: 73.018 | K108: 72.658 | L108: 64.161 | M108: 61.188 | N108: 599.728 | R108: z22 WSKY 2D8 | S108: 0 | T108: 0 | V108: z22 WSKY 2D8 | W108: 0 | X108: 0 | Z108: z22 WSKY 2D8 | AA108: 0 | AB108: 0 | AD108: z22 WSKY 2D8 | AE108: 0 | AF108: 0 | AJ108: z22 WSKY 2D8 | AK108: 0 | AL108: 0 | AN108: z22 WSKY 2D8 | AO108: 5.079 | AP108: 0 | AR108: z22 WSKY 2D8 | AS108: 19.198 | AT108: 129.06 | AV108: z22 WSKY 2D8 | AW108: 24.277 | AX108: 129.06
A109: Wexpro II Total | B109: =SUM(B97:B108) -> 1080.508 | C109: =SUM(C97:C108) -> 1024.997 | D109: 1004.228 | E109: 886.761 | F109: 897.352 | G109: 1586.079 | H109: 1501.419 | I109: 1411.545 | J109: 1215.363 | K109: 1293.697 | L109: 1209.402 | M109: 1209.594 | N109: 14320.949 | R109: Wexpro II Total | S109: =SUM(S97:S108) -> 1085.962 | T109: =SUM(T97:T108) -> 1080.508 | V109: Wexpro II Total | W109: =SUM(W97:W108) -> 1094.601 | X109: 1024.997 | Z109: Wexpro II Total | AA109: =SUM(AA97:AA108) -> 968.023 | AB109: 1004.228 | AD109: Wexpro II Total | AE109: =SUM(AE97:AE108) -> 3148.586 | AF109: 3109.733 | AJ109: Wexpro II Total | AK109: =SUM(AK97:AK108) -> 980.283 | AL109: =SUM(AL97:AL108) -> 886.761 | AN109: Wexpro II Total | AO109: =SUM(AO97:AO108) -> 1199.147 | AP109: =C109 -> 1024.997 | AR109: Wexpro II Total | AS109: =SUM(AS97:AS108) -> 1308.53 | AT109: =D109 -> 1004.228 | AV109: Wexpro II Total | AW109: =SUM(AW97:AW108) -> 3487.96 | AX109: 2915.986
A111: Alkali Acquisition | R111: Alkali Acquisition | V111: Alkali Acquisition | Z111: Alkali Acquisition | AD111: Alkali Acquisition | AJ111: Alkali Acquisition | AN111: Alkali Acquisition | AR111: Alkali Acquisition | AV111: Alkali Acquisition
A112: ALKALI D8 | B112: 0 | C112: 0 | D112: 0 | E112: 0 | F112: 0 | G112: 0 | H112: 0 | I112: 0 | J112: 0 | K112: 0 | L112: 0 | M112: 0 | N112: 0 | R112: ALKALI D8 | S112: =VLOOKUP(R112,R$131:S$235,2,FALSE)/1000 -> 3.837 | T112: 0 | V112: ALKALI D8 | W112: =VLOOKUP(V112,V$131:W$235,2,FALSE)/1000 -> 211.593 | X112: 0 | Z112: ALKALI D8 | AA112: =VLOOKUP(Z112,Z$131:AA$235,2,FALSE)/1000 -> 202.569 | AB112: 0 | AD112: ALKALI D8 | AE112: =VLOOKUP(AD112,AD$131:AE$235,2,FALSE)/1000 -> 417.999 | AF112: 0 | AJ112: ALKALI D8 | AK112: =VLOOKUP(AJ112,AJ$131:AK$238,2,FALSE)/1000 -> 241.186 | AL112: 0 | AN112: ALKALI D8 | AO112: =VLOOKUP(AN112,AN$131:AO$238,2,FALSE)/1000 -> 254.907 | AP112: 0 | AR112: ALKALI D8 | AS112: =VLOOKUP(AR112,AR$131:AS$238,2,FALSE)/1000 -> 222.819 | AT112: 0 | AV112: ALKALI D8 | AW112: =VLOOKUP(AV112,AV$131:AW$238,2,FALSE)/1000 -> 718.912 | AX112: 0
R113: Alkali Total | S113: =S112 -> 3.837 | T113: =T112 -> 0 | V113: Alkali Total | W113: =W112 -> 211.593 | X113: 0 | Z113: Alkali Total | AA113: 202.569 | AB113: 0 | AD113: Alkali Total | AE113: 417.999 | AF113: 0 | AJ113: Alkali Total | AK113: =AK112 -> 241.186 | AL113: =AL112 -> 0 | AN113: Alkali Total | AO113: =AO112 -> 254.907 | AP113: 0 | AR113: Alkali Total | AS113: 222.819 | AT113: 0 | AV113: Alkali Total | AW113: 718.912 | AX113: 0
A115: Q50 | R115: Q50 | V115: Q50 | Z115: Q50 | AD115: Q50 | AJ115: Q50 | AN115: Q50 | AR115: Q50 | AV115: Q50
A116: BRCH CRK Q50 | B116: 0.654 | C116: 0.662 | D116: 0.649 | E116: 0.616 | F116: 0.625 | G116: 0.594 | H116: 0.603 | I116: 0.592 | J116: 0.525 | K116: 0.572 | L116: 0.544 | M116: 0.553 | N116: 7.19 | R116: BRCH CRK Q50 | S116: =VLOOKUP(R116,R$130:S$234,2,FALSE)/1000 -> 0.675 | T116: =B116 -> 0.654 | V116: BRCH CRK Q50 | W116: =VLOOKUP(V116,V$130:W$234,2,FALSE)/1000 -> 0.619 | X116: =C116 -> 0.662 | Z116: BRCH CRK Q50 | AA116: =VLOOKUP(Z116,Z$130:AA$234,2,FALSE)/1000 -> 0.691 | AB116: =D116 -> 0.649 | AD116: BRCH CRK Q50 | AE116: =VLOOKUP(AD116,AD$130:AE$234,2,FALSE)/1000 -> 1.985 | AF116: 1.965 | AJ116: BRCH CRK Q50 | AK116: =VLOOKUP(AJ116,AJ$130:AK$237,2,FALSE)/1000 -> 0.669 | AL116: =E116 -> 0.616 | AN116: BRCH CRK Q50 | AO116: =VLOOKUP(AN116,AN$130:AO$237,2,FALSE)/1000 -> 0.69 | AP116: =F116 -> 0.625 | AR116: BRCH CRK Q50 | AS116: =VLOOKUP(AR116,AR$130:AS$237,2,FALSE)/1000 -> 0.667 | AT116: =G116 -> 0.594 | AV116: BRCH CRK Q50 | AW116: =VLOOKUP(AV116,AV$130:AW$237,2,FALSE)/1000 -> 2.026 | AX116: 1.835
A117: CCRUNIT Q50 | B117: 0 | C117: 0 | D117: 0 | E117: 0 | F117: 0 | G117: 0 | H117: 0 | I117: 0 | J117: 0 | K117: 0 | L117: 0 | M117: 0 | N117: 0 | R117: CCRUNIT Q50 | S117: =VLOOKUP(R117,R$130:S$234,2,FALSE)/1000 -> 0.622 | T117: =B117 -> 0 | V117: CCRUNIT Q50 | W117: =VLOOKUP(V117,V$130:W$234,2,FALSE)/1000 -> 0.277 | X117: =C117 -> 0 | Z117: CCRUNIT Q50 | AA117: =VLOOKUP(Z117,Z$130:AA$234,2,FALSE)/1000 -> 0 | AB117: =D117 -> 0 | AD117: CCRUNIT Q50 | AE117: =VLOOKUP(AD117,AD$130:AE$234,2,FALSE)/1000 -> 0.899 | AF117: 0 | AJ117: CCRUNIT Q50 | AK117: =VLOOKUP(AJ117,AJ$130:AK$237,2,FALSE)/1000 -> 0.513 | AL117: =E117 -> 0 | AN117: CCRUNIT Q50 | AO117: =VLOOKUP(AN117,AN$130:AO$237,2,FALSE)/1000 -> 0.736 | AP117: =F117 -> 0 | AR117: CCRUNIT Q50 | AS117: =VLOOKUP(AR117,AR$130:AS$237,2,FALSE)/1000 -> 0.255 | AT117: =G117 -> 0 | AV117: CCRUNIT Q50 | AW117: =VLOOKUP(AV117,AV$130:AW$237,2,FALSE)/1000 -> 1.504 | AX117: 0
A118: TRAIL Q50 | B118: 1.912 | C118: 1.955 | D118: 1.935 | E118: 1.854 | F118: 1.896 | G118: 1.817 | H118: 1.86 | I118: 1.842 | J118: 1.649 | K118: 1.808 | L118: 1.734 | M118: 1.776 | N118: 22.039 | R118: TRAIL Q50 | S118: =VLOOKUP(R118,R$130:S$234,2,FALSE)/1000 -> 1.537 | T118: =B118 -> 1.912 | V118: TRAIL Q50 | W118: =VLOOKUP(V118,V$130:W$234,2,FALSE)/1000 -> 1.74 | X118: =C118 -> 1.955 | Z118: TRAIL Q50 | AA118: =VLOOKUP(Z118,Z$130:AA$234,2,FALSE)/1000 -> 1.826 | AB118: =D118 -> 1.935 | AD118: TRAIL Q50 | AE118: =VLOOKUP(AD118,AD$130:AE$234,2,FALSE)/1000 -> 5.103 | AF118: 5.802 | AJ118: TRAIL Q50 | AK118: =VLOOKUP(AJ118,AJ$130:AK$237,2,FALSE)/1000 -> 1.471 | AL118: 1.854 | AN118: TRAIL Q50 | AO118: =VLOOKUP(AN118,AN$130:AO$237,2,FALSE)/1000 -> 1.6 | AP118: 1.896 | AR118: TRAIL Q50 | AS118: =VLOOKUP(AR118,AR$130:AS$237,2,FALSE)/1000 -> 1.301 | AT118: 1.817 | AV118: TRAIL Q50 | AW118: =VLOOKUP(AV118,AV$130:AW$237,2,FALSE)/1000 -> 4.372 | AX118: 5.567
A119: Q 50 Total | B119: =B116+B118 -> 2.566 | C119: =C116+C118 -> 2.617 | D119: 2.584 | E119: 2.47 | F119: 2.521 | G119: 2.411 | H119: 2.463 | I119: 2.434 | J119: 2.174 | K119: 2.38 | L119: 2.278 | M119: 2.329 | N119: 29.229 | R119: Q 50 Total | S119: =SUM(S116:S118) -> 2.834 | T119: =SUM(T116:T118) -> 2.566 | V119: Q 50 Total | W119: =SUM(W116:W118) -> 2.636 | X119: =C119 -> 2.617 | Z119: Q 50 Total | AA119: =SUM(AA116:AA118) -> 2.517 | AB119: =D119 -> 2.584 | AD119: Q 50 Total | AE119: =SUM(AE116:AE118) -> 7.987 | AF119: 7.767 | AJ119: Q 50 Total | AK119: =SUM(AK116:AK118) -> 2.653 | AL119: =SUM(AL116:AL118) -> 2.47 | AN119: Q 50 Total | AO119: =SUM(AO116:AO118) -> 3.026 | AP119: =C119 -> 2.617 | AR119: Q 50 Total | AS119: =SUM(AS116:AS118) -> 2.223 | AT119: =D119 -> 2.584 | AV119: Q 50 Total | AW119: =SUM(AW116:AW118) -> 7.902 | AX119: 7.671
R120: Total | S120: =S84+S94+S109+S119+S113 -> 4510.212 | T120: =T84+T94+T109+T119+T113 -> 4454.94 | V120: Total | W120: =W84+W94+W109+W119+W113 -> 4737.195 | X120: =X84+X94+X109+X119+X113 -> 4482.04 | Z120: Total | AA120: =AA84+AA94+AA109+AA119+AA113 -> 4406.231 | AB120: =AB84+AB94+AB109+AB119+AB113 -> 4411.195 | AD120: Total | AE120: =AE84+AE94+AE109+AE119+AE113 -> 13653.638 | AF120: =AF84+AF94+AF109+AF119+AF113 -> 13348.175 | AJ120: Total | AK120: =AK84+AK94+AK109+AK119+AK113 -> 4399.604 | AL120: =AL84+AL94+AL109+AL119+AL113 -> 4056.795 | AN120: Total | AO120: =AO84+AO94+AO109+AO119+AO113 -> 4894.548 | AP120: =AP84+AP94+AP109+AP119+AP113 -> 4482.04 | AR120: Total | AS120: =AS84+AS94+AS109+AS119+AS113 -> 4878.396 | AT120: =AT84+AT94+AT109+AT119+AT113 -> 4411.195 | AV120: Total | AW120: =AW84+AW94+AW109+AW119+AW113 -> 14172.548 | AX120: =AX84+AX94+AX109+AX119+AX113 -> 12950.03
A122: Off-System | R122: Off-System | V122: Off-System | Z122: Off-System | AD122: Off-System | AJ122: Off-System | AN122: Off-System | AR122: Off-System | AV122: Off-System
A123: OFF SYS D24 | B123: 32.531 | C123: 33.42 | D123: 33.225 | E123: 31.967 | F123: 32.842 | G123: 31.599 | H123: 32.464 | I123: 32.278 | J123: 28.986 | K123: 31.908 | L123: 30.405 | M123: 31.239 | N123: 382.865 | R123: OFF SYS D24 | S123: =VLOOKUP(R123,R$130:S$234,2,FALSE)/1000 -> 0 | T123: =B123 -> 32.531 | V123: OFF SYS D24 | W123: =VLOOKUP(V123,V$130:W$234,2,FALSE)/1000 -> 0 | X123: =C123 -> 33.42 | Z123: OFF SYS D24 | AA123: =VLOOKUP(Z123,Z$130:AA$234,2,FALSE)/1000 -> 0 | AB123: =D123 -> 33.225 | AD123: OFF SYS D24 | AE123: =VLOOKUP(AD123,AD$130:AE$234,2,FALSE)/1000 -> 0 | AF123: 99.176 | AJ123: OFF SYS D24 | AK123: =VLOOKUP(AJ123,AJ$130:AK$237,2,FALSE)/1000 -> 0 | AL123: =B123 -> 32.531 | AN123: OFF SYS D24 | AO123: =VLOOKUP(AN123,AN$130:AO$237,2,FALSE)/1000 -> 0 | AP123: =C123 -> 33.42 | AR123: OFF SYS D24 | AS123: =VLOOKUP(AR123,AR$130:AS$237,2,FALSE)/1000 -> 0 | AT123: =D123 -> 33.225 | AV123: OFF SYS D24 | AW123: =VLOOKUP(AV123,AV$130:AW$237,2,FALSE)/1000 -> 0 | AX123: 99.176
A124: OFF SYS PC | B124: 6.522 | C124: 6.935 | D124: 7.129 | E124: 7.085 | F124: 7.349 | G124: 7.08 | H124: 7.283 | I124: 7.25 | J124: 6.519 | K124: 7.185 | L124: 6.921 | M124: 7.12 | N124: 84.379 | R124: OFF SYS PC | S124: =VLOOKUP(R124,R$130:S$234,2,FALSE)/1000 -> 0 | T124: =B124 -> 6.522 | V124: OFF SYS PC | W124: =VLOOKUP(V124,V$130:W$234,2,FALSE)/1000 -> 0 | X124: =C124 -> 6.935 | Z124: OFF SYS PC | AA124: =VLOOKUP(Z124,Z$130:AA$234,2,FALSE)/1000 -> 0 | AB124: =D124 -> 7.129 | AD124: OFF SYS PC | AE124: =VLOOKUP(AD124,AD$130:AE$234,2,FALSE)/1000 -> 0 | AF124: 20.586 | AJ124: OFF SYS PC | AK124: =VLOOKUP(AJ124,AJ$130:AK$237,2,FALSE)/1000 -> 0 | AL124: =B124 -> 6.522 | AN124: OFF SYS PC | AO124: =VLOOKUP(AN124,AN$130:AO$237,2,FALSE)/1000 -> 0 | AP124: =C124 -> 6.935 | AR124: OFF SYS PC | AS124: =VLOOKUP(AR124,AR$130:AS$237,2,FALSE)/1000 -> 0 | AT124: =D124 -> 7.129 | AV124: OFF SYS PC | AW124: =VLOOKUP(AV124,AV$130:AW$237,2,FALSE)/1000 -> 0 | AX124: 20.586
A125: OFF SYS PW | B125: 0.054 | C125: 0.055 | D125: 0.055 | E125: 0.053 | F125: 0.054 | G125: 0.052 | H125: 0.053 | I125: 0.053 | J125: 0.047 | K125: 0.052 | L125: 0.05 | M125: 0.052 | N125: 0.63 | R125: OFF SYS PW | S125: =VLOOKUP(R125,R$130:S$234,2,FALSE)/1000 -> 0 | T125: =B125 -> 0.054 | V125: OFF SYS PW | W125: =VLOOKUP(V125,V$130:W$234,2,FALSE)/1000 -> 0 | X125: =C125 -> 0.055 | Z125: OFF SYS PW | AA125: =VLOOKUP(Z125,Z$130:AA$234,2,FALSE)/1000 -> 0 | AB125: =D125 -> 0.055 | AD125: OFF SYS PW | AE125: =VLOOKUP(AD125,AD$130:AE$234,2,FALSE)/1000 -> 0 | AF125: 0.164 | AJ125: OFF SYS PW | AK125: =VLOOKUP(AJ125,AJ$130:AK$237,2,FALSE)/1000 -> 0 | AL125: =B125 -> 0.054 | AN125: OFF SYS PW | AO125: 0 | AP125: =C125 -> 0.055 | AR125: OFF SYS PW | AS125: 0 | AT125: =D125 -> 0.055 | AV125: OFF SYS PW | AW125: 0 | AX125: 0.164
A126: Off-System Total | B126: =B125+B124+B123 -> 39.107 | C126: =C125+C124+C123 -> 40.41 | D126: 40.409 | E126: 39.105 | F126: 40.245 | G126: 38.731 | H126: 39.8 | I126: 39.581 | J126: 35.552 | K126: 39.145 | L126: 37.376 | M126: 38.411 | N126: 467.874 | R126: Off-System Total | S126: =SUM(S123:S125) -> 0 | T126: =SUM(T123:T125) -> 39.107 | V126: Off-System Total | W126: =SUM(W123:W125) -> 0 | X126: =C126 -> 40.41 | Z126: Off-System Total | AA126: =SUM(AA123:AA125) -> 0 | AB126: =D126 -> 40.409 | AD126: Off-System Total | AE126: =SUM(AE123:AE125) -> 0 | AF126: 119.926 | AJ126: Off-System Total | AK126: =SUM(AK123:AK125) -> 0 | AL126: =SUM(AL123:AL125) -> 39.107 | AN126: Off-System Total | AO126: =SUM(AO123:AO125) -> 0 | AP126: =C126 -> 40.41 | AR126: Off-System Total | AS126: =SUM(AS123:AS125) -> 0 | AT126: =D126 -> 40.409 | AV126: Off-System Total | AW126: =SUM(AW123:AW125) -> 0 | AX126: 119.926
A129: Total without Off System | B129: =B84+B94+B109+B119 -> 4454.94 | C129: 4482.04 | D129: 4411.195 | E129: 4056.795 | F129: 4129.596 | G129: 5358.427 | H129: 5247.635 | I129: 5052.228 | J129: 4426.493 | K129: 4780.264 | L129: 4524.564 | M129: 4577.208 | N129: =SUM(B129:M129) -> 55501.385 | S129: JUNE | W129: JULY | AA129: AUG | AE129: TOTAL | AK129: Sept | AO129: Oct | AS129: Nov | AW129: TOTAL
A130: Days/Month | B130: =DAY(EOMONTH(B5,0)) -> 30 | C130: 31 | D130: 31 | E130: 30 | F130: 31 | G130: 30 | H130: 31 | I130: 31 | J130: 28 | K130: 31 | L130: 30 | M130: 31 | N130: =SUM(B130:M130) -> 365 | R130: ACEJDMT D24 | S130: 8157 | V130: ACEJDMT D24 | W130: 8535 | Z130: ACEJDMT D24 | AA130: 7776 | AD130: ACEJDMT D24 | AE130: 24468 | AJ130: ACEJDMT D24 | AK130: 5586 | AN130: ACEJDMT D24 | AO130: 4920 | AR130: ACEJDMT D24 | AS130: 7795 | AV130: ACEJDMT D24 | AW130: 18301
A131: Per day | B131: =B129/B130 -> 148.498 | C131: =C129/C130 -> 144.5819355 | D131: 142.2966129 | E131: 135.2265 | F131: 133.2127742 | G131: 178.6142333 | H131: 169.2785484 | I131: 162.9750968 | J131: 158.0890357 | K131: 154.2020645 | L131: 150.8188 | M131: 147.651871 | N131: 1825.445472 | R131: ALKALI D8 | S131: 3837 | V131: ALKALI D8 | W131: 211593 | Z131: ALKALI D8 | AA131: 202569 | AD131: ALKALI D8 | AE131: 417999 | AJ131: ACEJDMT PC | AK131: 1130 | AN131: ACEJDMT PC | AO131: 3443 | AR131: ACEJDMT PC | AS131: 3334 | AV131: ACEJDMT PC | AW131: 7907
R132: BIRCH CREEK | S132: 113765 | V132: BIRCH CREEK | W132: 107093 | Z132: BIRCH CREEK | AA132: 125041 | AD132: BIRCH CREEK | AE132: 345899 | AJ132: ALKALI 2D8 | AK132: 122 | AN132: ALKALI 2D8 | AO132: 6316 | AR132: ALKALI 2D8 | AS132: 1751 | AV132: ALKALI 2D8 | AW132: 8189
A133: Total with Off System | B133: =B129+B126 -> 4494.047 | C133: =C129+C126 -> 4522.45 | D133: 4451.604 | E133: 4095.9 | F133: 4169.841 | G133: 5397.158 | H133: 5287.435 | I133: 5091.809 | J133: 4462.045 | K133: 4819.409 | L133: 4561.94 | M133: 4615.619 | N133: 55969.257 | R133: BRCH CRK Q50 | S133: 675 | V133: BRCH CRK Q50 | W133: 619 | Z133: BRCH CRK Q50 | AA133: 691 | AD133: BRCH CRK Q50 | AE133: 1985 | AJ133: ALKALI D8 | AK133: 241186 | AN133: ALKALI D8 | AO133: 254907 | AR133: ALKALI D8 | AS133: 222819 | AV133: ALKALI D8 | AW133: 718912
R134: BRFM D24 | S134: 2037 | V134: BRFM D24 | W134: 2008 | Z134: BRFM D24 | AA134: 2079 | AD134: BRFM D24 | AE134: 6124 | AJ134: BIRCH CREEK | AK134: 119926 | AN134: BIRCH CREEK | AO134: 123460 | AR134: BIRCH CREEK | AS134: 116156 | AV134: BIRCH CREEK | AW134: 359542
A135: Total Possible Prod. From SendOut | B135: 4459.698914 | C135: 4486.926486 | D135: 4416.054833 | E135: 4061.46664 | F135: 4134.398681 | G135: 5363.046602 | H135: 5252.377748 | I135: 5056.944163 | J135: 4430.727103 | K135: 4784.927759 | L135: 4529.049318 | M135: 4581.815263 | N135: 55557.43351 | R135: BRFM PC | S135: 138 | V135: BRFM PC | W135: 143 | Z135: BRFM PC | AA135: 140 | AD135: BRFM PC | AE135: 421 | AJ135: BRCH CRK Q50 | AK135: 669 | AN135: BRCH CRK Q50 | AO135: 690 | AR135: BRCH CRK Q50 | AS135: 667 | AV135: BRCH CRK Q50 | AW135: 2026
R136: BRFQ D24 | S136: 147361 | V136: BRFQ D24 | W136: 155766 | Z136: BRFQ D24 | AA136: 149480 | AD136: BRFQ D24 | AE136: 452607 | AJ136: BRFM D24 | AK136: 1884 | AN136: BRFM D24 | AO136: 2076 | AR136: BRFM D24 | AS136: 1991 | AV136: BRFM D24 | AW136: 5951
A137: Shut-In per Month/dth | B137: =(B135-B129)*1000 -> 4758.914466 | C137: =(C135-C129)*1000 -> 4886.48589 | D137: 4859.83283 | E137: 4671.640195 | F137: 4802.68149 | G137: 4619.601688 | H137: 4742.747685 | I137: 4716.163382 | J137: 4234.10253 | K137: 4663.759092 | L137: 4485.318389 | M137: 4607.263447 | N137: 56048.51108 | R137: BRFQ PC | S137: 12089 | V137: BRFQ PC | W137: 11412 | Z137: BRFQ PC | AA137: 10910 | AD137: BRFQ PC | AE137: 34411 | AJ137: BRFM PC | AK137: 130 | AN137: BRFM PC | AO137: 130 | AR137: BRFM PC | AS137: 147 | AV137: BRFM PC | AW137: 407
A138: Shut-In per Day/dth | B138: =B137/B130 -> 158.6304822 | C138: =C137/C130 -> 157.6285771 | D138: 156.768801 | E138: 155.7213398 | F138: 154.9252094 | G138: 153.9867229 | H138: 152.9918608 | I138: 152.1343027 | J138: 151.2179475 | K138: 150.4438417 | L138: 149.510613 | M138: 148.6214015 | N138: 1842.5811 | R138: BRFQMT D24 | S138: 6696 | V138: BRFQMT D24 | W138: 0 | Z138: BRFQMT D24 | AA138: 5900 | AD138: BRFQMT D24 | AE138: 12596 | AJ138: BRFQ D24 | AK138: 148148 | AN138: BRFQ D24 | AO138: 142860 | AR138: BRFQ D24 | AS138: 129976 | AV138: BRFQ D24 | AW138: 420984
R139: BRFQMT PC | S139: 3580 | V139: BRFQMT PC | W139: 3586 | Z139: BRFQMT PC | AA139: 3561 | AD139: BRFQMT PC | AE139: 10727 | AJ139: BRFQ PC | AK139: 10325 | AN139: BRFQ PC | AO139: 10485 | AR139: BRFQ PC | AS139: 10485 | AV139: BRFQ PC | AW139: 31295
A140: Total New Drill | B140: =SUM(B91:B93,B106:B108) -> 0 | C140: 64.549 | D140: 54.17 | E140: 45.822 | F140: 42.446 | G140: 1105.924 | H140: 912.183 | I140: 772.122 | J140: 610.828 | K140: 605.748 | L140: 533.482 | M140: 507.662 | N140: =SUM(B140:M140) -> 5254.936 | R140: BRFW D24 | S140: 65216 | V140: BRFW D24 | W140: 66642 | Z140: BRFW D24 | AA140: 64083 | AD140: BRFW D24 | AE140: 195941 | AJ140: BRFQMT D24 | AK140: 1 | AN140: BRFQMT D24 | AO140: 8339 | AR140: BRFQMT D24 | AS140: 0 | AV140: BRFQMT D24 | AW140: 8340
R141: BRFW PC | S141: 12093 | V141: BRFW PC | W141: 11432 | Z141: BRFW PC | AA141: 10936 | AD141: BRFW PC | AE141: 34461 | AJ141: BRFQMT PC | AK141: 3454 | AN141: BRFQMT PC | AO141: 3532 | AR141: BRFQMT PC | AS141: 3466 | AV141: BRFQMT PC | AW141: 10452
R142: BRUFF MT | S142: 5948 | V142: BRUFF MT | W142: 6797 | Z142: BRUFF MT | AA142: 6670 | AD142: BRUFF MT | AE142: 19415 | AJ142: BRFW D24 | AK142: 61590 | AN142: BRFW D24 | AO142: 62499 | AR142: BRFW D24 | AS142: 55357 | AV142: BRFW D24 | AW142: 179446
R143: CBFR D24 | S143: 15477 | V143: CBFR D24 | W143: 16763 | Z143: CBFR D24 | AA143: 15843 | AD143: CBFR D24 | AE143: 48083 | AJ143: BRFW PC | AK143: 13229 | AN143: BRFW PC | AO143: 11530 | AR143: BRFW PC | AS143: 10542 | AV143: BRFW PC | AW143: 35301
R144: CBFR PC | S144: 60146 | V144: CBFR PC | W144: 61857 | Z144: CBFR PC | AA144: 58448 | AD144: CBFR PC | AE144: 180451 | AJ144: BRUFF MT | AK144: 6256 | AN144: BRUFF MT | AO144: 5253 | AR144: BRUFF MT | AS144: 3348 | AV144: BRUFF MT | AW144: 14857
R145: CCOPA 2E | S145: 3107 | V145: CCOPA 2E | W145: 3915 | Z145: CCOPA 2E | AA145: 4845 | AD145: CCOPA 2E | AE145: 11867 | AJ145: CBFR D24 | AK145: 6463 | AN145: CBFR D24 | AO145: 3299 | AR145: CBFR D24 | AS145: 21622 | AV145: CBFR D24 | AW145: 31384
R146: CCRUNIT 2D8 | S146: 64904 | V146: CCRUNIT 2D8 | W146: 69823 | Z146: CCRUNIT 2D8 | AA146: 68057 | AD146: CCRUNIT 2D8 | AE146: 202784 | AJ146: CBFR PC | AK146: 22455 | AN146: CBFR PC | AO146: 10645 | AR146: CBFR PC | AS146: 82336 | AV146: CBFR PC | AW146: 115436
R147: CCRUNIT 2E | S147: 268733 | V147: CCRUNIT 2E | W147: 274803 | Z147: CCRUNIT 2E | AA147: 269951 | AD147: CCRUNIT 2E | AE147: 813487 | AJ147: CCOPA 2E | AK147: 3992 | AN147: CCOPA 2E | AO147: 3532 | AR147: CCOPA 2E | AS147: 2764 | AV147: CCOPA 2E | AW147: 10288
R148: CCRUNIT 2E MT | S148: 23064 | V148: CCRUNIT 2E MT | W148: 21202 | Z148: CCRUNIT 2E MT | AA148: 17837 | AD148: CCRUNIT 2E MT | AE148: 62103 | AJ148: CCRUNIT 2D8 | AK148: 69931 | AN148: CCRUNIT 2D8 | AO148: 81733 | AR148: CCRUNIT 2D8 | AS148: 77224 | AV148: CCRUNIT 2D8 | AW148: 228888
R149: CCRUNIT D24 | S149: 342555 | V149: CCRUNIT D24 | W149: 348620 | Z149: CCRUNIT D24 | AA149: 349597 | AD149: CCRUNIT D24 | AE149: 1040772 | AJ149: CCRUNIT 2E | AK149: 237395 | AN149: CCRUNIT 2E | AO149: 252945 | AR149: CCRUNIT 2E | AS149: 229301 | AV149: CCRUNIT 2E | AW149: 719641
R150: CCRUNIT D8 | S150: 186083 | V150: CCRUNIT D8 | W150: 197626 | Z150: CCRUNIT D8 | AA150: 189324 | AD150: CCRUNIT D8 | AE150: 573033 | AJ150: CCRUNIT 2E MT | AK150: 17155 | AN150: CCRUNIT 2E MT | AO150: 24687 | AR150: CCRUNIT 2E MT | AS150: 23043 | AV150: CCRUNIT 2E MT | AW150: 64885
R151: CCRUNIT MT | S151: 49182 | V151: CCRUNIT MT | W151: 62546 | Z151: CCRUNIT MT | AA151: 56244 | AD151: CCRUNIT MT | AE151: 167972 | AJ151: CCRUNIT D24 | AK151: 360788 | AN151: CCRUNIT D24 | AO151: 379519 | AR151: CCRUNIT D24 | AS151: 348462 | AV151: CCRUNIT D24 | AW151: 1088769
R152: CCRUNIT PC | S152: 25652 | V152: CCRUNIT PC | W152: 31105 | Z152: CCRUNIT PC | AA152: 35435 | AD152: CCRUNIT PC | AE152: 92192 | AJ152: CCRUNIT D8 | AK152: 183156 | AN152: CCRUNIT D8 | AO152: 206641 | AR152: CCRUNIT D8 | AS152: 196267 | AV152: CCRUNIT D8 | AW152: 586064
R153: CCRUNITMT PC | S153: 12324 | V153: CCRUNITMT PC | W153: 16010 | Z153: CCRUNITMT PC | AA153: 12682 | AD153: CCRUNITMT PC | AE153: 41016 | AJ153: CCRUNIT MT | AK153: 58139 | AN153: CCRUNIT MT | AO153: 58809 | AR153: CCRUNIT MT | AS153: 50710 | AV153: CCRUNIT MT | AW153: 167658
R154: CCRUNITMTD24 | S154: 35616 | V154: CCRUNITMTD24 | W154: 28058 | Z154: CCRUNITMTD24 | AA154: 24394 | AD154: CCRUNITMTD24 | AE154: 88068 | AJ154: CCRUNIT PC | AK154: 29711 | AN154: CCRUNIT PC | AO154: 41902 | AR154: CCRUNIT PC | AS154: 31018 | AV154: CCRUNIT PC | AW154: 102631
R155: CHBT MT | S155: 30711 | V155: CHBT MT | W155: 28830 | Z155: CHBT MT | AA155: 21930 | AD155: CHBT MT | AE155: 81471 | AJ155: CCRUNIT Q50 | AK155: 513 | AN155: CCRUNIT Q50 | AO155: 736 | AR155: CCRUNIT Q50 | AS155: 255 | AV155: CCRUNIT Q50 | AW155: 1504
R156: CHBTBUFF D24 | S156: 792 | V156: CHBTBUFF D24 | W156: 831 | Z156: CHBTBUFF D24 | AA156: 806 | AD156: CHBTBUFF D24 | AE156: 2429 | AJ156: CCRUNITMT PC | AK156: 12417 | AN156: CCRUNITMT PC | AO156: 12711 | AR156: CCRUNITMT PC | AS156: 10432 | AV156: CCRUNITMT PC | AW156: 35560
R157: CHBTC1 MT PC | S157: 25401 | V157: CHBTC1 MT PC | W157: 18149 | Z157: CHBTC1 MT PC | AA157: 18471 | AD157: CHBTC1 MT PC | AE157: 62021 | AJ157: CCRUNITMTD24 | AK157: 21784 | AN157: CCRUNITMTD24 | AO157: 36513 | AR157: CCRUNITMTD24 | AS157: 35518 | AV157: CCRUNITMTD24 | AW157: 93815
R158: CHBTCAT1 PC | S158: 43635 | V158: CHBTCAT1 PC | W158: 36756 | Z158: CHBTCAT1 PC | AA158: 32285 | AD158: CHBTCAT1 PC | AE158: 112676 | AJ158: CHBT MT | AK158: 20585 | AN158: CHBT MT | AO158: 19288 | AR158: CHBT MT | AS158: 18549 | AV158: CHBT MT | AW158: 58422
R159: CHBTCAT2 D24 | S159: 113102 | V159: CHBTCAT2 D24 | W159: 114474 | Z159: CHBTCAT2 D24 | AA159: 85302 | AD159: CHBTCAT2 D24 | AE159: 312878 | AJ159: CHBTBUFF D24 | AK159: 814 | AN159: CHBTBUFF D24 | AO159: 792 | AR159: CHBTBUFF D24 | AS159: 662 | AV159: CHBTBUFF D24 | AW159: 2268
R160: CHBTCAT2 PC | S160: 2548 | V160: CHBTCAT2 PC | W160: 2680 | Z160: CHBTCAT2 PC | AA160: 1878 | AD160: CHBTCAT2 PC | AE160: 7106 | AJ160: CHBTC1 MT PC | AK160: 18204 | AN160: CHBTC1 MT PC | AO160: 19184 | AR160: CHBTC1 MT PC | AS160: 18325 | AV160: CHBTC1 MT PC | AW160: 55713
R161: CHBTCAT3 D24 | S161: 195051 | V161: CHBTCAT3 D24 | W161: 193348 | Z161: CHBTCAT3 D24 | AA161: 154176 | AD161: CHBTCAT3 D24 | AE161: 542575 | AJ161: CHBTCAT1 PC | AK161: 31516 | AN161: CHBTCAT1 PC | AO161: 31297 | AR161: CHBTCAT1 PC | AS161: 28020 | AV161: CHBTCAT1 PC | AW161: 90833
R162: DRY PINY MT | S162: 3723 | V162: DRY PINY MT | W162: 3701 | Z162: DRY PINY MT | AA162: 3416 | AD162: DRY PINY MT | AE162: 10840 | AJ162: CHBTCAT2 D24 | AK162: 85610 | AN162: CHBTCAT2 D24 | AO162: 84488 | AR162: CHBTCAT2 D24 | AS162: 80661 | AV162: CHBTCAT2 D24 | AW162: 250759
R163: DRYPINY6 D24 | S163: 1247 | V163: DRYPINY6 D24 | W163: 1885 | Z163: DRYPINY6 D24 | AA163: 1311 | AD163: DRYPINY6 D24 | AE163: 4443 | AJ163: CHBTCAT2 PC | AK163: 1770 | AN163: CHBTCAT2 PC | AO163: 1843 | AR163: CHBTCAT2 PC | AS163: 1646 | AV163: CHBTCAT2 PC | AW163: 5259
R164: DRYPINY6 PC | S164: 95 | V164: DRYPINY6 PC | W164: 100 | Z164: DRYPINY6 PC | AA164: 98 | AD164: DRYPINY6 PC | AE164: 293 | AJ164: CHBTCAT3 D24 | AK164: 141964 | AN164: CHBTCAT3 D24 | AO164: 142620 | AR164: CHBTCAT3 D24 | AS164: 138213 | AV164: CHBTCAT3 D24 | AW164: 422797
R165: DRYPINYU D24 | S165: 3277 | V165: DRYPINYU D24 | W165: 2876 | Z165: DRYPINYU D24 | AA165: 2512 | AD165: DRYPINYU D24 | AE165: 8665 | AJ165: DRY PINY MT | AK165: 3395 | AN165: DRY PINY MT | AO165: 3706 | AR165: DRY PINY MT | AS165: 3696 | AV165: DRY PINY MT | AW165: 10797
R166: DRYPINYU PC | S166: 9024 | V166: DRYPINYU PC | W166: 10296 | Z166: DRYPINYU PC | AA166: 10094 | AD166: DRYPINYU PC | AE166: 29414 | AJ166: DRYPINY6 D24 | AK166: 1227 | AN166: DRYPINY6 D24 | AO166: 1174 | AR166: DRYPINY6 D24 | AS166: 537 | AV166: DRYPINY6 D24 | AW166: 2938
R167: HWA DEEP D24 | S167: 250 | V167: HWA DEEP D24 | W167: 140 | Z167: HWA DEEP D24 | AA167: 390 | AD167: HWA DEEP D24 | AE167: 780 | AJ167: DRYPINY6 PC | AK167: 89 | AN167: DRYPINY6 PC | AO167: 93 | AR167: DRYPINY6 PC | AS167: 91 | AV167: DRYPINY6 PC | AW167: 273
R168: HWA DEEP PC | S168: 227 | V168: HWA DEEP PC | W168: 92 | Z168: HWA DEEP PC | AA168: 139 | AD168: HWA DEEP PC | AE168: 458 | AJ168: DRYPINYU D24 | AK168: 2381 | AN168: DRYPINYU D24 | AO168: 2418 | AR168: DRYPINYU D24 | AS168: 2228 | AV168: DRYPINYU D24 | AW168: 7027
R169: HWA MT | S169: 2040 | V169: HWA MT | W169: 1630 | Z169: HWA MT | AA169: 3173 | AD169: HWA MT | AE169: 6843 | AJ169: DRYPINYU PC | AK169: 9903 | AN169: DRYPINYU PC | AO169: 10343 | AR169: DRYPINYU PC | AS169: 9758 | AV169: DRYPINYU PC | AW169: 30004
R170: HWADEEPMTD24 | S170: 15051 | V170: HWADEEPMTD24 | W170: 13921 | Z170: HWADEEPMTD24 | AA170: 12731 | AD170: HWADEEPMTD24 | AE170: 41703 | AJ170: FOGARTY PC | AK170: 1100 | AN170: FOGARTY PC | AO170: 647 | AR170: FOGARTY PC | AS170: 74 | AV170: FOGARTY PC | AW170: 1821
R171: HWPL1&3MTD24 | S171: 7603 | V171: HWPL1&3MTD24 | W171: 6450 | Z171: HWPL1&3MTD24 | AA171: 8051 | AD171: HWPL1&3MTD24 | AE171: 22104 | AJ171: HWA DEEP D24 | AK171: 248 | AN171: HWA DEEP D24 | AO171: 114 | AR171: HWA DEEP D24 | AS171: 0 | AV171: HWA DEEP D24 | AW171: 362
R172: HWPL1&3MTPC | S172: 7733 | V172: HWPL1&3MTPC | W172: 5718 | Z172: HWPL1&3MTPC | AA172: 7144 | AD172: HWPL1&3MTPC | AE172: 20595 | AJ172: HWA DEEP PC | AK172: 12 | AN172: HWA DEEP PC | AO172: 122 | AR172: HWA DEEP PC | AS172: 100 | AV172: HWA DEEP PC | AW172: 234
R173: HWPLT1&3 D24 | S173: 73779 | V173: HWPLT1&3 D24 | W173: 61558 | Z173: HWPLT1&3 D24 | AA173: 68938 | AD173: HWPLT1&3 D24 | AE173: 204275 | AJ173: HWA MT | AK173: 4311 | AN173: HWA MT | AO173: 4274 | AR173: HWA MT | AS173: 2050 | AV173: HWA MT | AW173: 10635
R174: HWPLT1&3 PC | S174: 55237 | V174: HWPLT1&3 PC | W174: 49120 | Z174: HWPLT1&3 PC | AA174: 50661 | AD174: HWPLT1&3 PC | AE174: 155018 | AJ174: HWADEEPMTD24 | AK174: 16000 | AN174: HWADEEPMTD24 | AO174: 16342 | AR174: HWADEEPMTD24 | AS174: 11539 | AV174: HWADEEPMTD24 | AW174: 43881
R175: HWPLT2 D24 | S175: 1781 | V175: HWPLT2 D24 | W175: 550 | Z175: HWPLT2 D24 | AA175: 2028 | AD175: HWPLT2 D24 | AE175: 4359 | AJ175: HWPL1&3MTD24 | AK175: 6396 | AN175: HWPL1&3MTD24 | AO175: 8224 | AR175: HWPL1&3MTD24 | AS175: 6583 | AV175: HWPL1&3MTD24 | AW175: 21203
R176: HWPLT2 PC | S176: 732 | V176: HWPLT2 PC | W176: 632 | Z176: HWPLT2 PC | AA176: 733 | AD176: HWPLT2 PC | AE176: 2097 | AJ176: HWPL1&3MTPC | AK176: 7565 | AN176: HWPL1&3MTPC | AO176: 7966 | AR176: HWPL1&3MTPC | AS176: 7070 | AV176: HWPL1&3MTPC | AW176: 22601
R177: HWPLT2MT D24 | S177: 1209 | V177: HWPLT2MT D24 | W177: 1102 | Z177: HWPLT2MT D24 | AA177: 1002 | AD177: HWPLT2MT D24 | AE177: 3313 | AJ177: HWPLT1&3 D24 | AK177: 68884 | AN177: HWPLT1&3 D24 | AO177: 72417 | AR177: HWPLT1&3 D24 | AS177: 66659 | AV177: HWPLT1&3 D24 | AW177: 207960
R178: ISLAND D24 | S178: 60101 | V178: ISLAND D24 | W178: 58104 | Z178: ISLAND D24 | AA178: 61221 | AD178: ISLAND D24 | AE178: 179426 | AJ178: HWPLT1&3 PC | AK178: 52382 | AN178: HWPLT1&3 PC | AO178: 53406 | AR178: HWPLT1&3 PC | AS178: 52757 | AV178: HWPLT1&3 PC | AW178: 158545
R179: ISLAND PC | S179: 608 | V179: ISLAND PC | W179: 626 | Z179: ISLAND PC | AA179: 431 | AD179: ISLAND PC | AE179: 1665 | AJ179: HWPLT2 D24 | AK179: 5507 | AN179: HWPLT2 D24 | AO179: 5672 | AR179: HWPLT2 D24 | AS179: 5022 | AV179: HWPLT2 D24 | AW179: 16201
R180: JNSNRDG D24 | S180: 5058 | V180: JNSNRDG D24 | W180: 3341 | Z180: JNSNRDG D24 | AA180: 2640 | AD180: JNSNRDG D24 | AE180: 11039 | AJ180: HWPLT2 PC | AK180: 644 | AN180: HWPLT2 PC | AO180: 682 | AR180: HWPLT2 PC | AS180: 636 | AV180: HWPLT2 PC | AW180: 1962
R181: JNSNRDG PC | S181: 3453 | V181: JNSNRDG PC | W181: 2885 | Z181: JNSNRDG PC | AA181: 2577 | AD181: JNSNRDG PC | AE181: 8915 | AJ181: HWPLT2MT D24 | AK181: 1173 | AN181: HWPLT2MT D24 | AO181: 1240 | AR181: HWPLT2MT D24 | AS181: 549 | AV181: HWPLT2MT D24 | AW181: 2962
R182: JRDG WFS D24 | S182: 6797 | V182: JRDG WFS D24 | W182: 4268 | Z182: JRDG WFS D24 | AA182: 4046 | AD182: JRDG WFS D24 | AE182: 15111 | AJ182: ISLAND D24 | AK182: 55676 | AN182: ISLAND D24 | AO182: 55822 | AR182: ISLAND D24 | AS182: 55256 | AV182: ISLAND D24 | AW182: 166754
R183: KNY FLD D24 | S183: 9714 | V183: KNY FLD D24 | W183: 15176 | Z183: KNY FLD D24 | AA183: 9968 | AD183: KNY FLD D24 | AE183: 34858 | AJ183: ISLAND PC | AK183: 11 | AN183: ISLAND PC | AO183: 0 | AR183: ISLAND PC | AS183: 1 | AV183: ISLAND PC | AW183: 12
R184: KNY FLD D8 | S184: 0 | V184: KNY FLD D8 | W184: 14539 | Z184: KNY FLD D8 | AA184: 6771 | AD184: KNY FLD D8 | AE184: 21310 | AJ184: JNSNRDG D24 | AK184: 2236 | AN184: JNSNRDG D24 | AO184: 2155 | AR184: JNSNRDG D24 | AS184: 0 | AV184: JNSNRDG D24 | AW184: 4391
R185: KNY FLD PC | S185: 3938 | V185: KNY FLD PC | W185: 3852 | Z185: KNY FLD PC | AA185: 5195 | AD185: KNY FLD PC | AE185: 12985 | AJ185: JNSNRDG PC | AK185: 2317 | AN185: JNSNRDG PC | AO185: 2335 | AR185: JNSNRDG PC | AS185: 0 | AV185: JNSNRDG PC | AW185: 4652
R186: MESA D24 | S186: 482399 | V186: MESA D24 | W186: 493225 | Z186: MESA D24 | AA186: 481157 | AD186: MESA D24 | AE186: 1456781 | AJ186: JRDG WFS D24 | AK186: 3795 | AN186: JRDG WFS D24 | AO186: 3311 | AR186: JRDG WFS D24 | AS186: 907 | AV186: JRDG WFS D24 | AW186: 8013
R187: MESA D8 | S187: 269956 | V187: MESA D8 | W187: 268367 | Z187: MESA D8 | AA187: 263770 | AD187: MESA D8 | AE187: 802093 | AJ187: KNY FLD D24 | AK187: 11337 | AN187: KNY FLD D24 | AO187: 15549 | AR187: KNY FLD D24 | AS187: 16801 | AV187: KNY FLD D24 | AW187: 43687
R188: MOSU MT | S188: 172 | V188: MOSU MT | W188: 33 | Z188: MOSU MT | AA188: 193 | AD188: MOSU MT | AE188: 398 | AJ188: KNY FLD D8 | AK188: 8942 | AN188: KNY FLD D8 | AO188: 25686 | AR188: KNY FLD D8 | AS188: 21705 | AV188: KNY FLD D8 | AW188: 56333
R189: MOSUMT D24 | S189: 954 | V189: MOSUMT D24 | W189: 895 | Z189: MOSUMT D24 | AA189: 958 | AD189: MOSUMT D24 | AE189: 2807 | AJ189: KNY FLD PC | AK189: 1398 | AN189: KNY FLD PC | AO189: 0 | AR189: KNY FLD PC | AS189: 636 | AV189: KNY FLD PC | AW189: 2034
R190: MOSUMT PC | S190: 7282 | V190: MOSUMT PC | W190: 6436 | Z190: MOSUMT PC | AA190: 7385 | AD190: MOSUMT PC | AE190: 21103 | AJ190: MESA D24 | AK190: 456619 | AN190: MESA D24 | AO190: 474452 | AR190: MESA D24 | AS190: 443667 | AV190: MESA D24 | AW190: 1374738
R191: NBXCAMP PC | S191: 3803 | V191: NBXCAMP PC | W191: 3306 | Z191: NBXCAMP PC | AA191: 3584 | AD191: NBXCAMP PC | AE191: 10693 | AJ191: MESA D8 | AK191: 246371 | AN191: MESA D8 | AO191: 254913 | AR191: MESA D8 | AS191: 234879 | AV191: MESA D8 | AW191: 736163
R192: NOBXFLD PC | S192: 1980 | V192: NOBXFLD PC | W192: 0 | Z192: NOBXFLD PC | AA192: 399 | AD192: NOBXFLD PC | AE192: 2379 | AJ192: MOSU MT | AK192: 159 | AN192: MOSU MT | AO192: 83 | AR192: MOSU MT | AS192: 0 | AV192: MOSU MT | AW192: 242
R193: PDW MT | S193: 147082 | V193: PDW MT | W193: 158743 | Z193: PDW MT | AA193: 153383 | AD193: PDW MT | AE193: 459208 | AJ193: MOSUMT D24 | AK193: 867 | AN193: MOSUMT D24 | AO193: 981 | AR193: MOSUMT D24 | AS193: 982 | AV193: MOSUMT D24 | AW193: 2830
R194: PDW1A1B D21 | S194: 153 | V194: PDW1A1B D21 | W194: 33 | Z194: PDW1A1B D21 | AA194: 11 | AD194: PDW1A1B D21 | AE194: 197 | AJ194: MOSUMT PC | AK194: 7529 | AN194: MOSUMT PC | AO194: 7171 | AR194: MOSUMT PC | AS194: 7034 | AV194: MOSUMT PC | AW194: 21734
R195: PDW1A1B D24 | S195: 519 | V195: PDW1A1B D24 | W195: 465 | Z195: PDW1A1B D24 | AA195: 430 | AD195: PDW1A1B D24 | AE195: 1414 | AJ195: NBXCAMP PC | AK195: 5027 | AN195: NBXCAMP PC | AO195: 3482 | AR195: NBXCAMP PC | AS195: 4968 | AV195: NBXCAMP PC | AW195: 13477
R196: PDW1A1B MT PC | S196: 2303 | V196: PDW1A1B MT PC | W196: 3259 | Z196: PDW1A1B MT PC | AA196: 1102 | AD196: PDW1A1B MT PC | AE196: 6664 | AJ196: NOBXFLD PC | AK196: 4939 | AN196: NOBXFLD PC | AO196: 718 | AR196: NOBXFLD PC | AS196: 5224 | AV196: NOBXFLD PC | AW196: 10881
R197: PDW1A1B PC | S197: 894 | V197: PDW1A1B PC | W197: 915 | Z197: PDW1A1B PC | AA197: 919 | AD197: PDW1A1B PC | AE197: 2728 | AJ197: PDW MT | AK197: 149339 | AN197: PDW MT | AO197: 140150 | AR197: PDW MT | AS197: 124592 | AV197: PDW MT | AW197: 414081
R198: PDWCUT D24 | S198: 1870 | V198: PDWCUT D24 | W198: 1072 | Z198: PDWCUT D24 | AA198: 1042 | AD198: PDWCUT D24 | AE198: 3984 | AJ198: PDW1A1B D21 | AK198: 76 | AN198: PDW1A1B D21 | AO198: 30 | AR198: PDW1A1B D21 | AS198: 39 | AV198: PDW1A1B D21 | AW198: 145
R199: PDWMT D24 | S199: 23898 | V199: PDWMT D24 | W199: 25136 | Z199: PDWMT D24 | AA199: 21159 | AD199: PDWMT D24 | AE199: 70193 | AJ199: PDW1A1B D24 | AK199: 363 | AN199: PDW1A1B D24 | AO199: 385 | AR199: PDW1A1B D24 | AS199: 296 | AV199: PDW1A1B D24 | AW199: 1044
R200: PDWPLT2 D24 | S200: 4019 | V200: PDWPLT2 D24 | W200: 4144 | Z200: PDWPLT2 D24 | AA200: 4060 | AD200: PDWPLT2 D24 | AE200: 12223 | AJ200: PDW1A1B MT PC | AK200: 4307 | AN200: PDW1A1B MT PC | AO200: 5087 | AR200: PDW1A1B MT PC | AS200: 2830 | AV200: PDW1A1B MT PC | AW200: 12224
R201: PDWPLT2 PC | S201: 5740 | V201: PDWPLT2 PC | W201: 5804 | Z201: PDWPLT2 PC | AA201: 5659 | AD201: PDWPLT2 PC | AE201: 17203 | AJ201: PDW1A1B PC | AK201: 546 | AN201: PDW1A1B PC | AO201: 0 | AR201: PDW1A1B PC | AS201: 309 | AV201: PDW1A1B PC | AW201: 855
R202: PDWPLT3 PC | S202: 5501 | V202: PDWPLT3 PC | W202: 4996 | Z202: PDWPLT3 PC | AA202: 3490 | AD202: PDWPLT3 PC | AE202: 13987 | AJ202: PDWCUT D24 | AK202: 815 | AN202: PDWCUT D24 | AO202: 1047 | AR202: PDWCUT D24 | AS202: 1137 | AV202: PDWCUT D24 | AW202: 2999
R203: SGRLF D24 | S203: 1836 | V203: SGRLF D24 | W203: 1921 | Z203: SGRLF D24 | AA203: 1548 | AD203: SGRLF D24 | AE203: 5305 | AJ203: PDWCUT PC | AK203: 0 | AN203: PDWCUT PC | AO203: 3 | AR203: PDWCUT PC | AS203: 0 | AV203: PDWCUT PC | AW203: 3
R204: SGRLF PC | S204: 27186 | V204: SGRLF PC | W204: 32168 | Z204: SGRLF PC | AA204: 31499 | AD204: SGRLF PC | AE204: 90853 | AJ204: PDWMT D24 | AK204: 20706 | AN204: PDWMT D24 | AO204: 21677 | AR204: PDWMT D24 | AS204: 17922 | AV204: PDWMT D24 | AW204: 60305
R205: SGRLFMT D24 | S205: 11165 | V205: SGRLFMT D24 | W205: 14549 | Z205: SGRLFMT D24 | AA205: 11822 | AD205: SGRLFMT D24 | AE205: 37536 | AJ205: PDWPLT2 D24 | AK205: 3884 | AN205: PDWPLT2 D24 | AO205: 4230 | AR205: PDWPLT2 D24 | AS205: 3897 | AV205: PDWPLT2 D24 | AW205: 12011
R206: TRAIL 2D8 | S206: 315279 | V206: TRAIL 2D8 | W206: 295745 | Z206: TRAIL 2D8 | AA206: 253335 | AD206: TRAIL 2D8 | AE206: 864359 | AJ206: PDWPLT2 PC | AK206: 5826 | AN206: PDWPLT2 PC | AO206: 5716 | AR206: PDWPLT2 PC | AS206: 4012 | AV206: PDWPLT2 PC | AW206: 15554
R207: TRAIL 2E | S207: 296088 | V207: TRAIL 2E | W207: 290108 | Z207: TRAIL 2E | AA207: 254680 | AD207: TRAIL 2E | AE207: 840876 | AJ207: PDWPLT3 PC | AK207: 4825 | AN207: PDWPLT3 PC | AO207: 4530 | AR207: PDWPLT3 PC | AS207: 4438 | AV207: PDWPLT3 PC | AW207: 13793
R208: TRAIL 2E MT | S208: 35744 | V208: TRAIL 2E MT | W208: 37531 | Z208: TRAIL 2E MT | AA208: 30526 | AD208: TRAIL 2E MT | AE208: 103801 | AJ208: SGRLF D24 | AK208: 920 | AN208: SGRLF D24 | AO208: 1657 | AR208: SGRLF D24 | AS208: 1432 | AV208: SGRLF D24 | AW208: 4009
... 130 more rows

Sheet Normal Purchase % (hidden)
A2: Source: The whole numbers come from Purchase Gas and Company Owned Gas sheets. The percentages are then calculated from those numbers.
B3: 2 | C3: 3 | D3: 4 | E3: 5 | F3: 6 | G3: 7 | H3: 8 | I3: 9
A4: Month | B4: Actual Purchase Mdth | C4: Normal Purchase Mdth | D4: Actual Company Mdth | E4: Normal Company Mdths | F4: Actual Purchase as Percent of Total | G4: Normal Purchase as Percent of Total | H4: Actual Cost-of-Service as Percent of Total | I4: Normal Cost-of-Service as Percent of Total | K4: Check Should = 100% | L4: Check Should = 100%
A5: ='Ex 1 HDD'!A8 -> 2022-06-01 | B5: ='Ex 4 Purchase Gas'!B8 -> 483.77 | C5: ='Ex 4 Purchase Gas'!C8 -> 619.593 | D5: ='Ex 7 Co. Owned Gas'!B8 -> 4510.212 | E5: ='Ex 7 Co. Owned Gas'!C8 -> 4454.94 | F5: =IFERROR(B5/(B5+D5),0) -> 0.09687059345 | G5: =C5/(C5+E5) -> 0.1220985261 | H5: =IFERROR(D5/(D5+B5),0) -> 0.9031294066 | I5: =E5/(E5+C5) -> 0.8779014739 | K5: =F5+H5 -> 1 | L5: =G5+I5 -> 1 | Q5: =SUM(B5:B7) -> 1012.798
A6: ='Ex 1 HDD'!A9 -> 2022-07-01 | B6: ='Ex 4 Purchase Gas'!B9 -> 252.061 | C6: ='Ex 4 Purchase Gas'!C9 -> 0 | D6: ='Ex 7 Co. Owned Gas'!B9 -> 4737.195 | E6: ='Ex 7 Co. Owned Gas'!C9 -> 4482.04 | F6: =IFERROR(B6/(B6+D6),0) -> 0.05052075901 | G6: 0 | H6: =IFERROR(D6/(D6+B6),0) -> 0.949479241 | I6: 1 | K6: 1 | L6: 1 | Q6: =SUM(D5:D7) -> 13653.638
A7: ='Ex 1 HDD'!A10 -> 2022-08-01 | B7: ='Ex 4 Purchase Gas'!B10 -> 276.967 | C7: ='Ex 4 Purchase Gas'!C10 -> 0 | D7: ='Ex 7 Co. Owned Gas'!B10 -> 4406.231 | E7: ='Ex 7 Co. Owned Gas'!C10 -> 4411.195 | F7: 0.05914057018 | G7: 0 | H7: 0.9408594298 | I7: 1 | K7: 1 | L7: 1 | Q7: =Q5+Q6 -> 14666.436
A8: ='Ex 1 HDD'!A11 -> 2022-09-01 | B8: ='Ex 4 Purchase Gas'!B11 -> 1317.673 | C8: ='Ex 4 Purchase Gas'!C11 -> 1212.387 | D8: ='Ex 7 Co. Owned Gas'!B11 -> 4399.604 | E8: ='Ex 7 Co. Owned Gas'!C11 -> 4056.795 | F8: 0.2304721286 | G8: 0.2300901734 | H8: 0.7695278714 | I8: 0.7699098266 | K8: 1 | L8: 1 | Q8: =Q5/Q7 -> 0.06905549515
A9: ='Ex 1 HDD'!A12 -> 2022-10-01 | B9: ='Ex 4 Purchase Gas'!B12 -> 5048.693 | C9: ='Ex 4 Purchase Gas'!C12 -> 5386.215 | D9: ='Ex 7 Co. Owned Gas'!B12 -> 4894.548 | E9: ='Ex 7 Co. Owned Gas'!C12 -> 4129.596 | F9: 0.5077512453 | G9: 0.5660279507 | H9: 0.4922487547 | I9: 0.4339720493 | K9: 1 | L9: 1
A10: ='Ex 1 HDD'!A13 -> 2022-11-01 | B10: ='Ex 4 Purchase Gas'!B13 -> 12361.26 | C10: ='Ex 4 Purchase Gas'!C13 -> 8236.698 | D10: ='Ex 7 Co. Owned Gas'!B13 -> 4878.396 | E10: ='Ex 7 Co. Owned Gas'!C13 -> 5358.427 | F10: 0.7170247481 | G10: 0.6058567317 | H10: 0.2829752519 | I10: 0.3941432683 | K10: =F10+H10 -> 1 | L10: 1
A11: ='Ex 1 HDD'!A14 -> 2022-12-01 | B11: ='Ex 4 Purchase Gas'!B14 -> 0 | C11: ='Ex 4 Purchase Gas'!C14 -> 11121.36 | D11: ='Ex 7 Co. Owned Gas'!B14 -> 0 | E11: ='Ex 7 Co. Owned Gas'!C14 -> 5247.635 | F11: 0 | G11: 0.6794161767 | H11: 0 | I11: 0.3205838233 | K11: 0 | L11: 1
A12: ='Ex 1 HDD'!A15 -> 2023-01-01 | B12: ='Ex 4 Purchase Gas'!B15 -> 0 | C12: ='Ex 4 Purchase Gas'!C15 -> 11959.41 | D12: ='Ex 7 Co. Owned Gas'!B15 -> 0 | E12: ='Ex 7 Co. Owned Gas'!C15 -> 5052.228 | F12: 0 | G12: 0.7030134312 | H12: 0 | I12: 0.2969865688 | K12: 0 | L12: 1
A13: ='Ex 1 HDD'!A16 -> 2023-02-01 | B13: ='Ex 4 Purchase Gas'!B16 -> 0 | C13: ='Ex 4 Purchase Gas'!C16 -> 9791.591 | D13: ='Ex 7 Co. Owned Gas'!B16 -> 0 | E13: ='Ex 7 Co. Owned Gas'!C16 -> 4426.493 | F13: 0 | G13: 0.6886716241 | H13: 0 | I13: 0.3113283759 | K13: 0 | L13: 1
A14: ='Ex 1 HDD'!A17 -> 2023-03-01 | B14: ='Ex 4 Purchase Gas'!B17 -> 0 | C14: ='Ex 4 Purchase Gas'!C17 -> 8732.722 | D14: ='Ex 7 Co. Owned Gas'!B17 -> 0 | E14: ='Ex 7 Co. Owned Gas'!C17 -> 4780.264 | F14: 0 | G14: 0.6462466549 | H14: 0 | I14: 0.3537533451 | K14: 0 | L14: 1
A15: ='Ex 1 HDD'!A18 -> 2023-04-01 | B15: ='Ex 4 Purchase Gas'!B18 -> 0 | C15: ='Ex 4 Purchase Gas'!C18 -> 4825.148 | D15: ='Ex 7 Co. Owned Gas'!B18 -> 0 | E15: ='Ex 7 Co. Owned Gas'!C18 -> 4524.564 | F15: 0 | G15: 0.5160745058 | H15: 0 | I15: 0.4839254942 | K15: 0 | L15: 1
A16: ='Ex 1 HDD'!A19 -> 2023-05-01 | B16: ='Ex 4 Purchase Gas'!B19 -> 0 | C16: ='Ex 4 Purchase Gas'!C19 -> 3597.914 | D16: ='Ex 7 Co. Owned Gas'!B19 -> 0 | E16: ='Ex 7 Co. Owned Gas'!C19 -> 4577.208 | F16: 0 | G16: 0.4401052363 | H16: 0 | I16: 0.5598947637 | K16: 0 | L16: 1
A18: Q1 | B18: =SUM(B5:B7) -> 1012.798 | C18: =SUM(C5:C7) -> 619.593 | D18: =SUM(D5:D7) -> 13653.638 | E18: =SUM(E5:E7) -> 13348.175 | F18: =IFERROR(B18/(B18+D18),0) -> 0.06905549515 | G18: =C18/(C18+E18) -> 0.04435876942 | H18: =IFERROR(D18/(D18+B18),0) -> 0.9309445049 | I18: =E18/(E18+C18) -> 0.9556412306 | K18: =F18+H18 -> 1 | L18: 1
A19: Q2 | B19: =SUM(B8:B10) -> 18727.626 | C19: =SUM(C8:C10) -> 14835.3 | D19: =SUM(D8:D10) -> 14172.548 | E19: =SUM(E8:E10) -> 13544.818 | F19: =IFERROR(B19/(B19+D19),0) -> 0.5692257433 | G19: =C19/(C19+E19) -> 0.5227356701 | H19: =IFERROR(D19/(D19+B19),0) -> 0.4307742567 | I19: =E19/(E19+C19) -> 0.4772643299 | K19: 1 | L19: 1
A20: Q3 | B20: =SUM(B11:B13) -> 0 | C20: =SUM(C11:C13) -> 32872.361 | D20: =SUM(D11:D13) -> 0 | E20: =SUM(E11:E13) -> 14726.356 | F20: 0 | G20: 0.690614434 | H20: 0 | I20: 0.309385566 | K20: 0 | L20: 1
A21: Q4 | B21: =SUM(B14:B16) -> 0 | C21: =SUM(C14:C16) -> 17155.784 | D21: =SUM(D14:D16) -> 0 | E21: =SUM(E14:E16) -> 13882.036 | F21: 0 | G21: 0.5527380467 | H21: 0 | I21: =E21/(E21+C21) -> 0.4472619533 | K21: =F21+H21 -> 0 | L21: =G21+I21 -> 1
B22: IRP | C22: Actual | D22: IRP | E22: Actual | F22: 0 | G22: Actual | H22: 0 | I22: Actual
F24: =F4 -> Actual Purchase as Percent of Total | G24: =G4 -> Normal Purchase as Percent of Total | H24: =H4 -> Actual Cost-of-Service as Percent of Total | I24: =I4 -> Normal Cost-of-Service as Percent of Total
E25: =A8 -> 2022-09-01 | F25: =VLOOKUP($E25,$A$5:$I$16,F$3,FALSE) -> 0.2304721286 | G25: =VLOOKUP($E25,$A$5:$I$16,G$3,FALSE) -> 0.2300901734 | H25: 0.7695278714 | I25: 0.7699098266 | K25: =F25+H25 -> 1 | L25: 1
E26: =A9 -> 2022-10-01 | F26: =VLOOKUP($E26,$A$5:$I$16,F$3,FALSE) -> 0.5077512453 | G26: 0.5660279507 | H26: 0.4922487547 | I26: 0.4339720493 | K26: 1 | L26: 1
E27: =A10 -> 2022-11-01 | F27: =VLOOKUP($E27,$A$5:$I$16,F$3,FALSE) -> 0.7170247481 | G27: 0.6058567317 | H27: 0.2829752519 | I27: 0.3941432683 | K27: 1 | L27: 1
E29: =A18 -> Q1 | F29: =VLOOKUP($E29,$A$18:$I$21,6,FALSE) -> 0.06905549515 | G29: =VLOOKUP($E29,$A$18:$I$21,7,FALSE) -> 0.04435876942 | H29: =VLOOKUP($E29,$A$18:$I$21,8,FALSE) -> 0.9309445049 | I29: =VLOOKUP($E29,$A$18:$I$21,9,FALSE) -> 0.9556412306 | K29: =F29+H29 -> 1 | L29: 1
E30: =A19 -> Q2 | F30: =VLOOKUP($E30,$A$18:$I$21,6,FALSE) -> 0.5692257433 | G30: =VLOOKUP($E30,$A$18:$I$21,G$3,FALSE) -> 0.5227356701 | H30: 0.4307742567 | I30: 0.4772643299 | K30: 1 | L30: 1
E31: =A20 -> Q3 | F31: 0 | G31: 0.690614434 | H31: 0 | I31: 0.309385566 | K31: 0 | L31: 1
E32: Q4 | F32: 0 | G32: 0.5527380467 | H32: 0 | I32: 0.4472619533 | K32: 0 | L32: 1 | N32: =F32-G32 -> -0.5527380467 | O32: =I32-H32 -> 0.4472619533
F34: =AVERAGE((F25:F27)) -> 0.4850827073 | G34: =AVERAGE((G25:G27)) -> 0.467324952 | H34: =AVERAGE((H25:H27)) -> 0.5149172927 | I34: =AVERAGE((I25:I27)) -> 0.532675048

Sheet IRP Pruch Cover Sheet (hidden)
C1: 2 | D1: 3 | E1: 4 | F1: 5
C2: ='Normal Purchase %'!F24 -> Actual Purchase as Percent of Total | D2: ='Normal Purchase %'!G24 -> Normal Purchase as Percent of Total | E2: ='Normal Purchase %'!H24 -> Actual Cost-of-Service as Percent of Total | F2: ='Normal Purchase %'!I24 -> Normal Cost-of-Service as Percent of Total
B4: ='Normal Purchase %'!E25 -> 2022-09-01 | C4: =VLOOKUP($B4,'Normal Purchase %'!$E$25:$I$27,'IRP Pruch Cover Sheet'!C$1,FALSE) -> 0.2304721286 | D4: =VLOOKUP($B4,'Normal Purchase %'!$E$25:$I$27,'IRP Pruch Cover Sheet'!D$1,FALSE) -> 0.2300901734 | E4: =VLOOKUP($B4,'Normal Purchase %'!$E$25:$I$27,'IRP Pruch Cover Sheet'!E$1,FALSE) -> 0.7695278714 | F4: =VLOOKUP($B4,'Normal Purchase %'!$E$25:$I$27,'IRP Pruch Cover Sheet'!F$1,FALSE) -> 0.7699098266
B5: ='Normal Purchase %'!E26 -> 2022-10-01 | C5: =VLOOKUP($B5,'Normal Purchase %'!$E$25:$I$27,'IRP Pruch Cover Sheet'!C$1,FALSE) -> 0.5077512453 | D5: =VLOOKUP($B5,'Normal Purchase %'!$E$25:$I$27,'IRP Pruch Cover Sheet'!D$1,FALSE) -> 0.5660279507 | E5: =VLOOKUP($B5,'Normal Purchase %'!$E$25:$I$27,'IRP Pruch Cover Sheet'!E$1,FALSE) -> 0.4922487547 | F5: =VLOOKUP($B5,'Normal Purchase %'!$E$25:$I$27,'IRP Pruch Cover Sheet'!F$1,FALSE) -> 0.4339720493
B6: ='Normal Purchase %'!E27 -> 2022-11-01 | C6: =VLOOKUP($B6,'Normal Purchase %'!$E$25:$I$27,'IRP Pruch Cover Sheet'!C$1,FALSE) -> 0.7170247481 | D6: =VLOOKUP($B6,'Normal Purchase %'!$E$25:$I$27,'IRP Pruch Cover Sheet'!D$1,FALSE) -> 0.6058567317 | E6: =VLOOKUP($B6,'Normal Purchase %'!$E$25:$I$27,'IRP Pruch Cover Sheet'!E$1,FALSE) -> 0.2829752519 | F6: =VLOOKUP($B6,'Normal Purchase %'!$E$25:$I$27,'IRP Pruch Cover Sheet'!F$1,FALSE) -> 0.3941432683
B8: Q2 | C8: =VLOOKUP($B$8,'Normal Purchase %'!$E$29:$I$32,'IRP Pruch Cover Sheet'!C$1,FALSE) -> 0.5692257433 | D8: =VLOOKUP($B$8,'Normal Purchase %'!$E$29:$I$32,'IRP Pruch Cover Sheet'!D$1,FALSE) -> 0.5227356701 | E8: =VLOOKUP($B$8,'Normal Purchase %'!$E$29:$I$32,'IRP Pruch Cover Sheet'!E$1,FALSE) -> 0.4307742567 | F8: =VLOOKUP($B$8,'Normal Purchase %'!$E$29:$I$32,'IRP Pruch Cover Sheet'!F$1,FALSE) -> 0.4772643299
D15: =C8-D8 -> 0.04649007321 | E15: =F8-E8 -> 0.04649007321

Sheet Shut-In (hidden)
B1: Actual Data from Jennifer Beasley
B2: Estimates…See Company Nom Groups herein
C4: June | D4: July | E4: August | F4: Total Dth for Quarter | I4: September | J4: October | K4: November | L4: Total Dth for Quarter
B5: Estimated Shut-in (dth/day) | C5: ='Company Nom Groups'!B138 -> 158.6304822 | D5: ='Company Nom Groups'!C138 -> 157.6285771 | E5: ='Company Nom Groups'!D138 -> 156.768801 | F5: =C5*30+D5*31+E5*31 -> 14505.23319 | H5: Estimated Shut-in (dth/day) | I5: ='Company Nom Groups'!E138 -> 155.7213398 | J5: ='Company Nom Groups'!F138 -> 154.9252094 | K5: ='Company Nom Groups'!G138 -> 153.9867229 | L5: =I5*30+J5*31+K5*30 -> 14093.92337
B6: Actual Shut-in (dth/day) | C6: 0 | D6: 0 | E6: 0 | F6: =C6*30+D6*31+E6*31 -> 0 | H6: Acutal Shut-in (dth/day) | I6: =I75/30 -> 0 | J6: =J75/31 -> 0 | K6: 0 | L6: =I6*30+J6*31+K6*30 -> 0
B10: 1 | C10: 59 | D10: =D5 -> 157.6285771 | E10: 0 | H10: =B10 -> 1
B11: 2 | C11: 59 | D11: 780 | E11: 0 | H11: =B11 -> 2
B12: 3 | C12: 59 | D12: 780 | E12: 0 | H12: 3
B13: 4 | C13: 59 | D13: 780 | E13: 0 | H13: 4
B14: 5 | C14: 59 | D14: 780 | E14: 0 | H14: 5
B15: 6 | C15: 59 | D15: 780 | E15: 0 | H15: 6
B16: 7 | C16: 59 | D16: =D11 -> 780 | E16: 0 | H16: 7 | K16: ?????????
B17: 8 | C17: 59 | D17: 780 | E17: 0 | H17: 8
B18: 9 | C18: 59 | D18: 780 | E18: 0 | H18: 9
B19: 10 | C19: 59 | D19: =D14 -> 780 | E19: 0 | H19: 10
B20: 11 | C20: 59 | D20: 780 | E20: 0 | H20: 11
B21: 12 | C21: 59 | D21: 780 | E21: 0 | H21: 12
B22: 13 | C22: 59 | D22: =D17 -> 780 | E22: 0 | H22: 13
B23: 14 | C23: 59 | D23: 780 | E23: 0 | H23: 14
B24: 15 | C24: 59 | D24: 780 | E24: 0 | H24: 15
B25: 16 | C25: 59 | D25: =D20 -> 780 | E25: 0 | H25: 16
B26: 17 | C26: 59 | D26: 780 | E26: 0 | H26: 17
B27: 18 | C27: 59 | D27: 780 | E27: 0 | H27: 18
B28: 19 | C28: 59 | D28: =D23 -> 780 | E28: 0 | H28: 19
B29: 20 | C29: 59 | D29: 780 | E29: 0 | H29: 20
B30: 21 | C30: 59 | D30: 780 | E30: 0 | H30: 21
B31: 22 | C31: 59 | D31: =D26 -> 780 | E31: 0 | H31: 22
B32: 23 | C32: 59 | D32: 780 | E32: 0 | H32: 23
B33: 24 | C33: 59 | D33: 780 | E33: 0 | H33: 24
B34: 25 | C34: 59 | D34: =D29 -> 780 | E34: 0 | H34: 25
B35: 26 | C35: 59 | D35: 780 | E35: 0 | H35: 26
B36: 27 | C36: 59 | D36: 780 | E36: 0 | H36: 27
B37: 28 | C37: 59 | D37: =D32 -> 780 | E37: 0 | H37: 28
B38: 29 | C38: 59 | D38: 780 | E38: 0 | H38: 29
B39: 30 | C39: 59 | D39: 780 | E39: 0 | H39: 30
B40: 31 | C40: 0 | D40: =D35 -> 780 | E40: 0 | H40: 31
C41: =SUM(C10:C40) -> 1770 | D41: =SUM(D10:D40) -> 23557.62858 | E41: =SUM(E10:E40) -> 0 | F41: =SUM(C41:E41) -> 25327.62858 | I41: 0 | J41: 0 | K41: 0 | L41: =SUM(I41:K41) -> 0
B44: 1 | C44: 0 | D44: 0 | E44: 0 | H44: 1 | I44: 0 | J44: 0 | K44: 0
B45: 2 | C45: 0 | D45: 0 | E45: 0 | H45: 2 | I45: 0 | J45: 0 | K45: 0
B46: 3 | C46: 0 | D46: 0 | E46: 0 | H46: 3 | I46: 0 | J46: 0 | K46: 0
B47: 4 | C47: 0 | D47: 0 | E47: 5724 | H47: 4 | I47: 0 | J47: 0 | K47: 0
B48: 5 | C48: 0 | D48: 0 | E48: 5724 | H48: 5 | I48: 0 | J48: 0 | K48: 0
B49: 6 | C49: 0 | D49: 0 | E49: 5724 | H49: 6 | I49: 0 | J49: 0 | K49: 0
B50: 7 | C50: 0 | D50: 0 | E50: 5724 | H50: 7 | I50: 0 | J50: 0 | K50: 0
B51: 8 | C51: 0 | D51: 0 | E51: 5724 | H51: 8 | I51: 0 | J51: 0 | K51: 0
B52: 9 | C52: 0 | D52: 0 | E52: 5724 | H52: 9 | I52: 0 | J52: 0 | K52: 0
B53: 10 | C53: 0 | D53: 0 | E53: 5724 | H53: 10 | I53: 0 | J53: 0 | K53: 0
B54: 11 | C54: 0 | D54: 0 | E54: 5724 | H54: 11 | I54: 0 | J54: 0 | K54: 0
B55: 12 | C55: 0 | D55: 0 | E55: 5724 | H55: 12 | I55: 0 | J55: 0 | K55: 0
B56: 13 | C56: 0 | D56: 0 | E56: 5724 | H56: 13 | I56: 0 | J56: 0 | K56: 0
B57: 14 | C57: 0 | D57: 0 | E57: 5724 | H57: 14 | I57: 0 | J57: 0 | K57: 0
B58: 15 | C58: 0 | D58: 0 | E58: 5724 | H58: 15 | I58: 0 | J58: 0 | K58: 0
B59: 16 | C59: 0 | D59: 0 | E59: 5724 | H59: 16 | I59: 0 | J59: 0 | K59: 0
B60: 17 | C60: 0 | D60: 0 | E60: 5724 | H60: 17 | I60: 0 | J60: 0 | K60: 0
B61: 18 | C61: 0 | D61: 0 | E61: 5724 | H61: 18 | I61: 0 | J61: 0 | K61: 0
B62: 19 | C62: 0 | D62: 0 | E62: 5724 | H62: 19 | I62: 0 | J62: 0 | K62: 0
B63: 20 | C63: 0 | D63: 0 | E63: 5724 | H63: 20 | I63: 0 | J63: 0 | K63: 0
B64: 21 | C64: 0 | D64: 0 | E64: 5724 | H64: 21 | I64: 0 | J64: 0 | K64: 0
B65: 22 | C65: 0 | D65: 0 | E65: 5724 | H65: 22 | I65: 0 | J65: 0 | K65: 0
B66: 23 | C66: 0 | D66: 0 | E66: 5724 | H66: 23 | I66: 0 | J66: 0 | K66: 0
B67: 24 | C67: 0 | D67: 0 | E67: 5724 | H67: 24 | I67: 0 | J67: 0 | K67: 0
B68: 25 | C68: 0 | D68: 0 | E68: 5724 | H68: 25 | I68: 0 | J68: 0 | K68: 0
B69: 26 | C69: 0 | D69: 0 | E69: 5724 | H69: 26 | I69: 0 | J69: 0 | K69: 0
B70: 27 | C70: 0 | D70: 0 | E70: 5724 | H70: 27 | I70: 0 | J70: 0 | K70: 0
B71: 28 | C71: 0 | D71: 0 | E71: 5724 | H71: 28 | I71: 0 | J71: 0 | K71: 0
B72: 29 | C72: 0 | D72: 0 | E72: 5724 | H72: 29 | I72: 0 | J72: 0 | K72: 0
B73: 30 | C73: 0 | D73: 0 | E73: 5724 | H73: 30 | I73: 0 | J73: 0 | K73: 0
B74: 31 | C74: 0 | D74: 0 | E74: 5724 | H74: 31 | J74: 0
C75: =SUM(C44:C74) -> 0 | D75: =SUM(D44:D74) -> 0 | E75: =SUM(E44:E74) -> 160272 | F75: =SUM(C75:E75) -> 160272 | I75: =SUM(I44:I74) -> 0 | J75: =SUM(J44:J74) -> 0 | K75: =SUM(K44:K74) -> 0 | L75: =SUM(I75:K75) -> 0

Sheet Deleted Exhibit 2.5 (hidden)
O31: ='Exhibit 1.1'!O31 -> DEU Variance Exhibit | P31: Docket No. 22-057-02 | Q31: ='Exhibit 1.1'!Q31 -> Dominion Energy Utah
O32: 2.5

Sheet Deleted Exhibit 2.6 (hidden)
O31: ='Exhibit 1.1'!O31 -> DEU Variance Exhibit | P31: Docket No. 22-057-02 | Q31: ='Exhibit 1.1'!Q31 -> Dominion Energy Utah
O32: 2.6
